{"text_format":"1","workbook":"xlsx","n_sheets":72,"sheets":["TitlePage","Disclaimer","General Notes","Chemical Notes","Revisions","Contents","A01","A02a","A02b","A02c","A02d","A03","B01","B02","B03a","B03b","B04a","B04b","C01","C02a","C02b","C03a","C03b","D05","D06","D07","D08a","D08b","D09a","D09b","D09c","D09d","D10","E01","E02","E03","E04","F02a","F02b","F02c","F02d","F02e","F02f","F03a","F03b","F03c","F08a","F08b","F08c","F08d","F08e","F08f","F11a","F11b","F11c","F16a","F16b","F16c","F16d","F16e","F16f","F17a","F17b","F17c","G01a","G01b","G02a","G02b","G03","G06a","References","PlntRunoV5"],"not_rendered":{"charts":21,"images":31,"macros":1,"external_links":0,"defined_names":756,"comments":0,"pivot_tables":0},"unopened":[],"bounds":{"document_bytes":16777216,"sheet_cells":100000,"rows_first":2000,"rows_last":500,"rows_between":2000,"halvings":0,"cell_chars":16384,"cell_head_chars":4096},"cells_cut":0,"cells_raw":0,"read":"whole","date_system":"1900"}

{"sheet":"TitlePage","index":0,"n_rows":51,"n_cols":6,"rows_kept":51,"cut":false,"hidden":false,"merged":[[0,1,4,8],[5,2,7,6],[50,0,50,8]]}
["Title page","Warning: | "]
[]
[]
[]
[]
[null,null,"Pond-Klear Aquatic -SubPlants - Aquatic Application :Flumioxazin Aquatic"]
[]
[]
[]
[]
[]
[]
[]
[]
[]
[]
[null,null,null,null,"WorksheetMaker Version ","6.02.20"]
[]
[]
[]
[]
[]
[]
[]
[]
[]
[]
[]
[]
[]
[]
[]
[]
[]
[]
[]
[]
[]
[]
[]
[]
[]
[]
[]
[]
[]
[]
[]
[]
[]
["2020-07-02"]

{"sheet":"Disclaimer","index":1,"n_rows":1,"n_cols":1,"rows_kept":1,"cut":false,"hidden":false,"merged":[]}
["DISCLAIMER"]

{"sheet":"General Notes","index":2,"n_rows":59,"n_cols":3,"rows_kept":59,"cut":false,"hidden":false,"merged":[[0,0,0,2]]}
["General Notes"]
[null,"Prepared by:","Joseph Kunes"]
[null,"Program Version:","6.02.20"]
[null,"Database Used:","FS WsMkr V06-02-01.mdb"]
[null,"Template Workbook:","FS WsMkr V06-02-01.mdb"]
[null,"Base Workbook:","FS WSMkr Blank V06-02-01.xlsm"]
[]
["Color Codes in WorksheetMaker"]
[]
[]
[]
[]
["Color Codes used in Workbook for Front Matter, Data and Calculation Worksheets"]
[null,"Green shading ","This is a default value or a user specified a value.  You can change these values as you see fit but you should have a reason for doing so."]
[null,"Yellow shading ","This is a source for a link in other parts of the workbook.  If you have good reason to change the value, you should note the change (with your reason) in the “Revisions” page."]
[null,"Blue shading ","This cell is linked to another cell in the workbook.  Do not change this value.  If you change any of these values, the workbook may not update correctly."]
[null,"Blue shading blue border ","This cell is linked to a Program parameter in Worksheet A01.  Do not change this value.  If you want the value to change, go to Worksheet A01 and change the value in that worksheet."]
[null,"Purple Shading","Indicates (for information only) that the typical of order of Lower and Upper values is intentionally reversed.  This is only used in the second (label) column."]
[null,"Italics, no shading","The value in this cell is generated by a formula (the number that you see is the result of an equation).  This cell is linked only to other cells in the worksheet.  Do not change this value."]
[]
[]
[]
[]
[]
["Color Codes used in Workbook for Risk Characterization Worksheets"]
[null,"HQ ≥ 2","For hazard quotient greater than 2, the number is in bold font with a red background and rounded to the nearest integer."]
[null,"HQ > 1 but < 2","For hazard quotient greater than 1 but less than two, the number is in bold font with a white background and rounded to one significant place after the decimal."]
[null,"HQ ≥ 0.1 but <1","For hazard quotient greater than 0.1 but less than one, the number is in regular font with a white background and rounded to one significant place after the decimal."]
[null,"HQ < 0.1","For hazard quotient less than 0.1, the number is in regular font with a white background.   The number is expressed in scientific notation and rounded to one significant place -- e.g., 2E-02 rather than 0.02."]
[]
[]
[]
[]
[]
[]
[]
[]
[]
[]
[]
[]
[]
[]
[]
[]
[]
[]
[]
[]
[]
[]
[]
[]
[]
[null,"Prepared by:","Joseph Kunes"]
[null,"Program Version:","6.02.20"]
[null,"Database Used:","FS WsMkr V06-02-01.mdb"]
[null,"Template Workbook:","FS WsMkr V06-02-01.mdb"]
[null,"Base Workbook:","FS WSMkr Blank V06-02-01.xlsm"]

{"sheet":"Chemical Notes","index":3,"n_rows":6,"n_cols":4,"rows_kept":6,"cut":false,"hidden":false,"merged":[[0,0,0,2],[1,0,1,2],[1,3,1,5],[2,0,2,2],[2,3,2,4]]}
["Chemical specific notes"]
["Risk Assessment:",null,null,"KTL-2020-HHERA-2020-02.1"]
["Report Date:",null,null,"June 17,2020"]
[]
[]
["The area below is an embedded MS Word Document.  Add chemical-specific notes as appropriate."]

{"sheet":"Revisions","index":4,"n_rows":8,"n_cols":1,"rows_kept":8,"cut":false,"hidden":false,"merged":[]}
["Revision Histroy"]
[]
[]
[]
[]
[]
[]
["The area below is an embedded MS Word Document.  Add revision notes as appropriate."]

{"sheet":"Contents","index":5,"n_rows":73,"n_cols":3,"rows_kept":73,"cut":false,"hidden":false,"merged":[[0,0,0,1]]}
["Table of Contents",null,"Toc"]
["Work-sheet No.","Worksheet Title"]
["TitlePage","Title page"]
["Disclaimer","DISCLAIMER"]
["General Notes","General Notes"]
["Chemical Notes","Chemical specific notes"]
["Revisions","Revision Histroy"]
["Contents","Table of Contents"]
["A01","Program Data: Applcation of liquid formulation to a body of water at a specified target concentration (application rate)."]
["A02a","General reference values and exposure factors used in worksheets."]
["A02b","General reference values and exposure factors used in worksheets."]
["A02c","General reference values and exposure factors used in worksheets."]
["A02d","General reference values and exposure factors used in worksheets."]
["A03","Food items for terrestrial animals"]
["B01","Chemical and Physical Properties for  Flumioxazin Aquatic"]
["B02","Toxicity values for  Flumioxazin Aquatic"]
["B03a","Calculation of Zero-Order Dermal Permeability Rate (Kp) in cm/hour"]
["B03b","Calculation of First-Order Dermal Absorption Rate"]
["B04a","Estimates of Average Concentrations of the Pesticide in Water After Aquatic Applications"]
["B04b","Pond: Concentration of pesticide (liquid formulation) in pond water after an accidental spill"]
["C01","Worker exposure estimates for workers based on the amount handled."]
["C02a","Accidental Dermal Exposure Assessment Using Zero-Order Absorption, Worker, Surface Area, Hands, for 1 minute(s)"]
["C02b","Accidental Dermal Exposure Assessment Using Zero-Order Absorption, Worker, Surface Area, Hands, for 60 minute(s)"]
["C03a","Accidental Dermal Exposure Assessment Using First-Order Absorption, Worker, Surface Area, Hands, for 60 minute(s)"]
["C03b","Accidental Dermal Exposure Assessment Using First-Order Absorption, Worker, Surface Area, Lower legs, for 60 minute(s)"]
["D05","Consumption of contaminated water by Child, Accidental Spill "]
["D06","Consumption of contaminated water by Child, Peak Conentrations "]
["D07","Consumption of contaminated water by Adult Male, Longer-term Conentrations "]
["D08a","Consumption of Contaminated Fish (Accidental Spill), Adult Male, acute exposure"]
["D08b","Consumption of Contaminated Fish (Accidental Spill), Subsistence Populations, acute exposure"]
["D09a","Consumption of Contaminated Fish (Longer-term), Adult Male, chronic exposure"]
["D09b","Consumption of Contaminated Fish (Longer-term), Subsistence Populations, chronic exposure"]
["D09c","Consumption of Contaminated Fish (Peak Exposure), Adult Male, acute exposure"]
["D09d","Consumption of Contaminated Fish (Peak Exposure), Subsistence Populations, acute exposure"]
["D10","Swimming Exposure Assessment Using Zero-Order Absorption, Adult Female, Surface Area, Whole body, for 60 minute(s)"]
["E01","Summary of Worker Exposure Assessments"]
["E02","Summary of Worker Hazard Quotients (Toxicity)"]
["E03","Summary of Exposure Assessments for the General Public"]
["E04","Summary of Hazard Quotients (Toxicity) for the General Public"]
["F02a","Consumption of contaminated water by Mammal, small, Accidental Spill "]
["F02b","Consumption of contaminated water by Mammal, 400 g, Accidental Spill "]
["F02c","Consumption of contaminated water by Mammal, carnivorous, Accidental Spill "]
["F02d","Consumption of contaminated water by Mammal, large, Accidental Spill "]
["F02e","Consumption of contaminated water by Bird, small, Accidental Spill "]
["F02f","Consumption of contaminated water by Bird, large, Accidental Spill "]
["F03a","Acute scenario for the consumption of Contaminated Fish (Accidental Spill) by Mammal, large carnivorous "]
["F03b","Acute scenario for the consumption of Contaminated Fish (Accidental Spill) by Mammal, carnivorous "]
["F03c","Acute scenario for the consumption of Contaminated Fish (Accidental Spill) by Bird, piscivorous "]
["F08a","Consumption of contaminated water by Mammal, small, Peak Concentrations "]
["F08b","Consumption of contaminated water by Mammal, 400 g, Peak Concentrations "]
["F08c","Consumption of contaminated water by Mammal, carnivorous, Peak Concentrations "]
["F08d","Consumption of contaminated water by Mammal, large, Peak Concentrations "]
["F08e","Consumption of contaminated water by Bird, small, Peak Concentrations "]
["F08f","Consumption of contaminated water by Bird, large, Peak Concentrations "]
["F11a","Acute scenario for the consumption of Contaminated Fish (Peak) by Mammal, large carnivorous "]
["F11b","Acute scenario for the consumption of Contaminated Fish (Peak) by Mammal, carnivorous "]
["F11c","Acute scenario for the consumption of Contaminated Fish (Peak) by Bird, piscivorous "]
["F16a","Consumption of contaminated water by Mammal, small, Longer-term Concentrations "]
["F16b","Consumption of contaminated water by Mammal, 400 g, Longer-term Concentrations "]
["F16c","Consumption of contaminated water by Mammal, carnivorous, Longer-term Concentrations "]
["F16d","Consumption of contaminated water by Mammal, large, Longer-term Concentrations "]
["F16e","Consumption of contaminated water by Bird, small, Longer-term Concentrations "]
["F16f","Consumption of contaminated water by Bird, large, Longer-term Concentrations "]
["F17a","Chronic scenario for the consumption of Contaminated Fish (Longer-term) by Mammal, large carnivorous "]
["F17b","Chronic scenario for the consumption of Contaminated Fish (Longer-term) by Mammal, carnivorous "]
["F17c","Chronic scenario for the consumption of Contaminated Fish (Longer-term) by Bird, piscivorous "]
["G01a","Summary of Exposure Assessments for the Mammals"]
["G01b","Summary of Exposure Assessments for the Birds"]
["G02a","Summary of Hazard Quotients (Toxicity) for the Mammals"]
["G02b","Summary of Hazard Quotients (Toxicity) for the Birds"]
["G03","Worksheet G03: Summary of Hazard Quotients for Aquatic Species"]
["G06a","Potential exposure of non-target plants through the use of contaminated irrigation water based on estimates concentrations in ambient water."]
["References","References cited in workbook"]

{"sheet":"A01","index":6,"n_rows":63,"n_cols":5,"rows_kept":63,"cut":false,"hidden":false,"merged":[[59,0,62,0],[0,0,0,4],[3,0,6,0],[12,3,14,3],[15,0,17,0],[24,0,27,0],[28,0,31,0],[39,0,42,0],[43,0,46,0],[47,0,50,0],[51,0,54,0],[55,0,58,0]]}
["Program Data: Applcation of liquid formulation to a body of water at a specified target concentration (application rate)."]
["Parameter/Assumption","Code / Range","Equation/ Value","Units","Reference/Equation"]
["Application Information",null,null,null,"ProgAqPpmLqu"]
["Application Rate","ApRt"]
[null,"Central ",0.4,"ppm (mg/L)","Program Input"]
[null,"Lower ",{"$f":"'A01'!ApRt_C","v":0.4},null,"Program Input"]
[null,"Upper ",{"$f":"'A01'!ApRt_C","v":0.4},null,"Program Input"]
["Number of applications","NAps",1,"unitless","Program Input"]
["Interval between applications","ApIntrv",1,"days","Program Input"]
["Proportion of a.i. in formulation","PropAI",0.44,"unitless (w/w)","Program Input"]
["Bulk Density of Formulation","BulkDens",9.6560000000000006,"lbs formulation/gallon","Program Input"]
["Dilution Volume","DilVol"]
[null,"Central ",4,"total gal per gal formulation","Program Input"]
[null,"Lower ",4,null,"Program Input"]
[null,"Upper ",4,null,"Program Input"]
["Number of significant figures in mg/L concentration.","NSig",2]
[]
[]
["Volume of water treated","NLit",6000000,"Liters","Program Input"]
["Constants "]
["Conversion Factor for lbs/gal to mg/mL","CnvF1",119.8,"mg/mL/lb/gal"]
["Conversion Factor for pounds to mg","CnvF2",453592.27,"mg/pound"]
[]
["Calculated Values"]
["Concentration in field solution (lb a.i./gal)","Concppg","Prop * BulkDens/DilVol"]
[null,"Central ",{"$f":"C$10*C$11/C13","v":1.06216},"lb/gal","Eq"]
[null,"Lower ",{"$f":"C$10*C$11/C15","v":1.06216},null,"Eq"]
[null,"Upper ",{"$f":"C$10*C$11/C14","v":1.06216},null,"Eq"]
["Concentration in field solution (mg/mL)","FldConc","Concppg * CnvF1"]
[null,"Central ",{"$f":"IF(C26>0, DigitRound( C26*C$21, C$16), \"NA\")","v":130},"mg/mL","Eq"]
[null,"Lower ",{"$f":"IF(C27>0, DigitRound( C27*C$21, C$16), \"NA\")","v":130},null,"Eq"]
[null,"Upper ",{"$f":"IF(C28>0, DigitRound( C28*C$21, C$16), \"NA\")","v":130},null,"Eq"]
["mg Applied","mgAp",{"$f":"C19*ApRt_C","v":2400000},"mg  (NLit * ApRt)","Eq"]
["Pounds a.i. handled (mgAp /CnvF2)","lbsHandled",{"$f":"C33/C22","v":5.2910954589239356},"pounds a.i.","Eq"]
["Standard Values/Options for Scenarios (You can change the values below.)"]
["Surface area of pond for spill","PondSA_M",1000,"Sq. Meters","Risk assessment."]
["Pond depth","PondDepthM",1,"Meters","Risk assessment."]
["Duration for longer-term exposures","SubChDays",90,"Days","Risk assessment."]
["Duration for swimming scenarios","SwimMin",60,"Minutes","Risk assessment."]
["Protection factor for workers based on PPE.","WrkProtectFact"]
[null,"Central",0,null,"Risk assessment."]
[null,"Lower",0]
[null,"Upper",0]
["Toxic Equivalency Factor for formulation","TEF"]
[null,"Central",1,null,"Risk assessment."]
[null,"Lower",1]
[null,"Upper",1]
["Worker Exposure Rate","WrkExpRate"]
[null,"Central",2E-3,"Mg/kg bw per lb","Risk assessment."]
[null,"Lower",4.0000000000000002E-4]
[null,"Upper",0.01]
["Drift used in food commody worksheets","DriftToFood"]
[null,"Central",1,null,"Risk assessment."]
[null,"Lower",1]
[null,"Upper",1]
["Amount spilled into ponds","PondSpillVolGal"]
[null,"Central",100,"Gal","Risk assessment."]
[null,"Lower",20]
[null,"Upper",200]
["Field half-life in water body (aquatic apps in lb/acre)","WatBodTD50"]
[null,"Central",9.6000000000000002E-2,"per day","Risk assessment."]
[null,"Lower",1.2999999999999999E-2]
[null,"Upper",4.2]

{"sheet":"A02a","index":7,"n_rows":41,"n_cols":6,"rows_kept":41,"cut":false,"hidden":false,"merged":[[0,0,0,4]]}
["General reference values and exposure factors used in worksheets."]
[]
["Receptor","Factor","Value","Units"," Reference","Reference Note"]
["Adult Female","Body weight",69,"kg","U.S. EPA/OPP 2012","p. 2-1, Table 2-1, mean female adults"]
["Adult Female","Surface Area, Feet and lower Legs",3550,"cm2","U.S. EPA/ORD 2011","p. 7-45, Table 7-13, mean surface area, feet and lower legs = 0.355 m2"]
["Adult Female","Surface Area, Wearing shorts and T-shirt",6810,"cm2","U.S. EPA/ORD 2011","p. 7-45, Table 7-13, total for arms, hands, plus lower legs, and feet"]
["Adult Female","Surface Area, Whole body",17700,"cm2","U.S. EPA/OPP 2012","p. 2-3, Table 2-3, mean female adults"]
["Adult Male","Body weight",86,"kg","U.S. EPA/OPP 2012","p. 2-1, Table 2-1, mean male adults"]
["Subsistence Populations","Body weight",80,"kg","U.S. EPA/OPP 2012","p. 2-1, Table 2-1, mean combined adults"]
["Worker, Aerial Spray","Absorbed dose rate, central estimate",2.0000000000000002E-5,"(mg/kg bw)/(lbs handled per day)","SERA 2014","p. 131, Table 6, all aerial broadcast based on 2,4-D as reference chemical. Central estimate. 490 acres treated per day."]
["Worker, Aerial Spray","Absorbed dose rate, lower range",4.9999999999999998E-7,"(mg/kg bw)/(lbs handled per day)","SERA 2014","p. 131, Table 6, all aerial broadcast based on 2,4-D as reference chemical. Lower prediction interval. 240 acres treated per day."]
["Worker, Aerial Spray","Absorbed dose rate, upper range",8.0000000000000004E-4,"(mg/kg bw)/(lbs handled per day)","SERA 2014","p. 131, Table 6, all aerial broadcast based on 2,4-D as reference chemical. Upper prediction interval. 800 acres treated per day."]
["Worker, Aerial Spray","Hours of application per day, central estimate",7,"Hours per day","USDA 1989a","N/A"]
["Worker, Aerial Spray","Hours of application per day, lower range",6,"Hours per day","USDA 1989a","N/A"]
["Worker, Aerial Spray","Hours of application per day, upper range",8,"Hours per day","USDA 1989a","N/A"]
["Worker, Aerial Spray","Acres treated per hour, central estimate",70,"acres/hour","USDA 1989a","Acres treated per hour"]
["Worker, Aerial Spray","Acres treated per hour, lower range",40,"acres/hour","USDA 1989a","Acres treated per hour"]
["Worker, Aerial Spray","Acres treated per hour, upper range",100,"acres/hour","USDA 1989a","Acres treated per hour"]
["Worker, Backpack","Absorbed dose rate, central estimate",5.0000000000000001E-3,"(mg/kg bw)/(lbs handled per day)","SERA 2014","p. 131, Table 6, backpack directed foliar based on 2,4-D as reference chemical. Central estimate. 4.4 acres treated per day."]
["Worker, Backpack","Absorbed dose rate, lower range",1E-3,"(mg/kg bw)/(lbs handled per day)","SERA 2014","p. 131, Table 6, backpack directed foliar based on 2,4-D as reference chemical. Lower prediction interval. 1.5 acres treated per day."]
["Worker, Backpack","Absorbed dose rate, upper range",0.02,"(mg/kg bw)/(lbs handled per day)","SERA 2014","p. 131, Table 6, backpack directed foliar based on 2,4-D as reference chemical. Upper prediction interval. 8.0 acres treated per day."]
["Worker, Backpack","Hours of application per day, central estimate",7,"Hours per day","USDA 1989a","N/A"]
["Worker, Backpack","Hours of application per day, lower range",6,"Hours per day","USDA 1989a","N/A"]
["Worker, Backpack","Hours of application per day, upper range",8,"Hours per day","USDA 1989a","N/A"]
["Worker, Backpack","Acres treated per hour, central estimate",0.625,"acres/hour","USDA 1989a","Acres treated per hour"]
["Worker, Backpack","Acres treated per hour, lower range",0.25,"acres/hour","USDA 1989a","Acres treated per hour"]
["Worker, Backpack","Acres treated per hour, upper range",1,"acres/hour","USDA 1989a","Acres treated per hour"]
["Child","Body weight",11,"kg","U.S. EPA/OPP 2012","p. 3-9, Table 3-3, children 1 < 2 years old"]
["Child","Surface Area, Whole body",6030,"cm2","U.S. EPA/ORD 1996","p. 6-15, Table 6-6, 50th percentile."]
["Worker, Ground Spray","Absorbed dose rate, central estimate",1E-4,"(mg/kg bw)/(lbs handled per day)","SERA 2014","p. 131, Table 6, broadcast ground foliar based on 2,4-D as reference chemical. Central estimate. 112 acres treated per day."]
["Worker, Ground Spray","Absorbed dose rate, lower range",1.9999999999999999E-6,"(mg/kg bw)/(lbs handled per day)","SERA 2014","p. 131, Table 6, broadcast ground foliar based on 2,4-D as reference chemical. Lower prediction. 66 acres treated per day."]
["Worker, Ground Spray","Absorbed dose rate, upper range",5.0000000000000001E-3,"(mg/kg bw)/(lbs handled per day)","SERA 2014","p. 131, Table 6, broadcast ground foliar based on 2,4-D as reference chemical. Upper prediction.168 acres treated per day."]
["Worker, Ground Spray","Hours of application per day, central estimate",7,"Hours per day","USDA 1989a","N/A"]
["Worker, Ground Spray","Hours of application per day, lower range",6,"Hours per day","USDA 1989a","N/A"]
["Worker, Ground Spray","Hours of application per day, upper range",8,"Hours per day","USDA 1989a","N/A"]
["Worker, Ground Spray","Acres treated per hour, central estimate",16,"acres/hour","USDA 1989a","Acres treated per hour"]
["Worker, Ground Spray","Acres treated per hour, lower range",11,"acres/hour","USDA 1989a","Acres treated per hour"]
["Worker, Ground Spray","Acres treated per hour, upper range",21,"acres/hour","USDA 1989a","Acres treated per hour"]
["Worker","Body weight",86,"kg","U.S. EPA/OPP 2012","p. 2-1, Table 2-1, mean male adults"]
["Worker","Surface Area, Hands",1070,"cm2","U.S. EPA/ORD 2011","p. 7-44, Table 7-12, mean of surface area for hands"]
["Worker","Surface Area, Lower legs",2680,"cm2","U.S. EPA/ORD 2011","p. 7-44, Table 7-12, mean of surface area for lower legs"]

{"sheet":"A02b","index":8,"n_rows":80,"n_cols":6,"rows_kept":80,"cut":false,"hidden":false,"merged":[[0,0,0,4]]}
["General reference values and exposure factors used in worksheets."]
[]
["Receptor","Factor","Value","Units"," Reference","Reference Note"]
["Amphibian","Kilocalories, alpha parameter for allometric equation",5.3999999999999999E-2,"BW(g),Kcal (kcal/day)","U.S. EPA/ORD 1993","p. 3-7, equation 3-14"]
["Amphibian","Kilocalories, beta parameter for allometric equation",0.79900000000000004,"BW(g),Kcal (kcal/day)","U.S. EPA/ORD 1993","p. 3-7, equation 3-14"]
["Amphibian, bull frog","Food consumption, alpha parameter for allometric equation",1.0900000000000001,"BW(g),FC(g)","SERA 2010","Figure 15"]
["Amphibian, bull frog","Food consumption, beta parameter for allometric equation",0.17230000000000001,"BW(g),FC(g)","SERA 2010","Figure 15"]
["Bird, NOS","Food consumption, alpha parameter for allometric equation",0.64800000000000002,"BW(g),FC(g)","U.S. EPA/ORD 1993","Eq. 3-3, p. 3-4, all birds"]
["Bird, NOS","Food consumption, beta parameter for allometric equation",0.65100000000000002,"BW(g),FC(g)","U.S. EPA/ORD 1993","Eq. 3-3, p. 3-4, all birds"]
["Bird, carnivorous","Body weight",0.64,"kg","Dunning 1993","p. 97. Female Spotted Owl (Strix occidentalis).  Range of 548 to 760 g."]
["Bird, carnivorous","Kilocalories, alpha parameter for allometric equation",1.1459999999999999,"BW(g),KCal(kcal/day)","U.S. EPA/ORD 1993","Eq. 3-37, nonpasserines"]
["Bird, carnivorous","Kilocalories, beta parameter for allometric equation",0.749,"BW(g),KCal(kcal/day)","U.S. EPA/ORD 1993","Eq. 3-37, nonpasserines"]
["Bird, carnivorous","Water consumption, alpha parameter for allometric equation",5.8999999999999997E-2,"BW(kg), WC(L)","U.S. EPA/ORD 1993","Eq. 3-15, p. 3-8"]
["Bird, carnivorous","Water consumption, beta parameter for allometric equation",0.67,"BW(kg), WC(L)","U.S. EPA/ORD 1993","Eq. 3-15, p. 3-8"]
["Bird, large","Body weight",4,"kg","Default","Canada goose"]
["Bird, large","Kilocalories, alpha parameter for allometric equation",1.1459999999999999,"BW(g),KCal(kcal/day)","U.S. EPA/ORD 1993","Eq. 3-37, non-passerines"]
["Bird, large","Kilocalories, beta parameter for allometric equation",0.749,"BW(g),KCal(kcal/day)","U.S. EPA/ORD 1993","Eq. 3-37, non-passerines"]
["Bird, large","Water consumption, alpha parameter for allometric equation",5.8999999999999997E-2,"BW(kg), WC(L)","U.S. EPA/ORD 1993","Eq. 3-15, p. 3-8"]
["Bird, large","Water consumption, beta parameter for allometric equation",0.67,"BW(kg), WC(L)","U.S. EPA/ORD 1993","Eq. 3-15, p. 3-8"]
["Bird, non-Passerine","Food consumption, alpha parameter for allometric equation",0.30099999999999999,"BW(g),FC(g)","U.S. EPA/ORD 1993","Eq. 3-5, p. 3-5, non-passerines"]
["Bird, non-Passerine","Food consumption, beta parameter for allometric equation",0.751,"BW(g),FC(g)","U.S. EPA/ORD 1993","Eq. 3-5, p. 3-5, non-passerines"]
["Bird, Passerine","Food consumption, alpha parameter for allometric equation",0.39800000000000002,"BW(g),FC(g)","U.S. EPA/ORD 1993","Eq. 3-4, p. 3-4, passerines"]
["Bird, Passerine","Food consumption, beta parameter for allometric equation",0.85,"BW(g),FC(g)","U.S. EPA/ORD 1993","Eq. 3-4, p. 3-4, passerines"]
["Bird, piscivorous","Body weight",2.4,"kg","Sibley 2000","p. 60. Great Blue Heron"]
["Bird, piscivorous","Food consumption, alpha parameter for allometric equation",0.495,"BW(g), FC(g)","U.S. EPA/ORD 1993","Eq. 3-6, p. 3-5, seabird"]
["Bird, piscivorous","Food consumption, beta parameter for allometric equation",0.70399999999999996,"BW(g), FC(g)","U.S. EPA/ORD 1993","Eq. 3-6, p. 3-5, seabird"]
["Bird, piscivorous","Kilocalories, alpha parameter for allometric equation",1.9159999999999999,"BW(g),KCal(kcal/day)","U.S. EPA/ORD 1993","Eq. 3-38, p. 3-23, seabird"]
["Bird, piscivorous","Kilocalories, beta parameter for allometric equation",0.70399999999999996,"BW(g),KCal(kcal/day)","U.S. EPA/ORD 1993","Eq. 3-38, p. 3-23, seabird"]
["Bird, piscivorous","Water consumption, alpha parameter for allometric equation",5.8999999999999997E-2,"BW(kg), WC(L)","U.S. EPA/ORD 1993","Eq. 3-15, p. 3-8"]
["Bird, piscivorous","Water consumption, beta parameter for allometric equation",0.67,"BW(kg), WC(L)","U.S. EPA/ORD 1993","Eq. 3-15, p. 3-8"]
["Bird, small","Body weight",0.01,"kg","Default","N/A"]
["Bird, small","Kilocalories, alpha parameter for allometric equation",3.12,"BW(g),KCal(kcal/day)","U.S. EPA/ORD 1993","Equation 3-36, passerines"]
["Bird, small","Kilocalories, beta parameter for allometric equation",0.60499999999999998,"BW(g),KCal(kcal/day)","U.S. EPA/ORD 1993","Equation 3-36, passerines"]
["Bird, small","Water consumption, alpha parameter for allometric equation",5.8999999999999997E-2,"BW(kg), WC(L)","U.S. EPA/ORD 1993","Eq. 3-15, p. 3-8"]
["Bird, small","Water consumption, beta parameter for allometric equation",0.67,"BW(kg), WC(L)","U.S. EPA/ORD 1993","Eq. 3-15, p. 3-8"]
["Honeybee","Body weight",1.16E-4,"kg","Winston 1987","p. 54. Arithmetic average of range: 81 to 151 mg/bee."]
["Honeybee","Surface Area, Whole body",1.42,"cm2","Humphery and Dykes 2008","Based on a bee with a body length of 1.44 cm."]
["Mammal, Nos","Food consumption, alpha parameter for allometric equation",0.23499999999999999,"BW(g),FC(g)","U.S. EPA/ORD 1993","Eq. 3-7 ,p. 3-6, all mammals"]
["Mammal, Nos","Food consumption, beta parameter for allometric equation",0.82199999999999995,"BW(g),FC(g)","U.S. EPA/ORD 1993","Eq. 3-7 ,p. 3-6, all mammals"]
["Mammal, 400 g","Body weight",0.4,"kg","Default","N/A"]
["Mammal, 400 g","Food consumption, alpha parameter for allometric equation",0.621,"BW(g),FC(g)","U.S. EPA/ORD 1993","Eq. 3-8, p. 3-6, equation for rodents"]
["Mammal, 400 g","Food consumption, beta parameter for allometric equation",0.56399999999999995,"BW(g),FC(g)","U.S. EPA/ORD 1993","Eq. 3-8, p. 3-6, equation for rodents"]
["Mammal, 400 g","Kilocalories, alpha parameter for allometric equation",2.5139999999999998,"BW(g),KCal(kcal/day)","U.S. EPA/ORD 1993","Equation 3-48, rodent"]
["Mammal, 400 g","Kilocalories, beta parameter for allometric equation",0.50700000000000001,"BW(g),KCal(kcal/day)","U.S. EPA/ORD 1993","Equation 3-48, rodent"]
["Mammal, 400 g","Water consumption, alpha parameter for allometric equation",9.9000000000000005E-2,"BW(kg),WC(L)","U.S. EPA/ORD 1993","Eq. 3-17, p. 3-10, all mammals"]
["Mammal, 400 g","Water consumption, beta parameter for allometric equation",0.9,"BW(kg),WC(L)","U.S. EPA/ORD 1993","Eq. 3-17, p. 3-10, all mammals"]
["Mammal, carnivorous","Body weight",5,"kg","U.S. EPA/ORD 1993","p. 2-221.  Central value for red fox with a range of 3 to 7 kg."]
["Mammal, carnivorous","Kilocalories, alpha parameter for allometric equation",0.61670000000000003,"BW(g),KCal(kcal/day)","U.S. EPA/ORD 1993","Equation 3-47, non-herbivore"]
["Mammal, carnivorous","Kilocalories, beta parameter for allometric equation",0.86199999999999999,"BW(g),KCal(kcal/day)","U.S. EPA/ORD 1993","Equation 3-47, non-herbivore"]
["Mammal, carnivorous","Water consumption, alpha parameter for allometric equation",9.9000000000000005E-2,"BW(kg),WC(L)","U.S. EPA/ORD 1993","Eq. 3-17, p. 3-10, all mammals"]
["Mammal, carnivorous","Water consumption, beta parameter for allometric equation",0.9,"BW(kg), WC(L)","U.S. EPA/ORD 1993","Eq. 3-17, p. 3-10, all mammals"]
["Mammal, large carnivorous","Body weight",70,"kg","Reid 2006"," pp. 451-453.  Black bear or small grizzly."]
["Mammal, large carnivorous","Kilocalories, alpha parameter for allometric equation",0.61670000000000003,"BW(g),KCal(kcal/day)","U.S. EPA/ORD 1993","Equation 3-47, non-herbivore"]
["Mammal, large carnivorous","Kilocalories, beta parameter for allometric equation",0.86199999999999999,"BW(g),KCal(kcal/day)","U.S. EPA/ORD 1993","Equation 3-47, non-herbivore"]
["Mammal, large carnivorous","Water consumption, alpha parameter for allometric equation",9.9000000000000005E-2,"BW(kg),WC(L)","U.S. EPA/ORD 1993","Eq. 3-17, p. 3-10, all mammals"]
["Mammal, large carnivorous","Water consumption, beta parameter for allometric equation",0.9,"BW(kg), WC(L)","U.S. EPA/ORD 1993","Eq. 3-17, p. 3-10, all mammals"]
["Mammal, herbivorous","Food consumption, alpha parameter for allometric equation",0.57699999999999996,"BW(g),FC(g)","U.S. EPA/ORD 1993","Eq. 3-9, p. 3-6, equation for herbivores"]
["Mammal, herbivorous","Food consumption, beta parameter for allometric equation",0.72699999999999998,"BW(g),FC(g)","U.S. EPA/ORD 1993","Eq. 3-9, p. 3-6, equation for herbivores"]
["Mammal, herbivorous","Kilocalories, alpha parameter for allometric equation",1.518,"BW(g),KCal(kcal/day)","U.S. EPA/ORD 1993","Equation 3-46, herbivores"]
["Mammal, herbivorous","Kilocalories, beta parameter for allometric equation",0.73,"BW(g),KCal(kcal/day)","U.S. EPA/ORD 1993","Equation 3-46, herbivores"]
["Mammal, large","Body weight",70,"kg","Default","N/A"]
["Mammal, large","Kilocalories, alpha parameter for allometric equation",1.518,"BW(g),KCal(kcal/day)","U.S. EPA/ORD 1993","p. 3-6, Eq. 3-10, herbivores"]
["Mammal, large","Kilocalories, beta parameter for allometric equation",0.73,"BW(g),KCal(kcal/day)","U.S. EPA/ORD 1993","p. 3-6, Eq. 3-10, herbivores"]
["Mammal, large","Water consumption, alpha parameter for allometric equation",9.9000000000000005E-2,"BW(kg),WC(L)","U.S. EPA/ORD 1993","Eq. 3-17, p. 3-10, all mammals"]
["Mammal, large","Water consumption, beta parameter for allometric equation",0.9,"BW(kg), WC(L)","U.S. EPA/ORD 1993","Eq. 3-17, p. 3-10, all mammals"]
["Mammal, rabbit","Body weight",1.3,"kg","Default","N/A"]
["Mammal, rabbit","Surface Area, alpha parameter for allometric equation",0.11,"BW(kg),SA(m2)","U.S. EPA/ORD 1993","p. 3-14, Eq. 3-22, for all mammals"]
["Mammal, rabbit","Surface Area, beta parameter for allometric equation",0.65,"BW(kg),SA(m2)","U.S. EPA/ORD 1993","p. 3-14, Eq. 3-22, for all mammals"]
["Mammal, rodent","Food consumption, alpha parameter for allometric equation",0.621,"BW(g),FC(g)","U.S. EPA/ORD 1993","Eq. 3-8, p. 3-6, equation for rodents"]
["Mammal, rodent","Food consumption, beta parameter for allometric equation",0.58399999999999996,"BW(g),FC(g)","U.S. EPA/ORD 1993","Eq. 3-8,p. 3-6, equation for rodents"]
["Mammal, small","Body weight",0.02,"kg","Default","N/A"]
["Mammal, small","Caloric content (wet weight)",1.7,"kcal/g  (wet weight)","U.S. EPA/ORD 1993","Table 4-1, p. 4-13. Value for small mammals. Wet weight."]
["Mammal, small","Food consumption, alpha parameter for allometric equation",0.621,"BW(g),FC(g)","U.S. EPA/ORD 1993","Eq. 3-8, p. 3-6, equation for rodents"]
["Mammal, small","Food consumption, beta parameter for allometric equation",0.56399999999999995,"BW(g),FC(g)","U.S. EPA/ORD 1993","Eq. 3-8, p. 3-6, equation for rodents"]
["Mammal, small","Kilocalories, alpha parameter for allometric equation",2.5139999999999998,"BW(g),KCal(kcal/day)","U.S. EPA/ORD 1993","Equation 3-48, rodent"]
["Mammal, small","Kilocalories, beta parameter for allometric equation",0.50700000000000001,"BW(g),KCal(kcal/day)","U.S. EPA/ORD 1993","Equation 3-48, rodent"]
["Mammal, small","Surface Area, alpha parameter for allometric equation",0.11,"BW(kg),SA(m2)","U.S. EPA/ORD 1993","p. 3-14, Eq. 3-22, for all mammals"]
["Mammal, small","Surface Area, beta parameter for allometric equation",0.65,"BW(kg),SA(m2)","U.S. EPA/ORD 1993","p. 3-14, Eq. 3-22, for all mammals"]
["Mammal, small","Water consumption, alpha parameter for allometric equation",9.9000000000000005E-2,"BW(kg),WC(L)","U.S. EPA/ORD 1993","Eq. 3-17, p. 3-10, all mammals"]
["Mammal, small","Water consumption, beta parameter for allometric equation",0.9,"BW(kg),WC(L)","U.S. EPA/ORD 1993","Eq. 3-17, p. 3-10, all mammals"]

{"sheet":"A02c","index":9,"n_rows":24,"n_cols":6,"rows_kept":24,"cut":false,"hidden":false,"merged":[[0,0,0,4]]}
["General reference values and exposure factors used in worksheets."]
[]
["Receptor","Factor","Value","Units"," Reference","Reference Note"]
["Small Insects","Caloric content (wet weight)",1.5,"kcal/g (wet weight)","U.S. EPA/ORD 1993","Table 4-1, p. 4-13.  Value for beetles. Wet weight"]
["Fish","Caloric content (wet weight)",1.2,"kcal/g (wet weight)","U.S. EPA/ORD 1993","Table 4-1, p. 4-13.  Value for bony fish. Wet weight"]
["Vegetation","Caloric content (dry weight)",2.2599999999999998,"kcal/g","U.S. EPA/ORD 1993","p. 3-5, Table 3-1"]
["Vegetation","Water content (proportion)",0.85,"unitless","U.S. EPA/ORD 1993","p. 4-14"]
["VegRR","Broadleaf/forage plants and small insects, central estimate",45,"mg chem/kg veg","Fletcher et al. 1994","Broadleaf/forage plants and small insects"]
["VegRR","Broadleaf/forage plants and small insects, upper range",135,"mg chem/kg veg","Fletcher et al. 1994","Broadleaf/forage plants and small insects"]
["VegRR","Fruits, pods, seeds, and large insects, central estimate",7,"mg chem/kg veg","Fletcher et al. 1994","Fruits, pods, seeds, and large insects"]
["VegRR","Fruits, pods, seeds, and large insects, upper range",15,"mg chem/kg veg","Fletcher et al. 1994","Fruits, pods, seeds, and large insects"]
["VegRR","Broadleaf plants and small insects, granular applications, central estimate",1.8,"mg chem/kg veg","SERA 2005","Broadleaf forage plants and contaminated insects after granular application"]
["VegRR","Broadleaf plants and small insects, granular applications, upper range",5.4,"mg chem/kg veg","SERA 2005","Broadleaf forage plants and contaminated insects after granular application"]
["VegRR","Fruits, granular applications, central estimate",0.28000000000000003,"mg chem/kg veg","SERA 2005","Fruit after granular application"]
["VegRR","Fruits, granular applications, upper range",0.6,"mg chem/kg veg","SERA 2005","Fruit after granular application"]
["VegRR","Short grass, granular applications, lower range",1.2,"mg chem/kg veg","SERA 2005","Short grass after granular application"]
["VegRR","Short grass, granular applications, upper range",9.6,"mg chem/kg veg","SERA 2005","Short grass after granular application"]
["VegRR","Tall grass, granular applications, central estimate",1.44,"mg chem/kg veg","SERA 2005","Tall grass after granular application"]
["VegRR","Tall grass, granular applications, upper range",4.4000000000000004,"mg chem/kg veg","SERA 2005","Tall grass after granular application"]
["VegRR","Short grass, central estimate",85,"mg chem/kg veg","Fletcher et al. 1994","Short grass"]
["VegRR","Short grass, lower range",30,"mg chem/kg veg","SERA 2007","Short grass"]
["VegRR","Short grass, upper range",240,"mg chem/kg veg","Fletcher et al. 1994","Short grass"]
["VegRR","Tall grass, central estimate",36,"mg chem/kg veg","Fletcher et al. 1994","Tall grass"]
["VegRR","Tall grass, upper range",110,"mg chem/kg veg","Fletcher et al. 1994","Tall grass"]

{"sheet":"A02d","index":10,"n_rows":24,"n_cols":6,"rows_kept":24,"cut":false,"hidden":false,"merged":[[0,0,0,4]]}
["General reference values and exposure factors used in worksheets."]
[]
["Receptor","Factor","Value","Units"," Reference","Reference Note"]
["Conversion Factors","acrefoot2gal",325900,"gal/acre-foot","Budavari  1989","N/A"]
["Conversion Factors","liters per gal",3.7850000000000001,"L/gal","Budavari  1989","N/A"]
["Conversion Factors","pound per milligram",453600,"mg/lb","Budavari  1989","N/A"]
["Conversion Factors","lbac2mgcm2",1.1209999999999999E-2,"mg/cm2 per lb/acre","Budavari  1989","N/A"]
["Conversion Factors","lbac2ugcm2",11.21,"ug/cm2 per lb/acre","Budavari  1989","N/A"]
["Conversion Factors","conversion for milligrams to pounds",2.204E-6,"lb/mg","Budavari  1989","N/A"]
["Conversion Factors","conversion for milliliters to gallons",3785,"ml/gal","Budavari  1989","N/A"]
["Misc","Liquid adhering to skin",8.0000000000000002E-3,"mL/cm2","Mason and Johnson 1987","Weight of liquid adhering to surface of skin after a spill"]
["Misc","Dislodgeable residue as proportion",0.1,"none","Harris and Solomon 1992","Estimate of dislodgeable residue as a proportion of application rate shortly after application based on 2,4-D."]
["Standard Pond","Depth",1,"m","Default","Depth of pond"]
["Standard Pond","Surface Area",1000,"m^2","Default","Surface Area"]
["Standard Pond","Volume of Spill ",200,"gallons","Default","Volume of spill"]
["VegRR","Broadleaf/forage plants and small insects, lower range",15,"mg chem/kg veg","SERA 2007","Broadleaf/forage plants and small insects"]
["VegRR","Fruits, pods, seeds, and large insects, lower range",3.2,"mg chem/kg veg","SERA 2007","Fruits, pods, seeds, and large insects"]
["VegRR","Broadleaf plants and small insects, granular applications, lower range",0.6,"mg chem/kg veg","SERA 2007","Broadleaf/forage plants after granular application"]
["VegRR","Fruits, granular applications, lower range",0.13,"mg chem/kg veg","SERA 2007","Fruit after granular application"]
["VegRR","Short grass, granular applications, central estimate",3.4,"mg chem/kg veg","SERA 2005","Short grass after granular application"]
["VegRR","Short grass, granular applications, lower range",1.2,"mg chem/kg veg","SERA 2007","Short grass after granular application"]
["VegRR","Tall grass, granular applications, lower range",0.48,"mg chem/kg veg","SERA 2007","Tall grass after granular application"]
["VegRR","Short grass, lower range",30,"mg chem/kg veg","Fletcher et al. 1994","Short grass"]
["VegRR","Tall grass, lower range",12,"mg chem/kg veg","SERA 2007","Tall grass"]

{"sheet":"A03","index":11,"n_rows":66,"n_cols":8,"rows_kept":66,"cut":false,"hidden":false,"merged":[[0,0,0,6]]}
["Food items for terrestrial animals"]
[]
["Receptor","Consumer","Qualifier","Modifier","Value","Units"," Reference","Reference Note"]
["Adult Female","Fish","Amount","central estimate",0.01,"kg/day","U.S. EPA/ORD 1996","p. 10-51, average of means from four studies rounded to one significant place."]
["Adult Female","Fish","Amount","upper range",0.158,"kg/day","Ruffle et al. 1994","N/A"]
["Adult Female","Fruit","Proportion of body weight","central estimate",1.6800000000000001E-3,"kg fruit/kg bw/day","U.S. EPA/ORD 1996","Table 9-3, p. 9-11, mean value."]
["Adult Female","Fruit","Proportion of body weight","lower range",1.6800000000000001E-3,"kg fruit/kg bw/day","U.S. EPA/ORD 1996","Table 9-3, p. 9-11. The 5th percentile is given as zero.  For these worksheets, the central estimate is used for the lower bound."]
["Adult Female","Fruit","Proportion of body weight","upper range",1.244E-2,"kg fruit/kg bw/day","U.S. EPA/ORD 1996","Table 9-3, p. 9-11, 95th percentile value."]
["Adult Female","Vegetation, home grown","Proportion of body weight","central estimate",7.6000000000000004E-4,"kg veg/kg bw/day","U.S. EPA/ORD 1996","Table 12-15, p. 9-14, mean for individuals between 20 and 39 years old."]
["Adult Female","Vegetation, home grown","Proportion of body weight","lower range",8.0000000000000007E-5,"kg veg/kg bw/day","U.S. EPA/ORD 1996","Table 12-15, p. 9-14, 5th percentile for individuals between 20 and 39 years old."]
["Adult Female","Vegetation, home grown","Proportion of body weight","upper range",4.9199999999999999E-3,"kg veg/kg bw/day","U.S. EPA/ORD 1996","Table 12-15, p. 9-14, 95th percentile for individuals between 20 and 39 years old."]
["Adult Female","Vegetation","Amount","Extreme",0.45400000000000001,"kg food","U.S. EPA/ORD 1996","1 lb.  The approximate mid range of the above typical and upper limits based on the 64 kg body weight."]
["Adult Female","Vegetation","Proportion of body weight","central estimate",3.5999999999999999E-3,"kg veg/kg bw/day","U.S. EPA/ORD 1996","Table 9-12, p. 9-12, mean."]
["Adult Female","Vegetation","Proportion of body weight","lower range",7.5000000000000002E-4,"kg veg/kg bw/day","U.S. EPA/ORD 1996","Table 9-12, p. 9-12, 5th percentile."]
["Adult Female","Vegetation","Proportion of body weight","upper range",0.01,"kg veg/kg bw/day","U.S. EPA/ORD 1996","Table 9-12, p. 9-12, 95th percentile."]
["Adult Female","Water","Amount","central estimate",2,"L/day","U.S. EPA/ORD 1996","p. 3-28, Table 3-30, midpoint of mean (1.4 L/day) and 90th percentile (2.4 L/day) rounded to one significant place."]
["Adult Female","Water","Amount","lower range",1.4,"L/day","U.S. EPA/ORD 1996","p. 3-28, Table 3-30, mean"]
["Adult Female","Water","Amount","upper range",2.4,"L/day","U.S. EPA/ORD 1996","p. 3-28, Table 3-30, 90th percentile"]
["Adult Male","Fish","Amount","central estimate",0.01,"kg/day","U.S. EPA/ORD 1996","p. 10-51, average of means from four studies rounded to one significant place."]
["Adult Male","Fish","Amount","upper range",0.158,"kg/day","Ruffle et al. 1994","N/A"]
["Adult Male","Fruit","Proportion of body weight","central estimate",1.6800000000000001E-3,"unitless","U.S. EPA/ORD 1996","Table 9-3, p. 9-11, mean value."]
["Adult Male","Fruit","Proportion of body weight","lower range",1.6800000000000001E-3,"unitless","U.S. EPA/ORD 1996","Table 9-3, p. 9-11. The 5th percentile is given as zero.  For these worksheets, the central estimate is used for the lower bound."]
["Adult Male","Fruit","Proportion of body weight","upper range",1.244E-2,"unitless","U.S. EPA/ORD 1996","Table 9-3, p. 9-11, 95th percentile value."]
["Adult Male","Vegetation, home grown","Proportion of body weight","central estimate",7.6000000000000004E-4,"unitless","U.S. EPA/ORD 1996","Table 12-15, p. 9-14, mean for individuals between 20 and 39 years old."]
["Adult Male","Vegetation, home grown","Proportion of body weight","lower range",8.0000000000000007E-5,"unitless","U.S. EPA/ORD 1996","Table 12-15, p. 9-14, 5th percentile for individuals between 20 and 39 years old."]
["Adult Male","Vegetation, home grown","Proportion of body weight","upper range",4.9199999999999999E-3,"unitless","U.S. EPA/ORD 1996","Table 12-15, p. 9-14, 95th percentile for individuals between 20 and 39 years old."]
["Adult Male","Vegetation","Amount","Extreme",0.45400000000000001,"kg/day","U.S. EPA/ORD 1996","1 lb.  The approximate mid range of the above typical and upper limits based on the 64 kg body weight."]
["Adult Male","Vegetation","Proportion of body weight","central estimate",3.5999999999999999E-3,"unitless","U.S. EPA/ORD 1996","Table 9-12, p. 9-12, mean."]
["Adult Male","Vegetation","Proportion of body weight","lower range",7.5000000000000002E-4,"unitless","U.S. EPA/ORD 1996","Table 9-12, p. 9-12, 5th percentile."]
["Adult Male","Vegetation","Proportion of body weight","upper range",0.01,"unitless","U.S. EPA/ORD 1996","Table 9-12, p. 9-12, 95th percentile."]
["Adult Male","Water","Amount","central estimate",2,"L/day","U.S. EPA/ORD 1996","p. 3-28, Table 3-30, midpoint of mean (1.4 L/day) and 90th percentile (2.4 L/day) rounded to one significant place."]
["Adult Male","Water","Amount","lower range",1.4,"L/day","U.S. EPA/ORD 1996","p. 3-28, Table 3-30, mean"]
["Adult Male","Water","Amount","upper range",2.4,"L/day","U.S. EPA/ORD 1996","p. 3-28, Table 3-30, 90th percentile"]
["Subsistence Populations","Fish","Amount","central estimate",8.1000000000000003E-2,"kg/day","U.S. EPA/ORD 1996","p. 10-51, median value of 94 individuals"]
["Subsistence Populations","Fish","Amount","upper range",0.77,"kg/day","U.S. EPA/ORD 1993","p. 10-51, highest value of 94 individuals"]
["Bird, NOS","Fish","Kilocalories","FoodVal",3.87,"Kcal/gram (dw)","U.S. EPA/ORD 1993","Table 3-1, p. 3-5"]
["Bird, NOS","Fish","Wat","FoodVal",0.7,"Unitless","Ali et al. 2005","N/A"]
["Bird, NOS","Fruit","Kilocalories","FoodVal",1.1000000000000001,"Kcal/gram (dw)","U.S. EPA/ORD 1993","Gross caloric value of 2.2 kcal/g dw (U.S. EPA/ORD 1993, Table 4-2) with assim fact of 0.51"]
["Bird, NOS","Fruit","Wat","FoodVal",0.77,"Unitless","U.S. EPA/ORD 1993","Table 4-2, p. 4-14"]
["Bird, NOS","Insect","Kilocalories","FoodVal",4.3,"Kcal/gram (dw)","U.S. EPA/ORD 1993","Table 4-2, p. 4-14"]
["Bird, NOS","Insect","Wat","FoodVal",0.7,"Unitless","Chapman 1998","Typrical range 60-80%"]
["Bird, NOS","Vegetation","Kilocalories","FoodVal",2,"Kcal/gram (dw)","U.S. EPA/ORD 1993","gross caloric value of 4.2 kcal/g dw for dicot leaves (U.S. EPA/ORD 1993, Table 4-2) with assim fact of 0.47"]
["Bird, NOS","Vegetation","Wat","FoodVal",0.85,"Unitless","U.S. EPA/ORD 1993","Table 4-2, p. 4-14"]
["Child","Water","Amount","central estimate",1,"L/day","U.S. EPA/ORD 1996","p. 3-28, Table 3-30, midpoint of mean (0.61L/day) and 90th percentile (1.5 L/day) rounded to one significant place."]
["Child","Water","Amount","lower range",0.61,"L/day","U.S. EPA/ORD 1996","p. 3-28, Table 3-30, mean"]
["Child","Water","Amount","upper range",1.5,"L/day","U.S. EPA/ORD 1996","p. 3-28, Table 3-30, 90th percentile"]
["Herbivorous Insect","Broadleaf/Small Insects","Proportion of body weight","central estimate",1.3,"kg food/kg bw/day","Waldbauer 1968","N/A"]
["Herbivorous Insect","Broadleaf/Small Insects","Proportion of body weight","lower range",0.6,"kg food/kg bw/day","Reichle et al. 1973","N/A"]
["Herbivorous Insect","Broadleaf/Small Insects","Proportion of body weight","upper range",2.2000000000000002,"kg food/kg bw/day","Waldbauer 1968","N/A"]
["Herbivorous Insect","Fruit","Proportion of body weight","central estimate",1.3,"kg food/kg bw/day","Waldbauer 1968","N/A"]
["Herbivorous Insect","Fruit","Proportion of body weight","lower range",0.6,"kg food/kg bw/day","Reichle et al. 1973","N/A"]
["Herbivorous Insect","Fruit","Proportion of body weight","upper range",2.2000000000000002,"kg food/kg bw/day","Waldbauer 1968","N/A"]
["Herbivorous Insect","Short grass","Proportion of body weight","central estimate",1.3,"kg food/kg bw/day","Waldbauer 1968","N/A"]
["Herbivorous Insect","Short grass","Proportion of body weight","lower range",0.6,"kg food/kg bw/day","Reichle et al. 1973","N/A"]
["Herbivorous Insect","Short grass","Proportion of body weight","upper range",2.2000000000000002,"kg food/kg bw/day","Waldbauer 1968","N/A"]
["Herbivorous Insect","Tall Grass","Proportion of body weight","central estimate",1.3,"kg food/kg bw/day","Waldbauer 1968","N/A"]
["Herbivorous Insect","Tall Grass","Proportion of body weight","lower range",0.6,"kg food/kg bw/day","Reichle et al. 1973","N/A"]
["Herbivorous Insect","Tall Grass","Proportion of body weight","upper range",2.2000000000000002,"kg food/kg bw/day","Waldbauer 1968","N/A"]
["Mammal, Nos","Fish","Kilocalories","FoodVal",4.47,"Kcal/gram (dw)","U.S. EPA/ORD 1993","Table 3-1, p. 3-5"]
["Mammal, Nos","Fish","Wat","FoodVal",0.7,"Unitless","Ali et al. 2005","N/A"]
["Mammal, Nos","Fruit","Kilocalories","FoodVal",1.1000000000000001,"Kcal/gram (dw)","U.S. EPA/ORD 1993","Gross caloric value of 2.2 kcal/g dw (U.S. EPA/ORD 1993, Table 4-2) with assim fact of 0.51"]
["Mammal, Nos","Fruit","Wat","FoodVal",0.77,"Unitless","U.S. EPA/ORD 1993","Table 4-2, p. 4-14"]
["Mammal, Nos","Insect","Kilocalories","FoodVal",4.47,"Kcal/gram (dw)","U.S. EPA/ORD 1993","Table 4-2, p. 4-14"]
["Mammal, Nos","Insect","Wat","FoodVal",0.7,"Unitless","Chapman 1998","Typrical range 60-80%"]
["Mammal, Nos","Vegetation","Kilocalories","FoodVal",2.2599999999999998,"Kcal/gram (dw)","U.S. EPA/ORD 1993","Table 3-1, p. 3-5"]
["Mammal, Nos","Vegetation","Wat","FoodVal",0.85,"Unitless","U.S. EPA/ORD 1993","Table 4-2, p. 4-14"]

{"sheet":"B01","index":12,"n_rows":22,"n_cols":5,"rows_kept":22,"cut":false,"hidden":false,"merged":[[0,0,0,4]]}
["Chemical and Physical Properties for  Flumioxazin Aquatic"]
[]
["Property","Receptor","Value","Units","Document Reference"]
["Bioconcentration Factor (BCF), edible, acute","N/A",22.4,"L/kg fish","EPA 2012"]
["Bioconcentration Factor (BCF), edible, chronic","N/A",22.4,"L/kg fish","EPA 2012"]
["Bioconcentration Factor (BCF), whole fish, acute","N/A",22.4,"L/kg fish","EPA 2012"]
["Bioconcentration Factor (BCF), whole fish, chronic","N/A",22.4,"L/kg fish","EPA 2012"]
["Kow (Octanol-water partition coefficient)","N/A",355,"unitless","U.S. EPA/OPP 2012"]
["Molecular weight","N/A",354.34,"grams/mole","U.S. EPA/OPP 2012"]
["Water Solubility","N/A",1.8,"mg/L","U.S. EPA/OPP 2012"]
["First order dermal absorption rate (ka), central estimate","N/A",1.24E-3,"per hour","Calculated using “Adding Pesticides Attachment 1…” "]
["First order dermal absorption rate (ka), lower range","N/A",5.2599999999999999E-4,"per hour","Calculated using “Adding Pesticides Attachment 1…” "]
["First order dermal absorption rate (ka), upper range","N/A",2.9399999999999999E-3,"per hour","Calculated using “Adding Pesticides Attachment 1…” "]
["Dermal permeability (Kp), central estimate","N/A",7.8899999999999999E-4,"cm/hour","Calculated using “Adding Pesticides Attachment 1…” "]
["Dermal permeability (Kp), lower range","N/A",4.9899999999999999E-4,"cm/hour","Calculated using “Adding Pesticides Attachment 1…” "]
["Dermal permeability (Kp), upper range","N/A",1.25E-3,"cm/hour","Calculated using “Adding Pesticides Attachment 1…” "]
["Halftime, central estimate","Fruit",5.8,"days","Juraske et al. (2008) "]
["Halftime, lower range","Fruit",5.8,"days","Juraske et al. (2008) "]
["Halftime, upper range","Fruit",5.8,"days","Juraske et al. (2008) "]
["Halftime, central estimate","Vegetation",5.8,"days","Juraske et al. (2008) "]
["Halftime, lower range","Vegetation",5.8,"days","Juraske et al. (2008) "]
["Halftime, upper range","Vegetation",5.8,"days","Juraske et al. (2008) "]

{"sheet":"B02","index":13,"n_rows":26,"n_cols":7,"rows_kept":26,"cut":false,"hidden":false,"merged":[[0,0,0,6]]}
["Toxicity values for  Flumioxazin Aquatic"]
[]
["Receptor","Receptor","Qualifier","Endpoint","Value","Units","Document Reference"]
["Human","acute","N/A","Reference Dose (RfD)",6.3E-2,"mg/kg bw","N/A"]
["Human","chronic","N/A","Reference Dose (RfD)",0.02,"mg/kg bw/day","EPA 2012 (Table 4.5.1, page 19)\rMRID 44295028"]
["Adult Female","acute","N/A","Reference Dose (RfD)",0.03,"mg/kg bw/day","EPA 2012 (Table 4.5.1, page 19)\rMRID 42684925"]
["Mammal, Nos","acute","N/A","NOAEL",3,"mg/kg bw","MRID 42684925"]
["Mammal, Nos","chronic","N/A","NOAEL",1.8,"mg/kg bw/day","MRID 44295028"]
["Bird, NOS","acute","N/A","NOAEL",1728,"mg/kg bw","MRID 42684946"]
["Bird, NOS","chronic","N/A","NOAEL",32.799999999999997,"mg/kg bw/day","MRID 44295005\r"]
["Honeybee","acute","N/A","NOAEL",905,"mg/kg bw","MRID 42684951"]
["Terrestrial plant","Vegetative vigor","sensitive species","NOAEL",5.0000000000000002E-5,"lb/acre","MRID 44295030"]
["Terrestrial plant","Vegetative vigor","tolerant species","NOAEL",6.0000000000000001E-3,"lb/acre","MRID 44295030"]
["Terrestrial plant","Seedling Emergence","sensitive species","NOAEL",4.0000000000000002E-4,"lb/acre","MRID 44295029"]
["Terrestrial plant","Seedling Emergence","tolerant species","NOAEL",9.6000000000000002E-2,"lb/acre","MRID 44295029"]
["Aquatic invertebrate","acute","sensitive species","NOAEC",0.01,"mg/L","MRID 44295009"]
["Aquatic invertebrate","acute","tolerant species","NOAEC",0.27,"mg/L","MRID 42684950"]
["Aquatic invertebrate","chronic","sensitive species","NOAEC",1.4999999999999999E-2,"mg/L","MRID 44295013"]
["Aquatic invertebrate","chronic","tolerant species","NOAEC",2.8000000000000001E-2,"mg/L","MRID 44295011"]
["Fish","acute","sensitive species","NOAEC",0.92,"mg/L","MRID 42684948"]
["Fish","acute","tolerant species","NOAEC",4.7,"mg/L","MRID 44295010"]
["Fish","chronic","sensitive species","NOAEC",5.1000000000000004E-4,"mg/L","MRID 49733408"]
["Fish","chronic","tolerant species","NOAEC",7.7000000000000002E-3,"mg/L","MRID 44295012"]
["Algae","N/A","sensitive species","NOAEC",2.1999999999999999E-5,"mg/L","MRID 44295034"]
["Algae","N/A","tolerant species","NOAEC",1.9E-3,"mg/L","MRID 44295033"]
["Macrophyte, aquatic","N/A","sensitive species","NOAEC",2.2000000000000001E-4,"mg/L","MRID 44295035"]

{"sheet":"B03a","index":14,"n_rows":28,"n_cols":5,"rows_kept":28,"cut":false,"hidden":false,"merged":[[24,0,27,0],[0,0,0,4],[1,1,1,3],[5,0,7,0],[9,0,12,0],[20,0,23,0]]}
["Calculation of Zero-Order Dermal Permeability Rate (Kp) in cm/hour"]
["Short Title","Calculation of Kp",null,null,"ChemDrmKp"]
["Parameter/Assumption","Code / Range","Equation/   Value","Units","Reference/Designation"]
["Molecular weight","MW",{"$f":"'B01'!$C$9","v":354.34},"g/mole","U.S. EPA/OPP 2012"]
["Ko/w","Kow",{"$f":"'B01'!$C$8","v":355},"unitless","U.S. EPA/OPP 2012"]
["Vector a[]","a[1]",1]
[null,"a[2]",{"$f":"C4","v":354.34}]
[null,"a[3]",{"$f":"LOG10(C5)","v":2.5502283530550942}]
["Transpose of a[] (a')",{"$f":"$C$6","v":1},{"$f":"$C$7","v":354.34},{"$f":"$C$8","v":2.5502283530550942}]
["X'X Cross Product Matrix","X'X"]
[null,5.5931000000000002E-2,-9.4154599999999995E-5,-1.0344300000000001E-2]
[null,-9.4154599999999995E-5,5.9780000000000002E-7,-2.22508E-5]
[null,-1.0344300000000001E-2,-2.22508E-5,7.40677E-3]
["a'X'X a","a'X'X a",{"$f":"MMULT(B9:D9,MMULT(B11:D13, C6:C8))","v":1.9460110291214441E-2}]
["Coefficients for model"]
["Intercept","K0",-2.7257600000000002]
["Coeff for MW","K1",-6.1510000000000002E-3]
["Coeff for Log10(Kow)","K2",0.70664800000000005]
["Standard deviation of model","s",0.72712900000000003]
["Critical value at 0.025 with 87 d.f.","t0.025",1.96]
["Log10 of Estimated dermal permeability rate (Kp)","Log(Kp) = ","K0 + K1  MW + K2 Log10(Kow) "]
[null,"Central",{"$f":" $C$16 + ($C$17*$C$4) + ($C$18*LOG10($C$5))","v":-3.1031915747703236},null,"Eq"]
[null,"Lower 95% CI",{"$f":"$C$22 - ($C$20 * $C$19 * ($C$14^0.5))","v":-3.3020024722961154},null,"Eq"]
[null,"Upper 95% CI",{"$f":"$C$22 + ($C$20 * $C$19 * ($C$14^0.5))","v":-2.9043806772445317},null,"Eq"]
["Estimated dermal permeability rate (Kp)","Kp = ","10Log(Kp)"]
[null,"Central",{"$f":"10^C22","v":7.8851221458277061E-4},"cm/hour","Eq"]
[null,"Lower 95% CI",{"$f":"10^C23","v":4.9888164748225212E-4},null,"Eq"]
[null,"Upper 95% CI",{"$f":"10^C24","v":1.2462906095745761E-3},null,"Eq"]

{"sheet":"B03b","index":15,"n_rows":28,"n_cols":5,"rows_kept":28,"cut":false,"hidden":false,"merged":[[24,0,27,0],[0,0,0,4],[1,1,1,3],[5,0,7,0],[9,0,12,0],[20,0,23,0]]}
["Calculation of First-Order Dermal Absorption Rate"]
["Short Title","Calculation of ka",null,null,"ChemDrmKa"]
["Parameter/Assumption","Code / Range","Equation/   Value","Units","Reference/Designation"]
["Molecular weight","MW",{"$f":"'B01'!$C$9","v":354.34},"g/mole","U.S. EPA/OPP 2012"]
["Ko/w","Kow",{"$f":"'B01'!$C$8","v":355},"unitless","U.S. EPA/OPP 2012"]
["Vector a[]","a[1]",1]
[null,"a[2]",{"$f":"C4","v":354.34}]
[null,"a[3]",{"$f":"LOG10(C5)","v":2.5502283530550942}]
["Transpose of a[] (a')",{"$f":"$C$6","v":1},{"$f":"$C$7","v":354.34},{"$f":"$C$8","v":2.5502283530550942}]
["X'X Cross Product Matrix","X'X"]
[null,0.307537,-1.03089E-3,8.2276899999999993E-3]
[null,-1.03089E-3,4.3769999999999998E-6,-9.4435899999999995E-5]
[null,8.2276899999999993E-3,-9.4435899999999995E-5,8.5286000000000008E-3]
["a'X'X a","a'X'X a",{"$f":"MMULT(B9:D9,MMULT(B11:D13, C6:C8))","v":5.3286667013918494E-2}]
["Coefficients for model"]
["Intercept","K0",-1.4961500000000001]
["Coeff for MW","K1",-5.6569999999999997E-3]
["Coeff for Log10(Kow)","K2",0.23325499999999999]
["Standard deviation of model","s",0.78721799999999997]
["Critical value at 0.025 with 26 d.f.","t0.025",2.056]
["Log10 of Estimated first-order absorption rate","Log(ka) = ","K0 + K1  MW + K2 Log10(Kow) "]
[null,"Central",{"$f":"  $C$16 + ($C$17*$C$4) + ($C$18*LOG10($C$5))","v":-2.9057978655081338},null,"Eq"]
[null,"Lower 95% CI",{"$f":"$C$22 - ($C$20 * $C$19 * ($C$14^0.5))","v":-3.2794155327602637},null,"Eq"]
[null,"Upper 95% CI",{"$f":"$C$22 + ($C$20 * $C$19 * ($C$14^0.5))","v":-2.5321801982560039},null,"Eq"]
["Estimated first-order absorption rate","ka = ","10Log(ka)"]
[null,"Central",{"$f":"10^C22","v":1.242230346653495E-3},"hour-1","Eq"]
[null,"Lower 95% CI",{"$f":"10^C23","v":5.2551421401100904E-4},null,"Eq"]
[null,"Upper 95% CI",{"$f":"10^C24","v":2.9364310098651996E-3},null,"Eq"]

{"sheet":"B04a","index":16,"n_rows":40,"n_cols":5,"rows_kept":40,"cut":false,"hidden":false,"merged":[[22,0,25,0],[26,0,29,0],[32,0,35,0],[36,0,39,0],[0,0,0,4],[3,0,6,0],[7,0,10,0],[14,0,17,0],[18,0,21,0],[20,3,21,3]]}
["Estimates of Average Concentrations of the Pesticide in Water After Aquatic Applications"]
["Parameter/Assumption","Code / Range","Equation/   Value","Units","EECAqPpmV6"]
["Application"]
["Target Concentration","C0",null,null,"EECAqPpmV6"]
[null,"Central ",{"$f":"'A01'!ApRt_C","v":0.4},"ppm (mg/L)","Worksheet A01"]
[null,"Lower ",{"$f":"'A01'!ApRt_C","v":0.4},null,"Worksheet A01"]
[null,"Upper ",{"$f":"'A01'!ApRt_C","v":0.4},null,"Worksheet A01"]
["Toxic Equivalency Factor for formulation:  (See risk assessment if this has a value other than 1.)","TEF"]
[null,"Central ",{"$f":"'A01'!C$45","v":1},"Unitless","Worksheet A01"]
[null,"Lower ",{"$f":"'A01'!C$46","v":1},null,"Worksheet A01"]
[null,"Upper ",{"$f":"'A01'!C$47","v":1},null,"Worksheet A01"]
["Number of applications","n",{"$f":"'A01'!C$8","v":1},"unitless","Worksheet A01"]
["Interval between applications","intv",{"$f":"'A01'!C$9","v":1},"days","Worksheet A01"]
["Calculation of Peak Concentrations",null,20]
["Field Dissipation Half-life in Water Body","Halflife"]
[null,"Central ",{"$f":"'A01'!C$61","v":9.6000000000000002E-2},"Days","Worksheet A01"]
[null,"Lower ",{"$f":"'A01'!C$62","v":1.2999999999999999E-2},null,"Worksheet A01"]
[null,"Upper ",{"$f":"'A01'!C$63","v":4.2},null,"Worksheet A01"]
["Decay Coefficient","k","Ln(2)/Halflife"]
[null,"Central ",{"$f":"LN(2)/C16","v":7.2202831308327635},"Days-1","Eq"]
[null,"Upper ",{"$f":"LN(2)/C17","v":53.319013889226561},null,"Eq"]
[null,"Lower ",{"$f":"LN(2)/C18","v":0.16503504299046315},null,"Eq"]
["Proportion remaining at end of each application interval","p","exp( -k ×  intv)"]
[null,"Central ",{"$f":"EXP(-C20*C$13)","v":7.3159525238119226E-4},"proportion","Eq"]
[null,"Lower ",{"$f":"EXP(-C21*C$13)","v":6.9798563939539473E-24},null,"Eq"]
[null,"Upper ",{"$f":"EXP(-C22*C$13)","v":0.84786399187753514},null,"Eq"]
["Peak Concentrations","CN"," = C0 × TEF × (1- pn) ÷ (1- p)"]
[null,"Central ",{"$f":"C5*C9*(1-C24^C$12)/(1-C24)","v":0.4},"mg/L"]
[null,"Lower ",{"$f":"C6*C10*(1-C25^C$12)/(1-C25)","v":0.4}]
[null,"Upper ",0.4]
["Calculation of Longer-Term Concentrations"]
["Exposure Period","T",{"$f":"'A01'!C$38","v":90},"days","Worksheet A01"]
["Concentration water at time, T.","ConcT","C0 × e-kT"]
[null,"Central ",{"$f":"C28*EXP(-C20*C$32)","v":2.4346641245534766E-283},"mg/L","Eq"]
[null,"Lower ",{"$f":"C29*EXP(-C21*C$32)","v":0},null,"Eq"]
[null,"Upper ",1.4171545878762726E-7,null,"Eq"]
["Average Concentrations","ConcTWA","Cn × (1-e-kT) ÷ (k T)"]
[null,"Central ",{"$f":"C28*(1-EXP(-C20*C$32))/(C20*C$32)","v":6.1554988411262443E-4},"mg/L"]
[null,"Lower ",{"$f":"C29*(1-EXP(-C21*C$32))/(C21*C$32)","v":8.3355713473584565E-5}]
[null,"Upper ",2.6930297888825137E-2]

{"sheet":"B04b","index":17,"n_rows":25,"n_cols":5,"rows_kept":25,"cut":false,"hidden":false,"merged":[[18,0,21,0],[0,0,0,4],[1,1,1,3],[2,1,2,3],[3,1,3,3],[13,0,16,0]]}
["Pond: Concentration of pesticide (liquid formulation) in pond water after an accidental spill"]
["Short Title","Pond Spill",null,null,"PondSpillLiqV6"]
["Receptor","Pond"]
["Duration","Acute"]
["Parameter/Assumption","Code / Range","Equation/   Value","Units","Reference/Designation"]
["Surface Area of Pond","SA",{"$f":"'A01'!C$36","v":1000},"m2","Worksheet A01"]
["Depth of Pond","Depth",{"$f":"'A01'!C$37","v":1},"meter","Worksheet A01"]
["Volume of Pond","VPM",{"$f":"C6*C7","v":1000},"m3","Eq"]
[null,"VPL",{"$f":"1000*C8","v":1000000},"liters","Eq"]
["Concentration in solution","Conc"]
[null,"Central ",{"$f":"'A01'!FldConc_C","v":130},"mg/mL","Worksheet A01"]
[null,"Lower ",{"$f":"'A01'!FldConc_L","v":130},null,"Worksheet A01"]
[null,"Upper ",{"$f":"'A01'!FldConc_U","v":130},null,"Worksheet A01"]
["Volume of Spill (gallons)","VSGal"]
[null,"Central ",{"$f":"'A01'!C$57","v":100},"gallons","Worksheet A01"]
[null,"Lower ",{"$f":"'A01'!C$58","v":20},null,"Worksheet A01"]
[null,"Upper ",{"$f":"'A01'!C$59","v":200},null,"Worksheet A01"]
["Conversion factor for gallons to liters","Conv",3.7850000000000001,"liters/gal"]
["Volume of Spill (liters)","VSLit","VSGal x Conv"]
[null,"Central ",{"$f":"C15*C$18","v":378.5},"liters","Eq"]
[null,"Lower ",{"$f":"C16*C$18","v":75.7},"liters","Eq"]
[null,"Upper ",{"$f":"C17*C$18","v":757},"liters","Eq"]
["Concentration in pond water at various times after as spill","ConcWat","Conc × 1000 mL/L × VSL ÷ VPL"]
["Time","Central ","Lower ","Upper "]
[0,{"$f":"C11*1000*C20/C$9","v":49.204999999999998},{"$f":"C12*1000*C21/C$9","v":9.8409999999999993},{"$f":"C13*1000*C22/C$9","v":98.41},"mg/L"]

{"sheet":"C01","index":18,"n_rows":22,"n_cols":5,"rows_kept":22,"cut":false,"hidden":false,"merged":[[10,0,13,0],[14,0,17,0],[15,3,17,3],[18,0,21,0],[0,0,0,4],[1,1,1,3],[2,1,2,3],[3,1,3,3],[6,0,9,0],[7,3,9,3]]}
["Worker exposure estimates for workers based on the amount handled."]
["Short Title","Direct Application to Water",null,null,"WkHandled"]
["Receptor","Worker"]
["Duration","Chronic"]
["Parameter/Assumption","Code / Range","Equation/ Value","Units","Reference/Equation"]
["Amount handled per day: ","AmntH",{"$f":"'A01'!lbsHandled","v":5.2910954589239356},"lb/day","Program Parameter"]
["Absorbed dose rate:","ADR"]
[null,"Central ",{"$f":"'A01'!C$49","v":2E-3},"(mg agent/kg bw) ÷ (lbs agent handled per day)","Worksheet A01"]
[null,"Lower ",{"$f":"'A01'!C$50","v":4.0000000000000002E-4},null,"Worksheet A01"]
[null,"Upper ",{"$f":"'A01'!C$51","v":0.01},null,"Worksheet A01"]
["Toxic Equivalency Factor for formulation:  (See risk assessment if this has a value other than 1.)","TEF"]
[null,"Central ",{"$f":"'A01'!C$45","v":1},"Unitless","Worksheet A01"]
[null,"Lower ",{"$f":"'A01'!C$46","v":1},null,"Worksheet A01"]
[null,"Upper ",{"$f":"'A01'!C$47","v":1},null,"Worksheet A01"]
["Clothing Protection Factor","Prot"]
[null,"Central ",{"$f":"'A01'!C$41","v":0},"Unitless (value between 0 [no protection] and 1 [complete protection])","Worksheet A01"]
[null,"Upper ",{"$f":"'A01'!C$43","v":0},null,"Worksheet A01"]
[null,"Lower ",{"$f":"'A01'!C$42","v":0},null,"Worksheet A01"]
["Absorbed dose","Dose","AmntH × ADR × TEF × (1-Prot)"]
[null,"Central ",{"$f":"C$6*C8*C12*(1-C16)","v":1.0582190917847871E-2},"mg/kg bw/day","Eq"]
[null,"Lower ",{"$f":"C$6*C9*C13*(1-C17)","v":2.1164381835695745E-3},null,"Eq"]
[null,"Upper ",{"$f":"C$6*C10*C14*(1-C18)","v":5.2910954589239355E-2},null,"Eq"]

{"sheet":"C02a","index":19,"n_rows":26,"n_cols":5,"rows_kept":26,"cut":false,"hidden":false,"merged":[[10,0,13,0],[14,0,17,0],[18,0,21,0],[22,0,25,0],[0,0,0,4],[1,1,1,3],[2,1,2,3],[3,1,3,3],[4,1,4,3],[7,0,8,0]]}
["Accidental Dermal Exposure Assessment Using Zero-Order Absorption, Worker, Surface Area, Hands, for 1 minute(s)"]
["Short Title","Contaminated Gloves, 1 minute",null,null,"DrmZr"]
["Receptor","Worker"]
["Duration","Acute"]
["Surface Contaminated","Surface Area, Hands"]
["Parameter/Assumption","Code / Range","Equation/   Value","Units","Reference/Designation"]
["Surface Area","SA",{"$f":"A02a!$C$40","v":1070},"cm2","U.S. EPA/ORD 2011"]
["Duration of Exposure","T_min",1,"minutes","Scenario parameter"]
[null,"T_hr",{"$f":"C8/60","v":1.6666666666666666E-2},"hours","Eq"]
["Body weight","BW",{"$f":"A02a!$C$39","v":86},"kg","U.S. EPA/OPP 2012"]
["Concentration in solution (mg/mL)","Conc"]
[null,"Central ",{"$f":"'A01'!FldConc_C","v":130},"mg/mL","Worksheet A01"]
[null,"Lower ",{"$f":"'A01'!FldConc_L","v":130},null,"Worksheet A01"]
[null,"Upper ",{"$f":"'A01'!FldConc_U","v":130},null,"Worksheet A01"]
["Toxic Equivalency Factor for formulation:  (See risk assessment if this has a value other than 1.)","TEF"]
[null,"Central ",{"$f":"'A01'!C$45","v":1},"Unitless","Worksheet A01"]
[null,"Lower ",{"$f":"'A01'!C$46","v":1},null,"Worksheet A01"]
[null,"Upper ",{"$f":"'A01'!C$47","v":1},null,"Worksheet A01"]
["Dermal permeability","Kp"]
[null,"Central ",{"$f":"'B01'!$C$14","v":7.8899999999999999E-4},"cm/hour","Calculated using “Adding Pesticides Attachment 1…” "]
[null,"Lower ",{"$f":"'B01'!$C$15","v":4.9899999999999999E-4},null,"Calculated using “Adding Pesticides Attachment 1…” "]
[null,"Upper ",{"$f":"'B01'!$C$16","v":1.25E-3},null,"Calculated using “Adding Pesticides Attachment 1…” "]
["Absorbed Dose","Dose","Kp × Conc × T_hr × SA x TEF ÷ BW"]
[null,"Central ",{"$f":"C20*C12*C$9*C$7*C16/C$10","v":2.126936046511628E-2},"mg/kg","Eq"]
[null,"Lower ",{"$f":"C21*C13*C$9*C$7*C17/C$10","v":1.345172480620155E-2},"mg/kg","Eq"]
[null,"Upper ",{"$f":"C22*C14*C$9*C$7*C18/C$10","v":3.3696705426356589E-2},"mg/kg","Eq"]

{"sheet":"C02b","index":20,"n_rows":26,"n_cols":5,"rows_kept":26,"cut":false,"hidden":false,"merged":[[10,0,13,0],[14,0,17,0],[18,0,21,0],[22,0,25,0],[0,0,0,4],[1,1,1,3],[2,1,2,3],[3,1,3,3],[4,1,4,3],[7,0,8,0]]}
["Accidental Dermal Exposure Assessment Using Zero-Order Absorption, Worker, Surface Area, Hands, for 60 minute(s)"]
["Short Title","Contaminated Gloves, 1 Hour",null,null,"DrmZr"]
["Receptor","Worker"]
["Duration","Acute"]
["Surface Contaminated","Surface Area, Hands"]
["Parameter/Assumption","Code / Range","Equation/   Value","Units","Reference/Designation"]
["Surface Area","SA",{"$f":"A02a!$C$40","v":1070},"cm2","U.S. EPA/ORD 2011"]
["Duration of Exposure","T_min",60,"minutes","Scenario parameter"]
[null,"T_hr",{"$f":"C8/60","v":1},"hours","Eq"]
["Body weight","BW",{"$f":"A02a!$C$39","v":86},"kg","U.S. EPA/OPP 2012"]
["Concentration in solution (mg/mL)","Conc"]
[null,"Central ",{"$f":"'A01'!FldConc_C","v":130},"mg/mL","Worksheet A01"]
[null,"Lower ",{"$f":"'A01'!FldConc_L","v":130},null,"Worksheet A01"]
[null,"Upper ",{"$f":"'A01'!FldConc_U","v":130},null,"Worksheet A01"]
["Toxic Equivalency Factor for formulation:  (See risk assessment if this has a value other than 1.)","TEF"]
[null,"Central ",{"$f":"'A01'!C$45","v":1},"Unitless","Worksheet A01"]
[null,"Lower ",{"$f":"'A01'!C$46","v":1},null,"Worksheet A01"]
[null,"Upper ",{"$f":"'A01'!C$47","v":1},null,"Worksheet A01"]
["Dermal permeability","Kp"]
[null,"Central ",{"$f":"'B01'!$C$14","v":7.8899999999999999E-4},"cm/hour","Calculated using “Adding Pesticides Attachment 1…” "]
[null,"Lower ",{"$f":"'B01'!$C$15","v":4.9899999999999999E-4},null,"Calculated using “Adding Pesticides Attachment 1…” "]
[null,"Upper ",{"$f":"'B01'!$C$16","v":1.25E-3},null,"Calculated using “Adding Pesticides Attachment 1…” "]
["Absorbed Dose","Dose","Kp × Conc × T_hr × SA x TEF ÷ BW"]
[null,"Central ",{"$f":"C20*C12*C$9*C$7*C16/C$10","v":1.2761616279069767},"mg/kg","Eq"]
[null,"Lower ",{"$f":"C21*C13*C$9*C$7*C17/C$10","v":0.807103488372093},"mg/kg","Eq"]
[null,"Upper ",{"$f":"C22*C14*C$9*C$7*C18/C$10","v":2.0218023255813953},"mg/kg","Eq"]

{"sheet":"C03a","index":21,"n_rows":39,"n_cols":5,"rows_kept":39,"cut":false,"hidden":false,"merged":[[28,3,30,3],[31,0,34,0],[0,0,0,4],[1,1,1,3],[2,1,2,3],[3,1,3,3],[4,1,4,3],[11,0,14,0],[35,0,38,0],[15,0,18,0],[19,0,22,0],[23,0,26,0],[27,0,30,0]]}
["Accidental Dermal Exposure Assessment Using First-Order Absorption, Worker, Surface Area, Hands, for 60 minute(s)"]
["Short Title","Spill on hands, 1 hour",null,null,"DrmFOA"]
["Receptor","Worker"]
["Duration","Acute"]
["Surface Contaminated","Surface Area, Hands"]
["Parameter/Assumption","Code / Range","Equation/   Value","Units","Reference/Designation"]
["Surface Area","SA",{"$f":"A02a!$C$40","v":1070},"cm2","U.S. EPA/ORD 2011"]
["Duration of Exposure",null,60,"minutes","Scenario parameter"]
[null,"T",{"$f":"C8/60","v":1},"hours","Eq"]
["Body weight","BW",{"$f":"A02a!$C$39","v":86},"kg","U.S. EPA/OPP 2012"]
["Liquid adhering to skin","L",{"$f":"A02d!$C$11","v":8.0000000000000002E-3},"mL/cm2","Mason and Johnson 1987"]
["Concentration in solution","Conc"]
[null,"Central ",{"$f":"'A01'!FldConc_C","v":130},"mg/mL","Worksheet A01"]
[null,"Lower ",{"$f":"'A01'!FldConc_L","v":130},null,"Worksheet A01"]
[null,"Upper ",{"$f":"'A01'!FldConc_U","v":130},null,"Worksheet A01"]
["First-order dermal absorption rates ","ka"]
[null,"Central",{"$f":"'B01'!$C$11","v":1.24E-3},"hour-1","Calculated using “Adding Pesticides Attachment 1…” "]
[null,"Lower",{"$f":"'B01'!$C$12","v":5.2599999999999999E-4},null,"Calculated using “Adding Pesticides Attachment 1…” "]
[null,"Upper",{"$f":"'B01'!$C$13","v":2.9399999999999999E-3},null,"Calculated using “Adding Pesticides Attachment 1…” "]
["Toxic Equivalency Factor for formulation:  (See risk assessment if this has a value other than 1.)","TEF"]
[null,"Central ",{"$f":"'A01'!C$45","v":1},"Unitless","Worksheet A01"]
[null,"Lower ",{"$f":"'A01'!C$46","v":1},null,"Worksheet A01"]
[null,"Upper ",{"$f":"'A01'!C$47","v":1},null,"Worksheet A01"]
["Amount Deposited on Skin","Amnt","L × SA × Conc x TEF"]
[null,"Central",{"$f":"$C$11*$C$7*C13*C21","v":1112.8},"mg","Eq"]
[null,"Lower",{"$f":"$C$11*$C$7*C14*C22","v":1112.8},null,"Eq"]
[null,"Upper",{"$f":"$C$11*$C$7*C15*C23","v":1112.8},null,"Eq"]
["Skin Loading","Loading"]
[null,"Central",{"$f":"C25/C$7","v":1.04},"mg/cm2","Eq"]
[null,"Lower",{"$f":"C26/C$7","v":1.04},null,"Eq"]
[null,"Upper",{"$f":"C27/C$7","v":1.04},null,"Eq"]
["Proportion absorbed over period T","Prop","1-exp(-ka T)"]
[null,"Central",{"$f":"1-EXP(-C17 *$C$9)","v":1.2392315176721347E-3},"hour-1","Eq"]
[null,"Lower",{"$f":"1-EXP(-C18 *$C$9)","v":5.2586168625212704E-4},null,"Eq"]
[null,"Upper",{"$f":"1-EXP(-C19 *$C$9)","v":2.9356824322528396E-3},null,"Eq"]
["Absorbed Dose","Dose","Amnt × Prop ÷ BW"]
[null,"Central",{"$f":"C25*C33/$C$10","v":1.6035079451925015E-2},"mg/kg bw","Eq"]
[null,"Lower",{"$f":"C26*C34/$C$10","v":6.804405633271708E-3},null,"Eq"]
[null,"Upper",{"$f":"C27*C35/$C$10","v":3.7986365239662319E-2},null,"Eq"]

{"sheet":"C03b","index":22,"n_rows":39,"n_cols":5,"rows_kept":39,"cut":false,"hidden":false,"merged":[[28,3,30,3],[31,0,34,0],[0,0,0,4],[1,1,1,3],[2,1,2,3],[3,1,3,3],[4,1,4,3],[11,0,14,0],[35,0,38,0],[15,0,18,0],[19,0,22,0],[23,0,26,0],[27,0,30,0]]}
["Accidental Dermal Exposure Assessment Using First-Order Absorption, Worker, Surface Area, Lower legs, for 60 minute(s)"]
["Short Title","Spill on lower legs, 1 hour",null,null,"DrmFOA"]
["Receptor","Worker"]
["Duration","Acute"]
["Surface Contaminated","Surface Area, Lower legs"]
["Parameter/Assumption","Code / Range","Equation/   Value","Units","Reference/Designation"]
["Surface Area","SA",{"$f":"A02a!$C$41","v":2680},"cm2","U.S. EPA/ORD 2011"]
["Duration of Exposure",null,60,"minutes","Scenario parameter"]
[null,"T",{"$f":"C8/60","v":1},"hours","Eq"]
["Body weight","BW",{"$f":"A02a!$C$39","v":86},"kg","U.S. EPA/OPP 2012"]
["Liquid adhering to skin","L",{"$f":"A02d!$C$11","v":8.0000000000000002E-3},"mL/cm2","Mason and Johnson 1987"]
["Concentration in solution","Conc"]
[null,"Central ",{"$f":"'A01'!FldConc_C","v":130},"mg/mL","Worksheet A01"]
[null,"Lower ",{"$f":"'A01'!FldConc_L","v":130},null,"Worksheet A01"]
[null,"Upper ",{"$f":"'A01'!FldConc_U","v":130},null,"Worksheet A01"]
["First-order dermal absorption rates ","ka"]
[null,"Central",{"$f":"'B01'!$C$11","v":1.24E-3},"hour-1","Calculated using “Adding Pesticides Attachment 1…” "]
[null,"Lower",{"$f":"'B01'!$C$12","v":5.2599999999999999E-4},null,"Calculated using “Adding Pesticides Attachment 1…” "]
[null,"Upper",{"$f":"'B01'!$C$13","v":2.9399999999999999E-3},null,"Calculated using “Adding Pesticides Attachment 1…” "]
["Toxic Equivalency Factor for formulation:  (See risk assessment if this has a value other than 1.)","TEF"]
[null,"Central ",{"$f":"'A01'!C$45","v":1},"Unitless","Worksheet A01"]
[null,"Lower ",{"$f":"'A01'!C$46","v":1},null,"Worksheet A01"]
[null,"Upper ",{"$f":"'A01'!C$47","v":1},null,"Worksheet A01"]
["Amount Deposited on Skin","Amnt","L × SA × Conc x TEF"]
[null,"Central",{"$f":"$C$11*$C$7*C13*C21","v":2787.2000000000003},"mg","Eq"]
[null,"Lower",{"$f":"$C$11*$C$7*C14*C22","v":2787.2000000000003},null,"Eq"]
[null,"Upper",{"$f":"$C$11*$C$7*C15*C23","v":2787.2000000000003},null,"Eq"]
["Skin Loading","Loading"]
[null,"Central",{"$f":"C25/C$7","v":1.04},"mg/cm2","Eq"]
[null,"Lower",{"$f":"C26/C$7","v":1.04},null,"Eq"]
[null,"Upper",{"$f":"C27/C$7","v":1.04},null,"Eq"]
["Proportion absorbed over period T","Prop","1-exp(-ka T)"]
[null,"Central",{"$f":"1-EXP(-C17 *$C$9)","v":1.2392315176721347E-3},"hour-1","Eq"]
[null,"Lower",{"$f":"1-EXP(-C18 *$C$9)","v":5.2586168625212704E-4},null,"Eq"]
[null,"Upper",{"$f":"1-EXP(-C19 *$C$9)","v":2.9356824322528396E-3},null,"Eq"]
["Absorbed Dose","Dose","Amnt × Prop ÷ BW"]
[null,"Central",{"$f":"C25*C33/$C$10","v":4.0162628907625279E-2},"mg/kg bw","Eq"]
[null,"Lower",{"$f":"C26*C34/$C$10","v":1.7042810371185216E-2},null,"Eq"]
[null,"Upper",{"$f":"C27*C35/$C$10","v":9.5143419478780411E-2},null,"Eq"]

{"sheet":"D05","index":23,"n_rows":19,"n_cols":5,"rows_kept":19,"cut":false,"hidden":false,"merged":[[15,0,18,0],[0,0,0,4],[1,1,1,3],[2,1,2,3],[5,0,8,0],[10,0,13,0]]}
["Consumption of contaminated water by Child, Accidental Spill "]
["Short Title","Accidental Spill",null,null,"WatAmntV6"]
["Receptor","Child"]
["Duration","Acute",null,null,"Scenario parameter"]
["Parameter/Assumption","Code / Range","Equation/   Value","Units","Reference/Designation"]
["Concentration in water","ConcWat"]
[null,"Central ",{"$f":"B04b!Acute_C","v":49.204999999999998},"mg/L","='B04b'!Acute_C"]
[null,"Lower ",{"$f":"B04b!Acute_L","v":9.8409999999999993},null,"='B04b'!Acute_L"]
[null,"Upper ",{"$f":"B04b!Acute_U","v":98.41},null,"='B04b'!Acute_U"]
["Receptor"]
["Amount of water consumed in one day","Amnt"]
[null,"Central ",{"$f":"'A03'!$E$44","v":1},"liters/day","U.S. EPA/ORD 1996"]
[null,"Lower ",{"$f":"'A03'!$E$45","v":0.61},null,"U.S. EPA/ORD 1996"]
[null,"Upper ",{"$f":"'A03'!$E$46","v":1.5},null,"U.S. EPA/ORD 1996"]
["Body weight","BW",{"$f":"A02a!$C$28","v":11},"kg","U.S. EPA/OPP 2012"]
["Dose","Dose","ConcWat  × Amnt ÷ BW"]
[null,"Central ",{"$f":"C7*C12/C$15","v":4.4731818181818177},"mg/kg","Eq"]
[null,"Lower ",{"$f":"C8*C13/C$15","v":0.54572818181818183},"mg/kg","Eq"]
[null,"Upper ",{"$f":"C9*C14/C$15","v":13.419545454545455},"mg/kg","Eq"]

{"sheet":"D06","index":24,"n_rows":19,"n_cols":5,"rows_kept":19,"cut":false,"hidden":false,"merged":[[15,0,18,0],[0,0,0,4],[1,1,1,3],[2,1,2,3],[5,0,8,0],[10,0,13,0]]}
["Consumption of contaminated water by Child, Peak Conentrations "]
["Short Title","Peak Conentrations",null,null,"WatAmntV6"]
["Receptor","Child"]
["Duration","Acute",null,null,"Scenario parameter"]
["Parameter/Assumption","Code / Range","Equation/   Value","Units","Reference/Designation"]
["Concentration in water","ConcWat"]
[null,"Central ",{"$f":"B04a!Acute_C","v":0.4},"mg/L","='B04a'!Acute_C"]
[null,"Lower ",{"$f":"B04a!Acute_L","v":0.4},null,"='B04a'!Acute_L"]
[null,"Upper ",{"$f":"B04a!Acute_U","v":0.4},null,"='B04a'!Acute_U"]
["Receptor"]
["Amount of water consumed in one day","Amnt"]
[null,"Central ",{"$f":"'A03'!$E$44","v":1},"liters/day","U.S. EPA/ORD 1996"]
[null,"Lower ",{"$f":"'A03'!$E$45","v":0.61},null,"U.S. EPA/ORD 1996"]
[null,"Upper ",{"$f":"'A03'!$E$46","v":1.5},null,"U.S. EPA/ORD 1996"]
["Body weight","BW",{"$f":"A02a!$C$28","v":11},"kg","U.S. EPA/OPP 2012"]
["Dose","Dose","ConcWat  × Amnt ÷ BW"]
[null,"Central ",{"$f":"C7*C12/C$15","v":3.6363636363636369E-2},"mg/kg","Eq"]
[null,"Lower ",{"$f":"C8*C13/C$15","v":2.2181818181818181E-2},"mg/kg","Eq"]
[null,"Upper ",{"$f":"C9*C14/C$15","v":5.4545454545454557E-2},"mg/kg","Eq"]

{"sheet":"D07","index":25,"n_rows":19,"n_cols":5,"rows_kept":19,"cut":false,"hidden":false,"merged":[[15,0,18,0],[0,0,0,4],[1,1,1,3],[2,1,2,3],[5,0,8,0],[10,0,13,0]]}
["Consumption of contaminated water by Adult Male, Longer-term Conentrations "]
["Short Title","Longer-term Conentrations",null,null,"WatAmntV6"]
["Receptor","Adult Male"]
["Duration","Chronic",null,null,"Scenario parameter"]
["Parameter/Assumption","Code / Range","Equation/   Value","Units","Reference/Designation"]
["Concentration in water","ConcWat"]
[null,"Central ",{"$f":"B04a!Chronic_C","v":6.1554988411262443E-4},"mg/L","='B04a'!Chronic_C"]
[null,"Lower ",{"$f":"B04a!Chronic_L","v":8.3355713473584565E-5},null,"='B04a'!Chronic_L"]
[null,"Upper ",{"$f":"B04a!Chronic_U","v":2.6930297888825137E-2},null,"='B04a'!Chronic_U"]
["Receptor"]
["Amount of water consumed in one day","Amnt"]
[null,"Central ",{"$f":"'A03'!$E$31","v":2},"liters/day","U.S. EPA/ORD 1996"]
[null,"Lower ",{"$f":"'A03'!$E$32","v":1.4},null,"U.S. EPA/ORD 1996"]
[null,"Upper ",{"$f":"'A03'!$E$33","v":2.4},null,"U.S. EPA/ORD 1996"]
["Body weight","BW",{"$f":"A02a!$C$8","v":86},"kg","U.S. EPA/OPP 2012"]
["Dose","Dose","ConcWat  × Amnt ÷ BW"]
[null,"Central ",{"$f":"C7*C12/C$15","v":1.4315113584014521E-5},"mg/kg","Eq"]
[null,"Lower ",{"$f":"C8*C13/C$15","v":1.3569534751513764E-6},"mg/kg","Eq"]
[null,"Upper ",{"$f":"C9*C14/C$15","v":7.5154319689744575E-4},"mg/kg","Eq"]

{"sheet":"D08a","index":26,"n_rows":34,"n_cols":5,"rows_kept":34,"cut":false,"hidden":false,"merged":[[15,0,18,0],[20,0,23,0],[24,0,27,0],[29,0,32,0],[0,0,0,4],[1,1,1,3],[2,1,2,3],[3,1,3,3],[6,0,9,0],[12,0,14,0]]}
["Consumption of Contaminated Fish (Accidental Spill), Adult Male, acute exposure"]
["Short Title","Fish consumption",null,null,"FishAmntV6"]
["Receptor","Adult Male"]
["Duration","acute"]
["Parameter/Assumption","Code / Range","Equation/   Value","Units","Reference/Designation"]
["Water"]
["Concentration in water","ConcWat","ApR × WCR"]
[null,"Central ",{"$f":"B04b!Acute_C","v":49.204999999999998},"mg/L","='B04b'!Acute_C"]
[null,"Lower ",{"$f":"B04b!Acute_L","v":9.8409999999999993},null,"='B04b'!Acute_L"]
[null,"Upper ",{"$f":"B04b!Acute_U","v":98.41},null,"='B04b'!Acute_U"]
["Fish"]
["Bioconcentration factor","BCF"]
[null,"Central ",{"$f":"'B01'!$C$4","v":22.4},"L/kg","EPA 2012"]
[null,"Lower ",{"$f":"'B01'!$C$4","v":22.4},null,"EPA 2012"]
[null,"Upper ",{"$f":"'B01'!$C$4","v":22.4},null,"EPA 2012"]
["Concentration in fish","ConcFish","ConcWat × BCF"]
[null,"Central ",{"$f":"C8*C13","v":1102.1919999999998},"mg/kg","Eq"]
[null,"Lower ",{"$f":"C9*C14","v":220.43839999999997},null,"Eq"]
[null,"Upper ",{"$f":"C10*C15","v":2204.3839999999996},null,"Eq"]
["Receptor"]
["Amount of fish consumed","Amnt"]
[null,"Central ",{"$f":"'A03'!$E$20","v":0.158},"kg/day","Ruffle et al. 1994"]
[null,"Lower ",{"$f":"'A03'!$E$20","v":0.158},null,"Ruffle et al. 1994"]
[null,"Upper ",{"$f":"'A03'!$E$20","v":0.158},null,"Ruffle et al. 1994"]
["Toxic Equivalency Factor for formulation:  (See risk assessment if this has a value other than 1.)","TEF"]
[null,"Central ",{"$f":"'A01'!C$45","v":1},"Unitless","Worksheet A01"]
[null,"Lower ",{"$f":"'A01'!C$46","v":1},null,"Worksheet A01"]
[null,"Upper ",{"$f":"'A01'!C$47","v":1},null,"Worksheet A01"]
["Body weight","BW",{"$f":"A02a!$C$8","v":86},"kg","U.S. EPA/OPP 2012"]
["Dose","Dose","ConcFish× Amnt x TEF ÷ BW"]
[null,"Central ",{"$f":"C17*C22*C26/C$29","v":2.0249573953488369},"mg/kg","Eq"]
[null,"Lower ",{"$f":"C18*C23*C27/C$29","v":0.4049914790697674},"mg/kg","Eq"]
[null,"Upper ",{"$f":"C19*C24*C28/C$29","v":4.0499147906976738},"mg/kg","Eq"]
[null,null,null,null,"FishAmntV6"]

{"sheet":"D08b","index":27,"n_rows":34,"n_cols":5,"rows_kept":34,"cut":false,"hidden":false,"merged":[[15,0,18,0],[20,0,23,0],[24,0,27,0],[29,0,32,0],[0,0,0,4],[1,1,1,3],[2,1,2,3],[3,1,3,3],[6,0,9,0],[12,0,14,0]]}
["Consumption of Contaminated Fish (Accidental Spill), Subsistence Populations, acute exposure"]
["Short Title","Fish consumption",null,null,"FishAmntV6"]
["Receptor","Subsistence Populations"]
["Duration","acute"]
["Parameter/Assumption","Code / Range","Equation/   Value","Units","Reference/Designation"]
["Water"]
["Concentration in water","ConcWat","ApR × WCR"]
[null,"Central ",{"$f":"B04b!Acute_C","v":49.204999999999998},"mg/L","='B04b'!Acute_C"]
[null,"Lower ",{"$f":"B04b!Acute_L","v":9.8409999999999993},null,"='B04b'!Acute_L"]
[null,"Upper ",{"$f":"B04b!Acute_U","v":98.41},null,"='B04b'!Acute_U"]
["Fish"]
["Bioconcentration factor","BCF"]
[null,"Central ",{"$f":"'B01'!$C$4","v":22.4},"L/kg","EPA 2012"]
[null,"Lower ",{"$f":"'B01'!$C$4","v":22.4},null,"EPA 2012"]
[null,"Upper ",{"$f":"'B01'!$C$4","v":22.4},null,"EPA 2012"]
["Concentration in fish","ConcFish","ConcWat × BCF"]
[null,"Central ",{"$f":"C8*C13","v":1102.1919999999998},"mg/kg","Eq"]
[null,"Lower ",{"$f":"C9*C14","v":220.43839999999997},null,"Eq"]
[null,"Upper ",{"$f":"C10*C15","v":2204.3839999999996},null,"Eq"]
["Receptor"]
["Amount of fish consumed","Amnt"]
[null,"Central ",{"$f":"'A03'!$E$35","v":0.77},"kg/day","U.S. EPA/ORD 1993"]
[null,"Lower ",{"$f":"'A03'!$E$35","v":0.77},null,"U.S. EPA/ORD 1993"]
[null,"Upper ",{"$f":"'A03'!$E$35","v":0.77},null,"U.S. EPA/ORD 1993"]
["Toxic Equivalency Factor for formulation:  (See risk assessment if this has a value other than 1.)","TEF"]
[null,"Central ",{"$f":"'A01'!C$45","v":1},"Unitless","Worksheet A01"]
[null,"Lower ",{"$f":"'A01'!C$46","v":1},null,"Worksheet A01"]
[null,"Upper ",{"$f":"'A01'!C$47","v":1},null,"Worksheet A01"]
["Body weight","BW",{"$f":"A02a!$C$9","v":80},"kg","U.S. EPA/OPP 2012"]
["Dose","Dose","ConcFish× Amnt x TEF ÷ BW"]
[null,"Central ",{"$f":"C17*C22*C26/C$29","v":10.608597999999997},"mg/kg","Eq"]
[null,"Lower ",{"$f":"C18*C23*C27/C$29","v":2.1217195999999996},"mg/kg","Eq"]
[null,"Upper ",{"$f":"C19*C24*C28/C$29","v":21.217195999999994},"mg/kg","Eq"]
[null,null,null,null,"FishAmntV6"]

{"sheet":"D09a","index":28,"n_rows":34,"n_cols":5,"rows_kept":34,"cut":false,"hidden":false,"merged":[[15,0,18,0],[20,0,23,0],[24,0,27,0],[29,0,32,0],[0,0,0,4],[1,1,1,3],[2,1,2,3],[3,1,3,3],[6,0,9,0],[12,0,14,0]]}
["Consumption of Contaminated Fish (Longer-term), Adult Male, chronic exposure"]
["Short Title","Fish consumption",null,null,"FishAmntV6"]
["Receptor","Adult Male"]
["Duration","chronic"]
["Parameter/Assumption","Code / Range","Equation/   Value","Units","Reference/Designation"]
["Water"]
["Concentration in water","ConcWat","ApR × WCR"]
[null,"Central ",{"$f":"B04a!Chronic_C","v":6.1554988411262443E-4},"mg/L","='B04a'!Chronic_C"]
[null,"Lower ",{"$f":"B04a!Chronic_L","v":8.3355713473584565E-5},null,"='B04a'!Chronic_L"]
[null,"Upper ",{"$f":"B04a!Chronic_U","v":2.6930297888825137E-2},null,"='B04a'!Chronic_U"]
["Fish"]
["Bioconcentration factor","BCF"]
[null,"Central ",{"$f":"'B01'!$C$5","v":22.4},"L/kg","EPA 2012"]
[null,"Lower ",{"$f":"'B01'!$C$5","v":22.4},null,"EPA 2012"]
[null,"Upper ",{"$f":"'B01'!$C$5","v":22.4},null,"EPA 2012"]
["Concentration in fish","ConcFish","ConcWat × BCF"]
[null,"Central ",{"$f":"C8*C13","v":1.3788317404122787E-2},"mg/kg","Eq"]
[null,"Lower ",{"$f":"C9*C14","v":1.867167981808294E-3},null,"Eq"]
[null,"Upper ",{"$f":"C10*C15","v":0.60323867270968301},null,"Eq"]
["Receptor"]
["Amount of fish consumed","Amnt"]
[null,"Central ",{"$f":"'A03'!$E$19","v":0.01},"kg/day","U.S. EPA/ORD 1996"]
[null,"Lower ",{"$f":"'A03'!$E$19","v":0.01},null,"U.S. EPA/ORD 1996"]
[null,"Upper ",{"$f":"'A03'!$E$19","v":0.01},null,"U.S. EPA/ORD 1996"]
["Toxic Equivalency Factor for formulation:  (See risk assessment if this has a value other than 1.)","TEF"]
[null,"Central ",{"$f":"'A01'!C$45","v":1},"Unitless","Worksheet A01"]
[null,"Lower ",{"$f":"'A01'!C$46","v":1},null,"Worksheet A01"]
[null,"Upper ",{"$f":"'A01'!C$47","v":1},null,"Worksheet A01"]
["Body weight","BW",{"$f":"A02a!$C$8","v":86},"kg","U.S. EPA/OPP 2012"]
["Dose","Dose","ConcFish× Amnt x TEF ÷ BW"]
[null,"Central ",{"$f":"C17*C22*C26/C$29","v":1.6032927214096265E-6},"mg/kg","Eq"]
[null,"Lower ",{"$f":"C18*C23*C27/C$29","v":2.1711255602422027E-7},"mg/kg","Eq"]
[null,"Upper ",{"$f":"C19*C24*C28/C$29","v":7.0144031710428267E-5},"mg/kg","Eq"]
[null,null,null,null,"FishAmntV6"]

{"sheet":"D09b","index":29,"n_rows":34,"n_cols":5,"rows_kept":34,"cut":false,"hidden":false,"merged":[[15,0,18,0],[20,0,23,0],[24,0,27,0],[29,0,32,0],[0,0,0,4],[1,1,1,3],[2,1,2,3],[3,1,3,3],[6,0,9,0],[12,0,14,0]]}
["Consumption of Contaminated Fish (Longer-term), Subsistence Populations, chronic exposure"]
["Short Title","Fish consumption",null,null,"FishAmntV6"]
["Receptor","Subsistence Populations"]
["Duration","chronic"]
["Parameter/Assumption","Code / Range","Equation/   Value","Units","Reference/Designation"]
["Water"]
["Concentration in water","ConcWat","ApR × WCR"]
[null,"Central ",{"$f":"B04a!Chronic_C","v":6.1554988411262443E-4},"mg/L","='B04a'!Chronic_C"]
[null,"Lower ",{"$f":"B04a!Chronic_L","v":8.3355713473584565E-5},null,"='B04a'!Chronic_L"]
[null,"Upper ",{"$f":"B04a!Chronic_U","v":2.6930297888825137E-2},null,"='B04a'!Chronic_U"]
["Fish"]
["Bioconcentration factor","BCF"]
[null,"Central ",{"$f":"'B01'!$C$5","v":22.4},"L/kg","EPA 2012"]
[null,"Lower ",{"$f":"'B01'!$C$5","v":22.4},null,"EPA 2012"]
[null,"Upper ",{"$f":"'B01'!$C$5","v":22.4},null,"EPA 2012"]
["Concentration in fish","ConcFish","ConcWat × BCF"]
[null,"Central ",{"$f":"C8*C13","v":1.3788317404122787E-2},"mg/kg","Eq"]
[null,"Lower ",{"$f":"C9*C14","v":1.867167981808294E-3},null,"Eq"]
[null,"Upper ",{"$f":"C10*C15","v":0.60323867270968301},null,"Eq"]
["Receptor"]
["Amount of fish consumed","Amnt"]
[null,"Central ",{"$f":"'A03'!$E$34","v":8.1000000000000003E-2},"kg/day","U.S. EPA/ORD 1996"]
[null,"Lower ",{"$f":"'A03'!$E$34","v":8.1000000000000003E-2},null,"U.S. EPA/ORD 1996"]
[null,"Upper ",{"$f":"'A03'!$E$34","v":8.1000000000000003E-2},null,"U.S. EPA/ORD 1996"]
["Toxic Equivalency Factor for formulation:  (See risk assessment if this has a value other than 1.)","TEF"]
[null,"Central ",{"$f":"'A01'!C$45","v":1},"Unitless","Worksheet A01"]
[null,"Lower ",{"$f":"'A01'!C$46","v":1},null,"Worksheet A01"]
[null,"Upper ",{"$f":"'A01'!C$47","v":1},null,"Worksheet A01"]
["Body weight","BW",{"$f":"A02a!$C$9","v":80},"kg","U.S. EPA/OPP 2012"]
["Dose","Dose","ConcFish× Amnt x TEF ÷ BW"]
[null,"Central ",{"$f":"C17*C22*C26/C$29","v":1.3960671371674323E-5},"mg/kg","Eq"]
[null,"Lower ",{"$f":"C18*C23*C27/C$29","v":1.8905075815808975E-6},"mg/kg","Eq"]
[null,"Upper ",{"$f":"C19*C24*C28/C$29","v":6.1077915611855405E-4},"mg/kg","Eq"]
[null,null,null,null,"FishAmntV6"]

{"sheet":"D09c","index":30,"n_rows":34,"n_cols":5,"rows_kept":34,"cut":false,"hidden":false,"merged":[[15,0,18,0],[20,0,23,0],[24,0,27,0],[29,0,32,0],[0,0,0,4],[1,1,1,3],[2,1,2,3],[3,1,3,3],[6,0,9,0],[12,0,14,0]]}
["Consumption of Contaminated Fish (Peak Exposure), Adult Male, acute exposure"]
["Short Title","Fish consumption",null,null,"FishAmntV6"]
["Receptor","Adult Male"]
["Duration","acute"]
["Parameter/Assumption","Code / Range","Equation/   Value","Units","Reference/Designation"]
["Water"]
["Concentration in water","ConcWat","ApR × WCR"]
[null,"Central ",{"$f":"B04a!Acute_C","v":0.4},"mg/L","='B04a'!Acute_C"]
[null,"Lower ",{"$f":"B04a!Acute_L","v":0.4},null,"='B04a'!Acute_L"]
[null,"Upper ",{"$f":"B04a!Acute_U","v":0.4},null,"='B04a'!Acute_U"]
["Fish"]
["Bioconcentration factor","BCF"]
[null,"Central ",{"$f":"'B01'!$C$4","v":22.4},"L/kg","EPA 2012"]
[null,"Lower ",{"$f":"'B01'!$C$4","v":22.4},null,"EPA 2012"]
[null,"Upper ",{"$f":"'B01'!$C$4","v":22.4},null,"EPA 2012"]
["Concentration in fish","ConcFish","ConcWat × BCF"]
[null,"Central ",{"$f":"C8*C13","v":8.9599999999999991},"mg/kg","Eq"]
[null,"Lower ",{"$f":"C9*C14","v":8.9599999999999991},null,"Eq"]
[null,"Upper ",{"$f":"C10*C15","v":8.9599999999999991},null,"Eq"]
["Receptor"]
["Amount of fish consumed","Amnt"]
[null,"Central ",{"$f":"'A03'!$E$20","v":0.158},"kg/day","Ruffle et al. 1994"]
[null,"Lower ",{"$f":"'A03'!$E$20","v":0.158},null,"Ruffle et al. 1994"]
[null,"Upper ",{"$f":"'A03'!$E$20","v":0.158},null,"Ruffle et al. 1994"]
["Toxic Equivalency Factor for formulation:  (See risk assessment if this has a value other than 1.)","TEF"]
[null,"Central ",{"$f":"'A01'!C$45","v":1},"Unitless","Worksheet A01"]
[null,"Lower ",{"$f":"'A01'!C$46","v":1},null,"Worksheet A01"]
[null,"Upper ",{"$f":"'A01'!C$47","v":1},null,"Worksheet A01"]
["Body weight","BW",{"$f":"A02a!$C$8","v":86},"kg","U.S. EPA/OPP 2012"]
["Dose","Dose","ConcFish× Amnt x TEF ÷ BW"]
[null,"Central ",{"$f":"C17*C22*C26/C$29","v":1.6461395348837206E-2},"mg/kg","Eq"]
[null,"Lower ",{"$f":"C18*C23*C27/C$29","v":1.6461395348837206E-2},"mg/kg","Eq"]
[null,"Upper ",{"$f":"C19*C24*C28/C$29","v":1.6461395348837206E-2},"mg/kg","Eq"]
[null,null,null,null,"FishAmntV6"]

{"sheet":"D09d","index":31,"n_rows":34,"n_cols":5,"rows_kept":34,"cut":false,"hidden":false,"merged":[[15,0,18,0],[20,0,23,0],[24,0,27,0],[29,0,32,0],[0,0,0,4],[1,1,1,3],[2,1,2,3],[3,1,3,3],[6,0,9,0],[12,0,14,0]]}
["Consumption of Contaminated Fish (Peak Exposure), Subsistence Populations, acute exposure"]
["Short Title","Fish consumption",null,null,"FishAmntV6"]
["Receptor","Subsistence Populations"]
["Duration","acute"]
["Parameter/Assumption","Code / Range","Equation/   Value","Units","Reference/Designation"]
["Water"]
["Concentration in water","ConcWat","ApR × WCR"]
[null,"Central ",{"$f":"B04a!Acute_C","v":0.4},"mg/L","='B04a'!Acute_C"]
[null,"Lower ",{"$f":"B04a!Acute_L","v":0.4},null,"='B04a'!Acute_L"]
[null,"Upper ",{"$f":"B04a!Acute_U","v":0.4},null,"='B04a'!Acute_U"]
["Fish"]
["Bioconcentration factor","BCF"]
[null,"Central ",{"$f":"'B01'!$C$4","v":22.4},"L/kg","EPA 2012"]
[null,"Lower ",{"$f":"'B01'!$C$4","v":22.4},null,"EPA 2012"]
[null,"Upper ",{"$f":"'B01'!$C$4","v":22.4},null,"EPA 2012"]
["Concentration in fish","ConcFish","ConcWat × BCF"]
[null,"Central ",{"$f":"C8*C13","v":8.9599999999999991},"mg/kg","Eq"]
[null,"Lower ",{"$f":"C9*C14","v":8.9599999999999991},null,"Eq"]
[null,"Upper ",{"$f":"C10*C15","v":8.9599999999999991},null,"Eq"]
["Receptor"]
["Amount of fish consumed","Amnt"]
[null,"Central ",{"$f":"'A03'!$E$35","v":0.77},"kg/day","U.S. EPA/ORD 1993"]
[null,"Lower ",{"$f":"'A03'!$E$35","v":0.77},null,"U.S. EPA/ORD 1993"]
[null,"Upper ",{"$f":"'A03'!$E$35","v":0.77},null,"U.S. EPA/ORD 1993"]
["Toxic Equivalency Factor for formulation:  (See risk assessment if this has a value other than 1.)","TEF"]
[null,"Central ",{"$f":"'A01'!C$45","v":1},"Unitless","Worksheet A01"]
[null,"Lower ",{"$f":"'A01'!C$46","v":1},null,"Worksheet A01"]
[null,"Upper ",{"$f":"'A01'!C$47","v":1},null,"Worksheet A01"]
["Body weight","BW",{"$f":"A02a!$C$9","v":80},"kg","U.S. EPA/OPP 2012"]
["Dose","Dose","ConcFish× Amnt x TEF ÷ BW"]
[null,"Central ",{"$f":"C17*C22*C26/C$29","v":8.6239999999999997E-2},"mg/kg","Eq"]
[null,"Lower ",{"$f":"C18*C23*C27/C$29","v":8.6239999999999997E-2},"mg/kg","Eq"]
[null,"Upper ",{"$f":"C19*C24*C28/C$29","v":8.6239999999999997E-2},"mg/kg","Eq"]
[null,null,null,null,"FishAmntV6"]

{"sheet":"D10","index":32,"n_rows":31,"n_cols":5,"rows_kept":31,"cut":false,"hidden":false,"merged":[[27,0,30,0],[0,0,0,4],[1,1,1,3],[2,1,2,3],[3,1,3,3],[4,1,4,3],[8,0,9,0],[11,0,14,0],[12,3,14,3],[15,0,18,0],[19,0,22,0],[23,0,26,0]]}
["Swimming Exposure Assessment Using Zero-Order Absorption, Adult Female, Surface Area, Whole body, for 60 minute(s)"]
["Short Title","Swimming",null,null,"DrmZrSwm"]
["Receptor","Adult Female"]
["Duration","Acute"]
["Surface Contaminated","Surface Area, Whole body"]
["Parameter/Assumption","Code / Range","Equation/   Value","Units","Reference/Designation"]
["Application Rate","ApRt",{"$f":"'A01'!ApRt_C","v":0.4},"lb/acre","Worksheet A01"]
["Surface Area","SA",{"$f":"A02a!$C$7","v":17700},"cm2","U.S. EPA/OPP 2012"]
["Duration of Exposure","T_min",{"$f":"'A01'!C$39","v":60},"minutes","Worksheet A01"]
[null,"T_hr",{"$f":"C9/60","v":1},"hours","Eq"]
["Body weight","BW",{"$f":"A02a!$C$4","v":69},"kg","U.S. EPA/OPP 2012"]
["Water contamination rate","WCR"]
[null,"Central ",{"$f":"B04a!Acute_C","v":0.4},"mg/L per lb/acre","Worksheet B04a"]
[null,"Lower ",{"$f":"B04a!Acute_L","v":0.4},null,"Worksheet B04a"]
[null,"Upper ",{"$f":"B04a!Acute_U","v":0.4},null,"Worksheet B04a"]
["Concentration in water in mg/mL","ConcWat","ApR × WCR / 1000"]
[null,"Central ",{"$f":"C$7*C13/1000","v":1.6000000000000004E-4},"mg/mL","Eq"]
[null,"Lower ",{"$f":"C$7*C14/1000","v":1.6000000000000004E-4},null,"Eq"]
[null,"Upper ",{"$f":"C$7*C15/1000","v":1.6000000000000004E-4},null,"Eq"]
["Toxic Equivalency Factor for formulation:  (See risk assessment if this has a value other than 1.)","TEF"]
[null,"Central ",{"$f":"'A01'!C$45","v":1},"Unitless","Worksheet A01"]
[null,"Lower ",{"$f":"'A01'!C$46","v":1},null,"Worksheet A01"]
[null,"Upper ",{"$f":"'A01'!C$47","v":1},null,"Worksheet A01"]
["Dermal permeability","Kp"]
[null,"Central ",{"$f":"'B01'!$C$14","v":7.8899999999999999E-4},"cm/hour","Calculated using “Adding Pesticides Attachment 1…” "]
[null,"Lower ",{"$f":"'B01'!$C$15","v":4.9899999999999999E-4},null,"Calculated using “Adding Pesticides Attachment 1…” "]
[null,"Upper ",{"$f":"'B01'!$C$16","v":1.25E-3},null,"Calculated using “Adding Pesticides Attachment 1…” "]
["Absorbed Dose","Dose","Kp × Conc × T_hr × SA × TEF ÷ BW"]
[null,"Central ",{"$f":"C25*C17*C$10*C$8*C21/C$11","v":3.2383304347826094E-5},"mg/kg"]
[null,"Lower ",{"$f":"C26*C18*C$10*C$8*C22/C$11","v":2.0480695652173917E-5},"mg/kg"]
[null,"Upper ",{"$f":"C27*C19*C$10*C$8*C23/C$11","v":5.1304347826086966E-5},"mg/kg"]

{"sheet":"E01","index":33,"n_rows":11,"n_cols":6,"rows_kept":11,"cut":false,"hidden":false,"merged":[[0,0,0,5],[1,2,1,4],[2,0,3,0],[2,1,3,1],[2,2,2,4],[2,5,3,5]]}
["Summary of Worker Exposure Assessments"]
["Application Rate:",{"$f":"'A01'!ApRt_C","v":0.4},"ppm",null,null,"E01aV5-1Wrkr"]
["Scenario","Receptor","mg/kg/day or mg/kg/event",null,null,"Detail Worksheet"]
[null,null,"Central","Lower","Upper"]
["Accidental/Incidental Exposures"]
["Contaminated Gloves, \n1 min.","Worker",{"$f":"'C02a'!Dose_C","v":2.126936046511628E-2},{"$f":"'C02a'!Dose_L","v":1.345172480620155E-2},{"$f":"'C02a'!Dose_U","v":3.3696705426356589E-2},"C02a"]
["Contaminated Gloves, 1 hour","Worker",{"$f":"'C02b'!Dose_C","v":1.2761616279069767},{"$f":"'C02b'!Dose_L","v":0.807103488372093},{"$f":"'C02b'!Dose_U","v":2.0218023255813953},"C02b"]
["Spill on Hands, 1 hour","Worker",{"$f":"'C03a'!Dose_C","v":1.6035079451925015E-2},{"$f":"'C03a'!Dose_L","v":6.804405633271708E-3},{"$f":"'C03a'!Dose_U","v":3.7986365239662319E-2},"C03a"]
["Spill on lower legs, 1 hour","Worker",{"$f":"'C03b'!Dose_C","v":4.0162628907625279E-2},{"$f":"'C03b'!Dose_L","v":1.7042810371185216E-2},{"$f":"'C03b'!Dose_U","v":9.5143419478780411E-2},"C03b"]
["General Exposures"]
[null,"Worker",{"$f":"'C01'!Dose_C","v":1.0582190917847871E-2},{"$f":"'C01'!Dose_L","v":2.1164381835695745E-3},{"$f":"'C01'!Dose_U","v":5.2910954589239355E-2},"C01"]

{"sheet":"E02","index":34,"n_rows":11,"n_cols":6,"rows_kept":11,"cut":false,"hidden":false,"merged":[[0,0,0,5],[1,2,1,4],[2,0,3,0],[2,1,3,1],[2,2,2,4],[2,5,3,5]]}
["Summary of Worker Hazard Quotients (Toxicity)"]
["Application Rate:",{"$f":"'A01'!ApRt_C","v":0.4},"ppm",null,null,"E01aV5-1Wrkr"]
["Scenario","Receptor","Hazard Quotients",null,null,"Toxicity Value"]
[null,null,"Central","Lower","Upper"]
["Accidental/Incidental Exposures"]
["Contaminated Gloves, \n1 min.","Worker",{"$f":"'C02a'!$C$24/$F$6","v":0.337608896271687},{"$f":"'C02a'!$C$25/$F$6","v":0.21351944136827858},{"$f":"'C02a'!$C$26/$F$6","v":0.53486834010089823},{"$f":"'B02'!$E$4","v":6.3E-2}]
["Contaminated Gloves, 1 hour","Worker",{"$f":"'C02b'!$C$24/$F$7","v":20.256533776301218},{"$f":"'C02b'!$C$25/$F$7","v":12.811166482096715},{"$f":"'C02b'!$C$26/$F$7","v":32.092100406053895},{"$f":"'B02'!$E$4","v":6.3E-2}]
["Spill on Hands, 1 hour","Worker",{"$f":"'C03a'!$C$37/$F$8","v":0.25452507066547642},{"$f":"'C03a'!$C$38/$F$8","v":0.10800643862336044},{"$f":"'C03a'!$C$39/$F$8","v":0.60295817840733834},{"$f":"'B02'!$E$4","v":6.3E-2}]
["Spill on lower legs, 1 hour","Worker",{"$f":"'C03b'!$C$37/$F$9","v":0.63750204615278216},{"$f":"'C03b'!$C$38/$F$9","v":0.27052079954262248},{"$f":"'C03b'!$C$39/$F$9","v":1.5102130075996891},{"$f":"'B02'!$E$4","v":6.3E-2}]
["General Exposures"]
[null,"Worker",{"$f":"'C01'!$C$20/$F$11","v":0.52910954589239356},{"$f":"'C01'!$C$21/$F$11","v":0.10582190917847872},{"$f":"'C01'!$C$22/$F$11","v":2.6455477294619678},{"$f":"'B02'!$E$5","v":0.02}]

{"sheet":"E03","index":35,"n_rows":24,"n_cols":14,"rows_kept":24,"cut":false,"hidden":false,"merged":[[0,0,0,5],[1,2,1,4],[2,0,3,0],[2,1,3,1],[2,2,2,4],[2,5,3,5]]}
["Summary of Exposure Assessments for the General Public"]
["Application Rate:",{"$f":"'A01'!ApRt_C","v":0.4},"ppm",null,null,"E03aV6"]
["Scenario","Receptor","mg/kg/day or mg/kg/event",null,null,"Detail Worksheet"]
[null,null,"Central","Lower","Upper",null,null,null,null,null,"Lower","Central","Upper","Check"]
["Accidental Acute Exposures (dose in mg/kg/event)"]
["Direct Spray of Child, whole body","Child","No Exposure Assessment",null,null,null,null,null,null,"Spray: Child",{"$f":"IF(D6>0,  D6, \"\")","v":""},{"$f":"IF(ISERROR(C6-K6), \"\", C6-K6)","v":""},{"$f":"IF(ISERROR(E6-C6), \"\", E6-C6)","v":""},{"$f":"E6-SUM(K6:M6)","v":0}]
["Direct Spray of Woman, feet and lower legs","Adult Female","No Exposure Assessment",null,null,null,null,null,null,"Spray: Woman",{"$f":"IF(D7>0,  D7, \"\")","v":""},{"$f":"IF(ISERROR(C7-K7), \"\", C7-K7)","v":""},{"$f":"IF(ISERROR(E7-C7), \"\", E7-C7)","v":""},{"$f":"E7-SUM(K7:M7)","v":0}]
["Water consumption (spill)","Child",{"$f":"'D05'!Dose_C","v":4.4731818181818177},{"$f":"'D05'!Dose_L","v":0.54572818181818183},{"$f":"'D05'!Dose_U","v":13.419545454545455},"D05",null,null,null,"Water: Child",0.54572818181818183,3.9274536363636359,8.9463636363636372,0]
["Fish consumption (spill)","Adult Male",{"$f":"D08a!Dose_C","v":2.0249573953488369},{"$f":"D08a!Dose_L","v":0.4049914790697674},{"$f":"D08a!Dose_U","v":4.0499147906976738},"D08a",null,null,null,"Fish: General",0.4049914790697674,1.6199659162790696,2.0249573953488369,0]
["Fish consumption (spill)","Subsistence Populations",{"$f":"D08b!Dose_C","v":10.608597999999997},{"$f":"D08b!Dose_L","v":2.1217195999999996},{"$f":"D08b!Dose_U","v":21.217195999999994},"D08b",null,null,null,"Fish: Subsist",2.1217195999999996,8.4868783999999984,10.608597999999997,0]
["Non-Accidental Acute Exposures (dose in mg/kg/event)"]
["Vegetation Contact, shorts and T-shirt","Adult Female","No Exposure Assessment",null,null,null,null,null,null,"Contact: Female",{"$f":"IF(D12>0,  D12, \"\")","v":""},{"$f":"IF(ISERROR(C12-K12), \"\", C12-K12)","v":""},{"$f":"IF(ISERROR(E12-C12), \"\", E12-C12)","v":""},{"$f":"E12-SUM(K12:M12)","v":0}]
["Contaminated Fruit","Adult Female","No Exposure Assessment",null,null,null,null,null,null,"Fruit: Female","","","",0]
["Contaminated Vegetation","Adult Female","No Exposure Assessment",null,null,null,null,null,null,"Veg: Female","","","",0]
["Swimming, one hour","Adult Female",{"$f":"'D10'!Dose_C","v":3.2383304347826094E-5},{"$f":"'D10'!Dose_L","v":2.0480695652173917E-5},{"$f":"'D10'!Dose_U","v":5.1304347826086966E-5},"D10",null,null,null,"Swim: Female",2.0480695652173917E-5,1.1902608695652176E-5,1.8921043478260872E-5,0]
["Water consumption","Child",{"$f":"'D06'!Dose_C","v":3.6363636363636369E-2},{"$f":"'D06'!Dose_L","v":2.2181818181818181E-2},{"$f":"'D06'!Dose_U","v":5.4545454545454557E-2},"D06",null,null,null,"Water: Child",2.2181818181818181E-2,1.4181818181818188E-2,1.8181818181818188E-2,0]
["Fish consumption","Adult Male",{"$f":"D09c!Dose_C","v":1.6461395348837206E-2},{"$f":"D09c!Dose_L","v":1.6461395348837206E-2},{"$f":"D09c!Dose_U","v":1.6461395348837206E-2},"D09c",null,null,null,"Fish: Male",1.6461395348837206E-2,0,0,0]
["Fish consumption","Subsistence Populations",{"$f":"D09d!Dose_C","v":8.6239999999999997E-2},{"$f":"D09d!Dose_L","v":8.6239999999999997E-2},{"$f":"D09d!Dose_U","v":8.6239999999999997E-2},"D09d",null,null,null,"Fish: Subsist",8.6239999999999997E-2,0,0,0]
["Chronic/Longer Term Exposures (dose in mg/kg/day)"]
["Contaminated Fruit","Adult Female","No Exposure Assessment",null,null,null,null,null,null,"Fruit: Female",{"$f":"IF(D20>0,  D20, \"\")","v":""},{"$f":"IF(ISERROR(C20-K20), \"\", C20-K20)","v":""},{"$f":"IF(ISERROR(E20-C20), \"\", E20-C20)","v":""},{"$f":"E20-SUM(K20:M20)","v":0}]
["Contaminated Vegetation","Adult Female","No Exposure Assessment",null,null,null,null,null,null,"Veg: Female","","","",0]
["Water consumption","Adult Male",{"$f":"'D07'!Dose_C","v":1.4315113584014521E-5},{"$f":"'D07'!Dose_L","v":1.3569534751513764E-6},{"$f":"'D07'!Dose_U","v":7.5154319689744575E-4},"D07",null,null,null,"Water: Male",1.3569534751513764E-6,1.2958160108863146E-5,7.3722808331343128E-4,0]
["Fish consumption","Adult Male",{"$f":"D09a!Dose_C","v":1.6032927214096265E-6},{"$f":"D09a!Dose_L","v":2.1711255602422027E-7},{"$f":"D09a!Dose_U","v":7.0144031710428267E-5},"D09a",null,null,null,"Fish: Male",2.1711255602422027E-7,1.3861801653854062E-6,6.8540738989018637E-5,0]
["Fish consumption","Subsistence Populations",{"$f":"D09b!Dose_C","v":1.3960671371674323E-5},{"$f":"D09b!Dose_L","v":1.8905075815808975E-6},{"$f":"D09b!Dose_U","v":6.1077915611855405E-4},"D09b",null,null,null,"Fish: Subsist",1.8905075815808975E-6,1.2070163790093425E-5,5.9681848474687973E-4,0]

{"sheet":"E04","index":36,"n_rows":24,"n_cols":14,"rows_kept":24,"cut":false,"hidden":false,"merged":[[0,0,0,5],[1,2,1,4],[2,0,3,0],[2,1,3,1],[2,2,2,4],[2,5,3,5]]}
["Summary of Hazard Quotients (Toxicity) for the General Public"]
["Application Rate:",{"$f":"'A01'!ApRt_C","v":0.4},"ppm",null,null,"E03aV6"]
["Scenario","Receptor","Hazard Quotients",null,null,"Toxicity Value"]
[null,null,"Central","Lower","Upper",null,null,null,null,null,"Lower","Central","Upper","Check"]
["Accidental Acute Exposures (dose in mg/kg/event)"]
["Direct Spray of Child, whole body","Child","No exposure assessment.",null,null,null,null,null,null,"Spray: Child",{"$f":"IF(D6>0,  D6, \"\")","v":""},{"$f":"IF(ISERROR(C6-K6), \"\", C6-K6)","v":""},{"$f":"IF(ISERROR(E6-C6), \"\", E6-C6)","v":""},{"$f":"E6-SUM(K6:M6)","v":0}]
["Direct Spray of Woman, feet and lower legs","Adult Female","No exposure assessment.",null,null,null,null,null,null,"Spray: Woman",{"$f":"IF(D7>0,  D7, \"\")","v":""},{"$f":"IF(ISERROR(C7-K7), \"\", C7-K7)","v":""},{"$f":"IF(ISERROR(E7-C7), \"\", E7-C7)","v":""},{"$f":"E7-SUM(K7:M7)","v":0}]
["Water consumption (spill)","Child",{"$f":"'D05'!$C$17/$F$8","v":71.002886002886001},{"$f":"'D05'!$C$18/$F$8","v":8.6623520923520925},{"$f":"'D05'!$C$19/$F$8","v":213.00865800865802},{"$f":"'B02'!$E$4","v":6.3E-2},null,null,null,"Water: Child",8.6623520923520925,62.340533910533907,142.00577200577203,0]
["Fish consumption (spill)","Adult Male",{"$f":"D08a!$C$31/$F$9","v":32.142180878552963},{"$f":"D08a!$C$32/$F$9","v":6.4284361757105932},{"$f":"D08a!$C$33/$F$9","v":64.284361757105927},{"$f":"'B02'!$E$4","v":6.3E-2},null,null,null,"Fish: General",6.4284361757105932,25.713744702842369,32.142180878552963,0]
["Fish consumption (spill)","Subsistence Populations",{"$f":"D08b!$C$31/$F$10","v":168.3904444444444},{"$f":"D08b!$C$32/$F$10","v":33.67808888888888},{"$f":"D08b!$C$33/$F$10","v":336.7808888888888},{"$f":"'B02'!$E$4","v":6.3E-2},null,null,null,"Fish: Subsist",33.67808888888888,134.71235555555552,168.3904444444444,0]
["Non-Accidental Acute Exposures (dose in mg/kg/event)"]
["Vegetation Contact, shorts and T-shirt","Adult Female","No exposure assessment.",null,null,null,null,null,null,"Contact: Female",{"$f":"IF(D12>0,  D12, \"\")","v":""},{"$f":"IF(ISERROR(C12-K12), \"\", C12-K12)","v":""},{"$f":"IF(ISERROR(E12-C12), \"\", E12-C12)","v":""},{"$f":"E12-SUM(K12:M12)","v":0}]
["Contaminated Fruit","Adult Female","No exposure assessment.",null,null,null,null,null,null,"Fruit: Female","","","",0]
["Contaminated Vegetation","Adult Female","No exposure assessment.",null,null,null,null,null,null,"Veg: Female","","","",0]
["Swimming, one hour","Adult Female",{"$f":"'D10'!$C$29/$F$15","v":1.0794434782608697E-3},{"$f":"'D10'!$C$30/$F$15","v":6.8268985507246389E-4},{"$f":"'D10'!$C$31/$F$15","v":1.7101449275362323E-3},{"$f":"'B02'!$E$6","v":0.03},null,null,null,"Swim: Female",6.8268985507246389E-4,3.9675362318840584E-4,6.3070144927536258E-4,0]
["Water consumption","Child",{"$f":"'D06'!$C$17/$F$16","v":0.57720057720057727},{"$f":"'D06'!$C$18/$F$16","v":0.35209235209235207},{"$f":"'D06'!$C$19/$F$16","v":0.86580086580086602},{"$f":"'B02'!$E$4","v":6.3E-2},null,null,null,"Water: Child",0.35209235209235207,0.2251082251082252,0.28860028860028875,0]
["Fish consumption","Adult Male",{"$f":"D09c!$C$31/$F$17","v":0.26129198966408262},{"$f":"D09c!$C$32/$F$17","v":0.26129198966408262},{"$f":"D09c!$C$33/$F$17","v":0.26129198966408262},{"$f":"'B02'!$E$4","v":6.3E-2},null,null,null,"Fish: Male",0.26129198966408262,0,0,0]
["Fish consumption","Subsistence Populations",{"$f":"D09d!$C$31/$F$18","v":1.3688888888888888},{"$f":"D09d!$C$32/$F$18","v":1.3688888888888888},{"$f":"D09d!$C$33/$F$18","v":1.3688888888888888},{"$f":"'B02'!$E$4","v":6.3E-2},null,null,null,"Fish: Subsist",1.3688888888888888,0,0,0]
["Chronic/Longer Term Exposures (dose in mg/kg/day)"]
["Contaminated Fruit","Adult Female","No exposure assessment.",null,null,null,null,null,null,"Fruit: Female",{"$f":"IF(D20>0,  D20, \"\")","v":""},{"$f":"IF(ISERROR(C20-K20), \"\", C20-K20)","v":""},{"$f":"IF(ISERROR(E20-C20), \"\", E20-C20)","v":""},{"$f":"E20-SUM(K20:M20)","v":0}]
["Contaminated Vegetation","Adult Female","No exposure assessment.",null,null,null,null,null,null,"Veg: Female","","","",0]
["Water consumption","Adult Male",{"$f":"'D07'!$C$17/$F$22","v":7.1575567920072604E-4},{"$f":"'D07'!$C$18/$F$22","v":6.7847673757568823E-5},{"$f":"'D07'!$C$19/$F$22","v":3.7577159844872289E-2},{"$f":"'B02'!$E$5","v":0.02},null,null,null,"Water: Male",6.7847673757568823E-5,6.479080054431572E-4,3.686140416567156E-2,0]
["Fish consumption","Adult Male",{"$f":"D09a!$C$31/$F$23","v":8.016463607048132E-5},{"$f":"D09a!$C$32/$F$23","v":1.0855627801211013E-5},{"$f":"D09a!$C$33/$F$23","v":3.5072015855214132E-3},{"$f":"'B02'!$E$5","v":0.02},null,null,null,"Fish: Male",1.0855627801211013E-5,6.9309008269270302E-5,3.427036949450932E-3,0]
["Fish consumption","Subsistence Populations",{"$f":"D09b!$C$31/$F$24","v":6.9803356858371616E-4},{"$f":"D09b!$C$32/$F$24","v":9.4525379079044881E-5},{"$f":"D09b!$C$33/$F$24","v":3.0538957805927702E-2},{"$f":"'B02'!$E$5","v":0.02},null,null,null,"Fish: Subsist",9.4525379079044881E-5,6.0350818950467128E-4,2.9840924237343986E-2,0]

{"sheet":"F02a","index":37,"n_rows":20,"n_cols":5,"rows_kept":20,"cut":false,"hidden":false,"merged":[[16,0,19,0],[0,0,0,4],[1,1,1,3],[2,1,2,3],[5,0,8,0],[11,0,13,0],[14,0,15,0]]}
["Consumption of contaminated water by Mammal, small, Accidental Spill "]
["Short Title","Accidental Spill",null,null,"WatAlloV6"]
["Receptor","Mammal, small"]
["Duration","Acute",null,null,"Scenario parameter"]
["Parameter/Assumption","Code / Range","Equation/   Value","Units","Reference/Designation"]
["Concentration in water","ConcWat"]
[null,"Central ",{"$f":"B04b!Acute_C","v":49.204999999999998},"mg/L","='B04b'!Acute_C"]
[null,"Lower ",{"$f":"B04b!Acute_L","v":9.8409999999999993},null,"='B04b'!Acute_L"]
[null,"Upper ",{"$f":"B04b!Acute_U","v":98.41},null,"='B04b'!Acute_U"]
["Receptor"]
["Body weight","BW",{"$f":"A02b!$C$71","v":0.02},"kg","Default"]
["Allometric coefficients forwater consumption per day in liters and BW in kilograms"]
[null,"alpha",{"$f":"A02b!$C$79","v":9.9000000000000005E-2},null,"U.S. EPA/ORD 1993"]
[null,"beta",{"$f":"A02b!$C$80","v":0.9},null,"U.S. EPA/ORD 1993"]
["Amount of water consumed per day",null,"Amnt = alpha BW beta"]
[null,"Amnt",{"$f":"C13*(C11^C14)","v":2.9279401205240612E-3},"liters","Eq"]
["Absorbed Dose","Dose","ConcWat  × Amnt ÷ BW"]
[null,"Central ",{"$f":"C7*C$16/C$11","v":7.2034646815193213},"mg/kg","Eq"]
[null,"Lower ",{"$f":"C8*C$16/C$11","v":1.4406929363038641},"mg/kg","Eq"]
[null,"Upper ",{"$f":"C9*C$16/C$11","v":14.406929363038643},"mg/kg","Eq"]

{"sheet":"F02b","index":38,"n_rows":20,"n_cols":5,"rows_kept":20,"cut":false,"hidden":false,"merged":[[16,0,19,0],[0,0,0,4],[1,1,1,3],[2,1,2,3],[5,0,8,0],[11,0,13,0],[14,0,15,0]]}
["Consumption of contaminated water by Mammal, 400 g, Accidental Spill "]
["Short Title","Accidental Spill",null,null,"WatAlloV6"]
["Receptor","Mammal, 400 g"]
["Duration","Acute",null,null,"Scenario parameter"]
["Parameter/Assumption","Code / Range","Equation/   Value","Units","Reference/Designation"]
["Concentration in water","ConcWat"]
[null,"Central ",{"$f":"B04b!Acute_C","v":49.204999999999998},"mg/L","='B04b'!Acute_C"]
[null,"Lower ",{"$f":"B04b!Acute_L","v":9.8409999999999993},null,"='B04b'!Acute_L"]
[null,"Upper ",{"$f":"B04b!Acute_U","v":98.41},null,"='B04b'!Acute_U"]
["Receptor"]
["Body weight","BW",{"$f":"A02b!$C$40","v":0.4},"kg","Default"]
["Allometric coefficients forwater consumption per day in liters and BW in kilograms"]
[null,"alpha",{"$f":"A02b!$C$45","v":9.9000000000000005E-2},null,"U.S. EPA/ORD 1993"]
[null,"beta",{"$f":"A02b!$C$46","v":0.9},null,"U.S. EPA/ORD 1993"]
["Amount of water consumed per day",null,"Amnt = alpha BW beta"]
[null,"Amnt",{"$f":"C13*(C11^C14)","v":4.3399945764854612E-2},"liters","Eq"]
["Absorbed Dose","Dose","ConcWat  × Amnt ÷ BW"]
[null,"Central ",{"$f":"C7*C$16/C$11","v":5.3387358283991775},"mg/kg","Eq"]
[null,"Lower ",{"$f":"C8*C$16/C$11","v":1.0677471656798354},"mg/kg","Eq"]
[null,"Upper ",{"$f":"C9*C$16/C$11","v":10.677471656798355},"mg/kg","Eq"]

{"sheet":"F02c","index":39,"n_rows":20,"n_cols":5,"rows_kept":20,"cut":false,"hidden":false,"merged":[[16,0,19,0],[0,0,0,4],[1,1,1,3],[2,1,2,3],[5,0,8,0],[11,0,13,0],[14,0,15,0]]}
["Consumption of contaminated water by Mammal, carnivorous, Accidental Spill "]
["Short Title","Accidental Spill",null,null,"WatAlloV6"]
["Receptor","Mammal, carnivorous"]
["Duration","Acute",null,null,"Scenario parameter"]
["Parameter/Assumption","Code / Range","Equation/   Value","Units","Reference/Designation"]
["Concentration in water","ConcWat"]
[null,"Central ",{"$f":"B04b!Acute_C","v":49.204999999999998},"mg/L","='B04b'!Acute_C"]
[null,"Lower ",{"$f":"B04b!Acute_L","v":9.8409999999999993},null,"='B04b'!Acute_L"]
[null,"Upper ",{"$f":"B04b!Acute_U","v":98.41},null,"='B04b'!Acute_U"]
["Receptor"]
["Body weight","BW",{"$f":"A02b!$C$47","v":5},"kg","U.S. EPA/ORD 1993"]
["Allometric coefficients forwater consumption per day in liters and BW in kilograms"]
[null,"alpha",{"$f":"A02b!$C$50","v":9.9000000000000005E-2},null,"U.S. EPA/ORD 1993"]
[null,"beta",{"$f":"A02b!$C$51","v":0.9},null,"U.S. EPA/ORD 1993"]
["Amount of water consumed per day",null,"Amnt = alpha BW beta"]
[null,"Amnt",{"$f":"C13*(C11^C14)","v":0.42141326164778842},"liters","Eq"]
["Absorbed Dose","Dose","ConcWat  × Amnt ÷ BW"]
[null,"Central ",{"$f":"C7*C$16/C$11","v":4.1471279078758858},"mg/kg","Eq"]
[null,"Lower ",{"$f":"C8*C$16/C$11","v":0.82942558157517721},"mg/kg","Eq"]
[null,"Upper ",{"$f":"C9*C$16/C$11","v":8.2942558157517716},"mg/kg","Eq"]

{"sheet":"F02d","index":40,"n_rows":20,"n_cols":5,"rows_kept":20,"cut":false,"hidden":false,"merged":[[16,0,19,0],[0,0,0,4],[1,1,1,3],[2,1,2,3],[5,0,8,0],[11,0,13,0],[14,0,15,0]]}
["Consumption of contaminated water by Mammal, large, Accidental Spill "]
["Short Title","Accidental Spill",null,null,"WatAlloV6"]
["Receptor","Mammal, large"]
["Duration","Acute",null,null,"Scenario parameter"]
["Parameter/Assumption","Code / Range","Equation/   Value","Units","Reference/Designation"]
["Concentration in water","ConcWat"]
[null,"Central ",{"$f":"B04b!Acute_C","v":49.204999999999998},"mg/L","='B04b'!Acute_C"]
[null,"Lower ",{"$f":"B04b!Acute_L","v":9.8409999999999993},null,"='B04b'!Acute_L"]
[null,"Upper ",{"$f":"B04b!Acute_U","v":98.41},null,"='B04b'!Acute_U"]
["Receptor"]
["Body weight","BW",{"$f":"A02b!$C$61","v":70},"kg","Default"]
["Allometric coefficients forwater consumption per day in liters and BW in kilograms"]
[null,"alpha",{"$f":"A02b!$C$64","v":9.9000000000000005E-2},null,"U.S. EPA/ORD 1993"]
[null,"beta",{"$f":"A02b!$C$65","v":0.9},null,"U.S. EPA/ORD 1993"]
["Amount of water consumed per day",null,"Amnt = alpha BW beta"]
[null,"Amnt",{"$f":"C13*(C11^C14)","v":4.5313064115862725},"liters","Eq"]
["Absorbed Dose","Dose","ConcWat  × Amnt ÷ BW"]
[null,"Central ",{"$f":"C7*C$16/C$11","v":3.1851847426014648},"mg/kg","Eq"]
[null,"Lower ",{"$f":"C8*C$16/C$11","v":0.63703694852029291},"mg/kg","Eq"]
[null,"Upper ",{"$f":"C9*C$16/C$11","v":6.3703694852029296},"mg/kg","Eq"]

{"sheet":"F02e","index":41,"n_rows":20,"n_cols":5,"rows_kept":20,"cut":false,"hidden":false,"merged":[[16,0,19,0],[0,0,0,4],[1,1,1,3],[2,1,2,3],[5,0,8,0],[11,0,13,0],[14,0,15,0]]}
["Consumption of contaminated water by Bird, small, Accidental Spill "]
["Short Title","Accidental Spill",null,null,"WatAlloV6"]
["Receptor","Bird, small"]
["Duration","Acute",null,null,"Scenario parameter"]
["Parameter/Assumption","Code / Range","Equation/   Value","Units","Reference/Designation"]
["Concentration in water","ConcWat"]
[null,"Central ",{"$f":"B04b!Acute_C","v":49.204999999999998},"mg/L","='B04b'!Acute_C"]
[null,"Lower ",{"$f":"B04b!Acute_L","v":9.8409999999999993},null,"='B04b'!Acute_L"]
[null,"Upper ",{"$f":"B04b!Acute_U","v":98.41},null,"='B04b'!Acute_U"]
["Receptor"]
["Body weight","BW",{"$f":"A02b!$C$31","v":0.01},"kg","Default"]
["Allometric coefficients forwater consumption per day in liters and BW in kilograms"]
[null,"alpha",{"$f":"A02b!$C$34","v":5.8999999999999997E-2},null,"U.S. EPA/ORD 1993"]
[null,"beta",{"$f":"A02b!$C$35","v":0.67},null,"U.S. EPA/ORD 1993"]
["Amount of water consumed per day",null,"Amnt = alpha BW beta"]
[null,"Amnt",{"$f":"C13*(C11^C14)","v":2.6968203187277624E-3},"liters","Eq"]
["Absorbed Dose","Dose","ConcWat  × Amnt ÷ BW"]
[null,"Central ",{"$f":"C7*C$16/C$11","v":13.269704378299954},"mg/kg","Eq"]
[null,"Lower ",{"$f":"C8*C$16/C$11","v":2.6539408756599907},"mg/kg","Eq"]
[null,"Upper ",{"$f":"C9*C$16/C$11","v":26.539408756599908},"mg/kg","Eq"]

{"sheet":"F02f","index":42,"n_rows":20,"n_cols":5,"rows_kept":20,"cut":false,"hidden":false,"merged":[[16,0,19,0],[0,0,0,4],[1,1,1,3],[2,1,2,3],[5,0,8,0],[11,0,13,0],[14,0,15,0]]}
["Consumption of contaminated water by Bird, large, Accidental Spill "]
["Short Title","Accidental Spill",null,null,"WatAlloV6"]
["Receptor","Bird, large"]
["Duration","Acute",null,null,"Scenario parameter"]
["Parameter/Assumption","Code / Range","Equation/   Value","Units","Reference/Designation"]
["Concentration in water","ConcWat"]
[null,"Central ",{"$f":"B04b!Acute_C","v":49.204999999999998},"mg/L","='B04b'!Acute_C"]
[null,"Lower ",{"$f":"B04b!Acute_L","v":9.8409999999999993},null,"='B04b'!Acute_L"]
[null,"Upper ",{"$f":"B04b!Acute_U","v":98.41},null,"='B04b'!Acute_U"]
["Receptor"]
["Body weight","BW",{"$f":"A02b!$C$15","v":4},"kg","Default"]
["Allometric coefficients forwater consumption per day in liters and BW in kilograms"]
[null,"alpha",{"$f":"A02b!$C$18","v":5.8999999999999997E-2},null,"U.S. EPA/ORD 1993"]
[null,"beta",{"$f":"A02b!$C$19","v":0.67},null,"U.S. EPA/ORD 1993"]
["Amount of water consumed per day",null,"Amnt = alpha BW beta"]
[null,"Amnt",{"$f":"C13*(C11^C14)","v":0.14935927808849303},"liters","Eq"]
["Absorbed Dose","Dose","ConcWat  × Amnt ÷ BW"]
[null,"Central ",{"$f":"C7*C$16/C$11","v":1.8373058195860748},"mg/kg","Eq"]
[null,"Lower ",{"$f":"C8*C$16/C$11","v":0.36746116391721495},"mg/kg","Eq"]
[null,"Upper ",{"$f":"C9*C$16/C$11","v":3.6746116391721495},"mg/kg","Eq"]

{"sheet":"F03a","index":43,"n_rows":50,"n_cols":5,"rows_kept":50,"cut":false,"hidden":false,"merged":[[7,0,10,0],[0,0,0,4],[1,1,1,3],[2,1,2,3],[3,1,3,3],[4,1,4,3],[36,0,39,0],[41,0,44,0],[45,0,48,0],[12,0,15,0],[16,0,19,0],[22,0,24,0],[27,0,28,0],[30,0,31,0],[32,0,33,0]]}
["Acute scenario for the consumption of Contaminated Fish (Accidental Spill) by Mammal, large carnivorous "]
["Short Title","Fish consumption, accidental spill",null,null,"FishKcalV6"]
["Predator","Mammal, large carnivorous"]
["Food Item (Prey)","Fish"]
["Duration","Acute",null,null,"Scenario parameter"]
["Parameter/Assumption","Code / Range","Equation/   Value","Units","Reference/Designation"]
["Water"]
["Concentration in water","ConcWat"]
[null,"Central ",{"$f":"B04b!Acute_C","v":49.204999999999998},"mg/L","='B04b'!Acute_C"]
[null,"Lower ",{"$f":"B04b!Acute_L","v":9.8409999999999993},null,"='B04b'!Acute_L"]
[null,"Upper ",{"$f":"B04b!Acute_U","v":98.41},null,"='B04b'!Acute_U"]
["Fish"]
["Bioconcentration factor","BCF"]
[null,"Central ",{"$f":"'B01'!$C$6","v":22.4},"L/kg","EPA 2012"]
[null,"Lower ",{"$f":"'B01'!$C$6","v":22.4},null,"EPA 2012"]
[null,"Upper ",{"$f":"'B01'!$C$6","v":22.4},null,"EPA 2012"]
["Concentration in fish","ConcFish","ConcWat × BCF"]
[null,"Central ",{"$f":"C9*C14","v":1102.1919999999998},"mg/kg","Eq"]
[null,"Lower ",{"$f":"C10*C15","v":220.43839999999997},null,"Eq"]
[null,"Upper ",{"$f":"C11*C16","v":2204.3839999999996},null,"Eq"]
["Receptor"]
["Body weight","BW",{"$f":"A02b!$C$52","v":70},"kg","Reid 2006"]
["Allometric coefficients for caloric requirement per day in kilocalories and BW in grams"]
[null,"alpha",{"$f":"A02b!$C$53","v":0.61670000000000003},null,"U.S. EPA/ORD 1993"]
[null,"beta",{"$f":"A02b!$C$54","v":0.86199999999999999},null,"U.S. EPA/ORD 1993"]
["Caloric requirement per day","KR",{"$f":"C24*(C22*1000)^C25","v":9258.6668828796119},"kcal/day","Eq"]
["Caloric content of commodity (dry weight)","KCD",{"$f":"'A03'!$E$59","v":4.47},"kcal/gdw [Note 1]","U.S. EPA/ORD 1993"]
["Food consumed per day (dry weight)","AmntDry"," = KR ÷ KCD"]
[null,null,{"$f":"C26/C27","v":2071.2901303981234},"gdry/day","Eq"]
["Water content of vegetation as a proportion","PropWater",{"$f":"'A03'!$E$60","v":0.7},"gwater/gfood","Ali et al. 2005"]
["Dry weight content of vegetation as a proportion","PropDry"," = 1-PropWater"]
[null,null,{"$f":"1-C30","v":0.30000000000000004},"gdry/gfood","Eq"]
["Amount of fish consumed per day,  wet weight","AmntFish"," = (AmntDry ÷ PropDry) ÷ (1000g/kg)"]
[null,"Central ",{"$f":"(C29/C32)/1000","v":6.90430043466041},"kgfood/day","Eq"]
[null,"Lower ",{"$f":"C34*0.3","v":2.0712901303981228},"Note 1","Eq"]
[null,"Upper ",{"$f":"C34*1.7","v":11.737310738922696},"Note 1","Eq"]
["Proportion of diet that is contaminated","Prop"]
[null,"Central ",0.3,"Unitless","Scenario parameter"]
[null,"Lower ",0.1,null,"Scenario parameter"]
[null,"Upper ",1,null,"Scenario parameter"]
["Dose"]
["Toxic Equivalency Factor for formulation:  (See risk assessment if this has a value other than 1.)","TEF"]
[null,"Central ",{"$f":"'A01'!C$45","v":1},"Unitless","Worksheet A01"]
[null,"Lower ",{"$f":"'A01'!C$46","v":1},"Note 2","Worksheet A01"]
[null,"Upper ",{"$f":"'A01'!C$47","v":1},"Note 2","Worksheet A01"]
["Dose","Dose","= ConcFish × AmntFish × Prop ÷ BW"]
[null,"Central ",{"$f":"C18*C34*C38/C$22","v":32.613705877196672},"mg/kg","Eq"]
[null,"Lower ",{"$f":"C19*C35*C39/C$22","v":0.65227411754393361},"mg/kg","Eq"]
[null,"Upper ",369.62199994156231,"mg/kg","Eq"]
[null,null,null,null,"FishKcalV6"]

{"sheet":"F03b","index":44,"n_rows":50,"n_cols":5,"rows_kept":50,"cut":false,"hidden":false,"merged":[[7,0,10,0],[0,0,0,4],[1,1,1,3],[2,1,2,3],[3,1,3,3],[4,1,4,3],[36,0,39,0],[41,0,44,0],[45,0,48,0],[12,0,15,0],[16,0,19,0],[22,0,24,0],[27,0,28,0],[30,0,31,0],[32,0,33,0]]}
["Acute scenario for the consumption of Contaminated Fish (Accidental Spill) by Mammal, carnivorous "]
["Short Title","Fish consumption, accidental spill",null,null,"FishKcalV6"]
["Predator","Mammal, carnivorous"]
["Food Item (Prey)","Fish"]
["Duration","Acute",null,null,"Scenario parameter"]
["Parameter/Assumption","Code / Range","Equation/   Value","Units","Reference/Designation"]
["Water"]
["Concentration in water","ConcWat"]
[null,"Central ",{"$f":"B04b!Acute_C","v":49.204999999999998},"mg/L","='B04b'!Acute_C"]
[null,"Lower ",{"$f":"B04b!Acute_L","v":9.8409999999999993},null,"='B04b'!Acute_L"]
[null,"Upper ",{"$f":"B04b!Acute_U","v":98.41},null,"='B04b'!Acute_U"]
["Fish"]
["Bioconcentration factor","BCF"]
[null,"Central ",{"$f":"'B01'!$C$6","v":22.4},"L/kg","EPA 2012"]
[null,"Lower ",{"$f":"'B01'!$C$6","v":22.4},null,"EPA 2012"]
[null,"Upper ",{"$f":"'B01'!$C$6","v":22.4},null,"EPA 2012"]
["Concentration in fish","ConcFish","ConcWat × BCF"]
[null,"Central ",{"$f":"C9*C14","v":1102.1919999999998},"mg/kg","Eq"]
[null,"Lower ",{"$f":"C10*C15","v":220.43839999999997},null,"Eq"]
[null,"Upper ",{"$f":"C11*C16","v":2204.3839999999996},null,"Eq"]
["Receptor"]
["Body weight","BW",{"$f":"A02b!$C$47","v":5},"kg","U.S. EPA/ORD 1993"]
["Allometric coefficients for caloric requirement per day in kilocalories and BW in grams"]
[null,"alpha",{"$f":"A02b!$C$48","v":0.61670000000000003},null,"U.S. EPA/ORD 1993"]
[null,"beta",{"$f":"A02b!$C$49","v":0.86199999999999999},null,"U.S. EPA/ORD 1993"]
["Caloric requirement per day","KR",{"$f":"C24*(C22*1000)^C25","v":951.88852658889334},"kcal/day","Eq"]
["Caloric content of commodity (dry weight)","KCD",{"$f":"'A03'!$E$59","v":4.47},"kcal/gdw [Note 1]","U.S. EPA/ORD 1993"]
["Food consumed per day (dry weight)","AmntDry"," = KR ÷ KCD"]
[null,null,{"$f":"C26/C27","v":212.95045337559137},"gdry/day","Eq"]
["Water content of vegetation as a proportion","PropWater",{"$f":"'A03'!$E$60","v":0.7},"gwater/gfood","Ali et al. 2005"]
["Dry weight content of vegetation as a proportion","PropDry"," = 1-PropWater"]
[null,null,{"$f":"1-C30","v":0.30000000000000004},"gdry/gfood","Eq"]
["Amount of fish consumed per day,  wet weight","AmntFish"," = (AmntDry ÷ PropDry) ÷ (1000g/kg)"]
[null,"Central ",{"$f":"(C29/C32)/1000","v":0.70983484458530455},"kgfood/day","Eq"]
[null,"Lower ",{"$f":"C34*0.3","v":0.21295045337559135},"Note 1","Eq"]
[null,"Upper ",{"$f":"C34*1.7","v":1.2067192357950176},"Note 1","Eq"]
["Proportion of diet that is contaminated","Prop"]
[null,"Central ",0.3,"Unitless","Scenario parameter"]
[null,"Lower ",0.1,null,"Scenario parameter"]
[null,"Upper ",1,null,"Scenario parameter"]
["Dose"]
["Toxic Equivalency Factor for formulation:  (See risk assessment if this has a value other than 1.)","TEF"]
[null,"Central ",{"$f":"'A01'!C$45","v":1},"Unitless","Worksheet A01"]
[null,"Lower ",{"$f":"'A01'!C$46","v":1},"Note 2","Worksheet A01"]
[null,"Upper ",{"$f":"'A01'!C$47","v":1},"Note 2","Worksheet A01"]
["Dose","Dose","= ConcFish × AmntFish × Prop ÷ BW"]
[null,"Central ",{"$f":"C18*C34*C38/C$22","v":46.942457221389944},"mg/kg","Eq"]
[null,"Lower ",{"$f":"C19*C35*C39/C$22","v":0.9388491444277991},"mg/kg","Eq"]
[null,"Upper ",532.01451517575265,"mg/kg","Eq"]
[null,null,null,null,"FishKcalV6"]

{"sheet":"F03c","index":45,"n_rows":50,"n_cols":5,"rows_kept":50,"cut":false,"hidden":false,"merged":[[7,0,10,0],[0,0,0,4],[1,1,1,3],[2,1,2,3],[3,1,3,3],[4,1,4,3],[36,0,39,0],[41,0,44,0],[45,0,48,0],[12,0,15,0],[16,0,19,0],[22,0,24,0],[27,0,28,0],[30,0,31,0],[32,0,33,0]]}
["Acute scenario for the consumption of Contaminated Fish (Accidental Spill) by Bird, piscivorous "]
["Short Title","Fish consumption, accidental spill",null,null,"FishKcalV6"]
["Predator","Bird, piscivorous"]
["Food Item (Prey)","Fish"]
["Duration","Acute",null,null,"Scenario parameter"]
["Parameter/Assumption","Code / Range","Equation/   Value","Units","Reference/Designation"]
["Water"]
["Concentration in water","ConcWat"]
[null,"Central ",{"$f":"B04b!Acute_C","v":49.204999999999998},"mg/L","='B04b'!Acute_C"]
[null,"Lower ",{"$f":"B04b!Acute_L","v":9.8409999999999993},null,"='B04b'!Acute_L"]
[null,"Upper ",{"$f":"B04b!Acute_U","v":98.41},null,"='B04b'!Acute_U"]
["Fish"]
["Bioconcentration factor","BCF"]
[null,"Central ",{"$f":"'B01'!$C$6","v":22.4},"L/kg","EPA 2012"]
[null,"Lower ",{"$f":"'B01'!$C$6","v":22.4},null,"EPA 2012"]
[null,"Upper ",{"$f":"'B01'!$C$6","v":22.4},null,"EPA 2012"]
["Concentration in fish","ConcFish","ConcWat × BCF"]
[null,"Central ",{"$f":"C9*C14","v":1102.1919999999998},"mg/kg","Eq"]
[null,"Lower ",{"$f":"C10*C15","v":220.43839999999997},null,"Eq"]
[null,"Upper ",{"$f":"C11*C16","v":2204.3839999999996},null,"Eq"]
["Receptor"]
["Body weight","BW",{"$f":"A02b!$C$24","v":2.4},"kg","Sibley 2000"]
["Allometric coefficients for caloric requirement per day in kilocalories and BW in grams"]
[null,"alpha",{"$f":"A02b!$C$27","v":1.9159999999999999},null,"U.S. EPA/ORD 1993"]
[null,"beta",{"$f":"A02b!$C$28","v":0.70399999999999996},null,"U.S. EPA/ORD 1993"]
["Caloric requirement per day","KR",{"$f":"C24*(C22*1000)^C25","v":459.26591923752829},"kcal/day","Eq"]
["Caloric content of commodity (dry weight)","KCD",{"$f":"'A03'!$E$36","v":3.87},"kcal/gdw [Note 1]","U.S. EPA/ORD 1993"]
["Food consumed per day (dry weight)","AmntDry"," = KR ÷ KCD"]
[null,null,{"$f":"C26/C27","v":118.67336414406415},"gdry/day","Eq"]
["Water content of vegetation as a proportion","PropWater",{"$f":"'A03'!$E$37","v":0.7},"gwater/gfood","Ali et al. 2005"]
["Dry weight content of vegetation as a proportion","PropDry"," = 1-PropWater"]
[null,null,{"$f":"1-C30","v":0.30000000000000004},"gdry/gfood","Eq"]
["Amount of fish consumed per day,  wet weight","AmntFish"," = (AmntDry ÷ PropDry) ÷ (1000g/kg)"]
[null,"Central ",{"$f":"(C29/C32)/1000","v":0.39557788048021375},"kgfood/day","Eq"]
[null,"Lower ",{"$f":"C34*0.3","v":0.11867336414406413},"Note 1","Eq"]
[null,"Upper ",{"$f":"C34*1.7","v":0.67248239681636335},"Note 1","Eq"]
["Proportion of diet that is contaminated","Prop"]
[null,"Central ",0.3,"Unitless","Scenario parameter"]
[null,"Lower ",0.1,null,"Scenario parameter"]
[null,"Upper ",1,null,"Scenario parameter"]
["Dose"]
["Toxic Equivalency Factor for formulation:  (See risk assessment if this has a value other than 1.)","TEF"]
[null,"Central ",{"$f":"'A01'!C$45","v":1},"Unitless","Worksheet A01"]
[null,"Lower ",{"$f":"'A01'!C$46","v":1},"Note 2","Worksheet A01"]
[null,"Upper ",{"$f":"'A01'!C$47","v":1},"Note 2","Worksheet A01"]
["Dose","Dose","= ConcFish × AmntFish × Prop ÷ BW"]
[null,"Central ",{"$f":"C18*C34*C38/C$22","v":54.500346905280956},"mg/kg","Eq"]
[null,"Lower ",{"$f":"C19*C35*C39/C$22","v":1.0900069381056194},"mg/kg","Eq"]
[null,"Upper ",617.67059825985086,"mg/kg","Eq"]
[null,null,null,null,"FishKcalV6"]

{"sheet":"F08a","index":46,"n_rows":20,"n_cols":5,"rows_kept":20,"cut":false,"hidden":false,"merged":[[16,0,19,0],[0,0,0,4],[1,1,1,3],[2,1,2,3],[5,0,8,0],[11,0,13,0],[14,0,15,0]]}
["Consumption of contaminated water by Mammal, small, Peak Concentrations "]
["Short Title","Peak Concentrations",null,null,"WatAlloV6"]
["Receptor","Mammal, small"]
["Duration","Acute",null,null,"Scenario parameter"]
["Parameter/Assumption","Code / Range","Equation/   Value","Units","Reference/Designation"]
["Concentration in water","ConcWat"]
[null,"Central ",{"$f":"B04a!Acute_C","v":0.4},"mg/L","='B04a'!Acute_C"]
[null,"Lower ",{"$f":"B04a!Acute_L","v":0.4},null,"='B04a'!Acute_L"]
[null,"Upper ",{"$f":"B04a!Acute_U","v":0.4},null,"='B04a'!Acute_U"]
["Receptor"]
["Body weight","BW",{"$f":"A02b!$C$71","v":0.02},"kg","Default"]
["Allometric coefficients forwater consumption per day in liters and BW in kilograms"]
[null,"alpha",{"$f":"A02b!$C$79","v":9.9000000000000005E-2},null,"U.S. EPA/ORD 1993"]
[null,"beta",{"$f":"A02b!$C$80","v":0.9},null,"U.S. EPA/ORD 1993"]
["Amount of water consumed per day",null,"Amnt = alpha BW beta"]
[null,"Amnt",{"$f":"C13*(C11^C14)","v":2.9279401205240612E-3},"liters","Eq"]
["Absorbed Dose","Dose","ConcWat  × Amnt ÷ BW"]
[null,"Central ",{"$f":"C7*C$16/C$11","v":5.8558802410481225E-2},"mg/kg","Eq"]
[null,"Lower ",{"$f":"C8*C$16/C$11","v":5.8558802410481225E-2},"mg/kg","Eq"]
[null,"Upper ",{"$f":"C9*C$16/C$11","v":5.8558802410481225E-2},"mg/kg","Eq"]

{"sheet":"F08b","index":47,"n_rows":20,"n_cols":5,"rows_kept":20,"cut":false,"hidden":false,"merged":[[16,0,19,0],[0,0,0,4],[1,1,1,3],[2,1,2,3],[5,0,8,0],[11,0,13,0],[14,0,15,0]]}
["Consumption of contaminated water by Mammal, 400 g, Peak Concentrations "]
["Short Title","Peak Concentrations",null,null,"WatAlloV6"]
["Receptor","Mammal, 400 g"]
["Duration","Acute",null,null,"Scenario parameter"]
["Parameter/Assumption","Code / Range","Equation/   Value","Units","Reference/Designation"]
["Concentration in water","ConcWat"]
[null,"Central ",{"$f":"B04a!Acute_C","v":0.4},"mg/L","='B04a'!Acute_C"]
[null,"Lower ",{"$f":"B04a!Acute_L","v":0.4},null,"='B04a'!Acute_L"]
[null,"Upper ",{"$f":"B04a!Acute_U","v":0.4},null,"='B04a'!Acute_U"]
["Receptor"]
["Body weight","BW",{"$f":"A02b!$C$40","v":0.4},"kg","Default"]
["Allometric coefficients forwater consumption per day in liters and BW in kilograms"]
[null,"alpha",{"$f":"A02b!$C$45","v":9.9000000000000005E-2},null,"U.S. EPA/ORD 1993"]
[null,"beta",{"$f":"A02b!$C$46","v":0.9},null,"U.S. EPA/ORD 1993"]
["Amount of water consumed per day",null,"Amnt = alpha BW beta"]
[null,"Amnt",{"$f":"C13*(C11^C14)","v":4.3399945764854612E-2},"liters","Eq"]
["Absorbed Dose","Dose","ConcWat  × Amnt ÷ BW"]
[null,"Central ",{"$f":"C7*C$16/C$11","v":4.3399945764854612E-2},"mg/kg","Eq"]
[null,"Lower ",{"$f":"C8*C$16/C$11","v":4.3399945764854612E-2},"mg/kg","Eq"]
[null,"Upper ",{"$f":"C9*C$16/C$11","v":4.3399945764854612E-2},"mg/kg","Eq"]

{"sheet":"F08c","index":48,"n_rows":20,"n_cols":5,"rows_kept":20,"cut":false,"hidden":false,"merged":[[16,0,19,0],[0,0,0,4],[1,1,1,3],[2,1,2,3],[5,0,8,0],[11,0,13,0],[14,0,15,0]]}
["Consumption of contaminated water by Mammal, carnivorous, Peak Concentrations "]
["Short Title","Peak Concentrations",null,null,"WatAlloV6"]
["Receptor","Mammal, carnivorous"]
["Duration","Acute",null,null,"Scenario parameter"]
["Parameter/Assumption","Code / Range","Equation/   Value","Units","Reference/Designation"]
["Concentration in water","ConcWat"]
[null,"Central ",{"$f":"B04a!Acute_C","v":0.4},"mg/L","='B04a'!Acute_C"]
[null,"Lower ",{"$f":"B04a!Acute_L","v":0.4},null,"='B04a'!Acute_L"]
[null,"Upper ",{"$f":"B04a!Acute_U","v":0.4},null,"='B04a'!Acute_U"]
["Receptor"]
["Body weight","BW",{"$f":"A02b!$C$47","v":5},"kg","U.S. EPA/ORD 1993"]
["Allometric coefficients forwater consumption per day in liters and BW in kilograms"]
[null,"alpha",{"$f":"A02b!$C$50","v":9.9000000000000005E-2},null,"U.S. EPA/ORD 1993"]
[null,"beta",{"$f":"A02b!$C$51","v":0.9},null,"U.S. EPA/ORD 1993"]
["Amount of water consumed per day",null,"Amnt = alpha BW beta"]
[null,"Amnt",{"$f":"C13*(C11^C14)","v":0.42141326164778842},"liters","Eq"]
["Absorbed Dose","Dose","ConcWat  × Amnt ÷ BW"]
[null,"Central ",{"$f":"C7*C$16/C$11","v":3.3713060931823073E-2},"mg/kg","Eq"]
[null,"Lower ",{"$f":"C8*C$16/C$11","v":3.3713060931823073E-2},"mg/kg","Eq"]
[null,"Upper ",{"$f":"C9*C$16/C$11","v":3.3713060931823073E-2},"mg/kg","Eq"]

{"sheet":"F08d","index":49,"n_rows":20,"n_cols":5,"rows_kept":20,"cut":false,"hidden":false,"merged":[[16,0,19,0],[0,0,0,4],[1,1,1,3],[2,1,2,3],[5,0,8,0],[11,0,13,0],[14,0,15,0]]}
["Consumption of contaminated water by Mammal, large, Peak Concentrations "]
["Short Title","Peak Concentrations",null,null,"WatAlloV6"]
["Receptor","Mammal, large"]
["Duration","Acute",null,null,"Scenario parameter"]
["Parameter/Assumption","Code / Range","Equation/   Value","Units","Reference/Designation"]
["Concentration in water","ConcWat"]
[null,"Central ",{"$f":"B04a!Acute_C","v":0.4},"mg/L","='B04a'!Acute_C"]
[null,"Lower ",{"$f":"B04a!Acute_L","v":0.4},null,"='B04a'!Acute_L"]
[null,"Upper ",{"$f":"B04a!Acute_U","v":0.4},null,"='B04a'!Acute_U"]
["Receptor"]
["Body weight","BW",{"$f":"A02b!$C$61","v":70},"kg","Default"]
["Allometric coefficients forwater consumption per day in liters and BW in kilograms"]
[null,"alpha",{"$f":"A02b!$C$64","v":9.9000000000000005E-2},null,"U.S. EPA/ORD 1993"]
[null,"beta",{"$f":"A02b!$C$65","v":0.9},null,"U.S. EPA/ORD 1993"]
["Amount of water consumed per day",null,"Amnt = alpha BW beta"]
[null,"Amnt",{"$f":"C13*(C11^C14)","v":4.5313064115862725},"liters","Eq"]
["Absorbed Dose","Dose","ConcWat  × Amnt ÷ BW"]
[null,"Central ",{"$f":"C7*C$16/C$11","v":2.5893179494778703E-2},"mg/kg","Eq"]
[null,"Lower ",{"$f":"C8*C$16/C$11","v":2.5893179494778703E-2},"mg/kg","Eq"]
[null,"Upper ",{"$f":"C9*C$16/C$11","v":2.5893179494778703E-2},"mg/kg","Eq"]

{"sheet":"F08e","index":50,"n_rows":20,"n_cols":5,"rows_kept":20,"cut":false,"hidden":false,"merged":[[16,0,19,0],[0,0,0,4],[1,1,1,3],[2,1,2,3],[5,0,8,0],[11,0,13,0],[14,0,15,0]]}
["Consumption of contaminated water by Bird, small, Peak Concentrations "]
["Short Title","Peak Concentrations",null,null,"WatAlloV6"]
["Receptor","Bird, small"]
["Duration","Acute",null,null,"Scenario parameter"]
["Parameter/Assumption","Code / Range","Equation/   Value","Units","Reference/Designation"]
["Concentration in water","ConcWat"]
[null,"Central ",{"$f":"B04a!Acute_C","v":0.4},"mg/L","='B04a'!Acute_C"]
[null,"Lower ",{"$f":"B04a!Acute_L","v":0.4},null,"='B04a'!Acute_L"]
[null,"Upper ",{"$f":"B04a!Acute_U","v":0.4},null,"='B04a'!Acute_U"]
["Receptor"]
["Body weight","BW",{"$f":"A02b!$C$31","v":0.01},"kg","Default"]
["Allometric coefficients forwater consumption per day in liters and BW in kilograms"]
[null,"alpha",{"$f":"A02b!$C$34","v":5.8999999999999997E-2},null,"U.S. EPA/ORD 1993"]
[null,"beta",{"$f":"A02b!$C$35","v":0.67},null,"U.S. EPA/ORD 1993"]
["Amount of water consumed per day",null,"Amnt = alpha BW beta"]
[null,"Amnt",{"$f":"C13*(C11^C14)","v":2.6968203187277624E-3},"liters","Eq"]
["Absorbed Dose","Dose","ConcWat  × Amnt ÷ BW"]
[null,"Central ",{"$f":"C7*C$16/C$11","v":0.10787281274911051},"mg/kg","Eq"]
[null,"Lower ",{"$f":"C8*C$16/C$11","v":0.10787281274911051},"mg/kg","Eq"]
[null,"Upper ",{"$f":"C9*C$16/C$11","v":0.10787281274911051},"mg/kg","Eq"]

{"sheet":"F08f","index":51,"n_rows":20,"n_cols":5,"rows_kept":20,"cut":false,"hidden":false,"merged":[[16,0,19,0],[0,0,0,4],[1,1,1,3],[2,1,2,3],[5,0,8,0],[11,0,13,0],[14,0,15,0]]}
["Consumption of contaminated water by Bird, large, Peak Concentrations "]
["Short Title","Peak Concentrations",null,null,"WatAlloV6"]
["Receptor","Bird, large"]
["Duration","Acute",null,null,"Scenario parameter"]
["Parameter/Assumption","Code / Range","Equation/   Value","Units","Reference/Designation"]
["Concentration in water","ConcWat"]
[null,"Central ",{"$f":"B04a!Acute_C","v":0.4},"mg/L","='B04a'!Acute_C"]
[null,"Lower ",{"$f":"B04a!Acute_L","v":0.4},null,"='B04a'!Acute_L"]
[null,"Upper ",{"$f":"B04a!Acute_U","v":0.4},null,"='B04a'!Acute_U"]
["Receptor"]
["Body weight","BW",{"$f":"A02b!$C$15","v":4},"kg","Default"]
["Allometric coefficients forwater consumption per day in liters and BW in kilograms"]
[null,"alpha",{"$f":"A02b!$C$18","v":5.8999999999999997E-2},null,"U.S. EPA/ORD 1993"]
[null,"beta",{"$f":"A02b!$C$19","v":0.67},null,"U.S. EPA/ORD 1993"]
["Amount of water consumed per day",null,"Amnt = alpha BW beta"]
[null,"Amnt",{"$f":"C13*(C11^C14)","v":0.14935927808849303},"liters","Eq"]
["Absorbed Dose","Dose","ConcWat  × Amnt ÷ BW"]
[null,"Central ",{"$f":"C7*C$16/C$11","v":1.4935927808849303E-2},"mg/kg","Eq"]
[null,"Lower ",{"$f":"C8*C$16/C$11","v":1.4935927808849303E-2},"mg/kg","Eq"]
[null,"Upper ",{"$f":"C9*C$16/C$11","v":1.4935927808849303E-2},"mg/kg","Eq"]

{"sheet":"F11a","index":52,"n_rows":50,"n_cols":5,"rows_kept":50,"cut":false,"hidden":false,"merged":[[7,0,10,0],[0,0,0,4],[1,1,1,3],[2,1,2,3],[3,1,3,3],[4,1,4,3],[36,0,39,0],[41,0,44,0],[45,0,48,0],[12,0,15,0],[16,0,19,0],[22,0,24,0],[27,0,28,0],[30,0,31,0],[32,0,33,0]]}
["Acute scenario for the consumption of Contaminated Fish (Peak) by Mammal, large carnivorous "]
["Short Title","Fish consumption, accidental spill",null,null,"FishKcalV6"]
["Predator","Mammal, large carnivorous"]
["Food Item (Prey)","Fish"]
["Duration","Acute",null,null,"Scenario parameter"]
["Parameter/Assumption","Code / Range","Equation/   Value","Units","Reference/Designation"]
["Water"]
["Concentration in water","ConcWat"]
[null,"Central ",{"$f":"B04a!Acute_C","v":0.4},"mg/L","='B04a'!Acute_C"]
[null,"Lower ",{"$f":"B04a!Acute_L","v":0.4},null,"='B04a'!Acute_L"]
[null,"Upper ",{"$f":"B04a!Acute_U","v":0.4},null,"='B04a'!Acute_U"]
["Fish"]
["Bioconcentration factor","BCF"]
[null,"Central ",{"$f":"'B01'!$C$6","v":22.4},"L/kg","EPA 2012"]
[null,"Lower ",{"$f":"'B01'!$C$6","v":22.4},null,"EPA 2012"]
[null,"Upper ",{"$f":"'B01'!$C$6","v":22.4},null,"EPA 2012"]
["Concentration in fish","ConcFish","ConcWat × BCF"]
[null,"Central ",{"$f":"C9*C14","v":8.9599999999999991},"mg/kg","Eq"]
[null,"Lower ",{"$f":"C10*C15","v":8.9599999999999991},null,"Eq"]
[null,"Upper ",{"$f":"C11*C16","v":8.9599999999999991},null,"Eq"]
["Receptor"]
["Body weight","BW",{"$f":"A02b!$C$52","v":70},"kg","Reid 2006"]
["Allometric coefficients for caloric requirement per day in kilocalories and BW in grams"]
[null,"alpha",{"$f":"A02b!$C$53","v":0.61670000000000003},null,"U.S. EPA/ORD 1993"]
[null,"beta",{"$f":"A02b!$C$54","v":0.86199999999999999},null,"U.S. EPA/ORD 1993"]
["Caloric requirement per day","KR",{"$f":"C24*(C22*1000)^C25","v":9258.6668828796119},"kcal/day","Eq"]
["Caloric content of commodity (dry weight)","KCD",{"$f":"'A03'!$E$59","v":4.47},"kcal/gdw [Note 1]","U.S. EPA/ORD 1993"]
["Food consumed per day (dry weight)","AmntDry"," = KR ÷ KCD"]
[null,null,{"$f":"C26/C27","v":2071.2901303981234},"gdry/day","Eq"]
["Water content of vegetation as a proportion","PropWater",{"$f":"'A03'!$E$60","v":0.7},"gwater/gfood","Ali et al. 2005"]
["Dry weight content of vegetation as a proportion","PropDry"," = 1-PropWater"]
[null,null,{"$f":"1-C30","v":0.30000000000000004},"gdry/gfood","Eq"]
["Amount of fish consumed per day,  wet weight","AmntFish"," = (AmntDry ÷ PropDry) ÷ (1000g/kg)"]
[null,"Central ",{"$f":"(C29/C32)/1000","v":6.90430043466041},"kgfood/day","Eq"]
[null,"Lower ",{"$f":"C34*0.3","v":2.0712901303981228},"Note 1","Eq"]
[null,"Upper ",{"$f":"C34*1.7","v":11.737310738922696},"Note 1","Eq"]
["Proportion of diet that is contaminated","Prop"]
[null,"Central ",0.3,"Unitless","Scenario parameter"]
[null,"Lower ",0.1,null,"Scenario parameter"]
[null,"Upper ",1,null,"Scenario parameter"]
["Dose"]
["Toxic Equivalency Factor for formulation:  (See risk assessment if this has a value other than 1.)","TEF"]
[null,"Central ",{"$f":"'A01'!C$45","v":1},"Unitless","Worksheet A01"]
[null,"Lower ",{"$f":"'A01'!C$46","v":1},"Note 2","Worksheet A01"]
[null,"Upper ",{"$f":"'A01'!C$47","v":1},"Note 2","Worksheet A01"]
["Dose","Dose","= ConcFish × AmntFish × Prop ÷ BW"]
[null,"Central ",{"$f":"C18*C34*C38/C$22","v":0.26512513669095972},"mg/kg","Eq"]
[null,"Lower ",{"$f":"C19*C35*C39/C$22","v":2.6512513669095971E-2},"mg/kg","Eq"]
[null,"Upper ",1.5023757745821049,"mg/kg","Eq"]
[null,null,null,null,"FishKcalV6"]

{"sheet":"F11b","index":53,"n_rows":50,"n_cols":5,"rows_kept":50,"cut":false,"hidden":false,"merged":[[7,0,10,0],[0,0,0,4],[1,1,1,3],[2,1,2,3],[3,1,3,3],[4,1,4,3],[36,0,39,0],[41,0,44,0],[45,0,48,0],[12,0,15,0],[16,0,19,0],[22,0,24,0],[27,0,28,0],[30,0,31,0],[32,0,33,0]]}
["Acute scenario for the consumption of Contaminated Fish (Peak) by Mammal, carnivorous "]
["Short Title","Fish consumption, accidental spill",null,null,"FishKcalV6"]
["Predator","Mammal, carnivorous"]
["Food Item (Prey)","Fish"]
["Duration","Acute",null,null,"Scenario parameter"]
["Parameter/Assumption","Code / Range","Equation/   Value","Units","Reference/Designation"]
["Water"]
["Concentration in water","ConcWat"]
[null,"Central ",{"$f":"B04a!Acute_C","v":0.4},"mg/L","='B04a'!Acute_C"]
[null,"Lower ",{"$f":"B04a!Acute_L","v":0.4},null,"='B04a'!Acute_L"]
[null,"Upper ",{"$f":"B04a!Acute_U","v":0.4},null,"='B04a'!Acute_U"]
["Fish"]
["Bioconcentration factor","BCF"]
[null,"Central ",{"$f":"'B01'!$C$6","v":22.4},"L/kg","EPA 2012"]
[null,"Lower ",{"$f":"'B01'!$C$6","v":22.4},null,"EPA 2012"]
[null,"Upper ",{"$f":"'B01'!$C$6","v":22.4},null,"EPA 2012"]
["Concentration in fish","ConcFish","ConcWat × BCF"]
[null,"Central ",{"$f":"C9*C14","v":8.9599999999999991},"mg/kg","Eq"]
[null,"Lower ",{"$f":"C10*C15","v":8.9599999999999991},null,"Eq"]
[null,"Upper ",{"$f":"C11*C16","v":8.9599999999999991},null,"Eq"]
["Receptor"]
["Body weight","BW",{"$f":"A02b!$C$47","v":5},"kg","U.S. EPA/ORD 1993"]
["Allometric coefficients for caloric requirement per day in kilocalories and BW in grams"]
[null,"alpha",{"$f":"A02b!$C$48","v":0.61670000000000003},null,"U.S. EPA/ORD 1993"]
[null,"beta",{"$f":"A02b!$C$49","v":0.86199999999999999},null,"U.S. EPA/ORD 1993"]
["Caloric requirement per day","KR",{"$f":"C24*(C22*1000)^C25","v":951.88852658889334},"kcal/day","Eq"]
["Caloric content of commodity (dry weight)","KCD",{"$f":"'A03'!$E$59","v":4.47},"kcal/gdw [Note 1]","U.S. EPA/ORD 1993"]
["Food consumed per day (dry weight)","AmntDry"," = KR ÷ KCD"]
[null,null,{"$f":"C26/C27","v":212.95045337559137},"gdry/day","Eq"]
["Water content of vegetation as a proportion","PropWater",{"$f":"'A03'!$E$60","v":0.7},"gwater/gfood","Ali et al. 2005"]
["Dry weight content of vegetation as a proportion","PropDry"," = 1-PropWater"]
[null,null,{"$f":"1-C30","v":0.30000000000000004},"gdry/gfood","Eq"]
["Amount of fish consumed per day,  wet weight","AmntFish"," = (AmntDry ÷ PropDry) ÷ (1000g/kg)"]
[null,"Central ",{"$f":"(C29/C32)/1000","v":0.70983484458530455},"kgfood/day","Eq"]
[null,"Lower ",{"$f":"C34*0.3","v":0.21295045337559135},"Note 1","Eq"]
[null,"Upper ",{"$f":"C34*1.7","v":1.2067192357950176},"Note 1","Eq"]
["Proportion of diet that is contaminated","Prop"]
[null,"Central ",0.3,"Unitless","Scenario parameter"]
[null,"Lower ",0.1,null,"Scenario parameter"]
[null,"Upper ",1,null,"Scenario parameter"]
["Dose"]
["Toxic Equivalency Factor for formulation:  (See risk assessment if this has a value other than 1.)","TEF"]
[null,"Central ",{"$f":"'A01'!C$45","v":1},"Unitless","Worksheet A01"]
[null,"Lower ",{"$f":"'A01'!C$46","v":1},"Note 2","Worksheet A01"]
[null,"Upper ",{"$f":"'A01'!C$47","v":1},"Note 2","Worksheet A01"]
["Dose","Dose","= ConcFish × AmntFish × Prop ÷ BW"]
[null,"Central ",{"$f":"C18*C34*C38/C$22","v":0.38160721244905965},"mg/kg","Eq"]
[null,"Lower ",{"$f":"C19*C35*C39/C$22","v":3.8160721244905972E-2},"mg/kg","Eq"]
[null,"Upper ",2.1624408705446712,"mg/kg","Eq"]
[null,null,null,null,"FishKcalV6"]

{"sheet":"F11c","index":54,"n_rows":50,"n_cols":5,"rows_kept":50,"cut":false,"hidden":false,"merged":[[7,0,10,0],[0,0,0,4],[1,1,1,3],[2,1,2,3],[3,1,3,3],[4,1,4,3],[36,0,39,0],[41,0,44,0],[45,0,48,0],[12,0,15,0],[16,0,19,0],[22,0,24,0],[27,0,28,0],[30,0,31,0],[32,0,33,0]]}
["Acute scenario for the consumption of Contaminated Fish (Peak) by Bird, piscivorous "]
["Short Title","Fish consumption, accidental spill",null,null,"FishKcalV6"]
["Predator","Bird, piscivorous"]
["Food Item (Prey)","Fish"]
["Duration","Acute",null,null,"Scenario parameter"]
["Parameter/Assumption","Code / Range","Equation/   Value","Units","Reference/Designation"]
["Water"]
["Concentration in water","ConcWat"]
[null,"Central ",{"$f":"B04a!Acute_C","v":0.4},"mg/L","='B04a'!Acute_C"]
[null,"Lower ",{"$f":"B04a!Acute_L","v":0.4},null,"='B04a'!Acute_L"]
[null,"Upper ",{"$f":"B04a!Acute_U","v":0.4},null,"='B04a'!Acute_U"]
["Fish"]
["Bioconcentration factor","BCF"]
[null,"Central ",{"$f":"'B01'!$C$6","v":22.4},"L/kg","EPA 2012"]
[null,"Lower ",{"$f":"'B01'!$C$6","v":22.4},null,"EPA 2012"]
[null,"Upper ",{"$f":"'B01'!$C$6","v":22.4},null,"EPA 2012"]
["Concentration in fish","ConcFish","ConcWat × BCF"]
[null,"Central ",{"$f":"C9*C14","v":8.9599999999999991},"mg/kg","Eq"]
[null,"Lower ",{"$f":"C10*C15","v":8.9599999999999991},null,"Eq"]
[null,"Upper ",{"$f":"C11*C16","v":8.9599999999999991},null,"Eq"]
["Receptor"]
["Body weight","BW",{"$f":"A02b!$C$24","v":2.4},"kg","Sibley 2000"]
["Allometric coefficients for caloric requirement per day in kilocalories and BW in grams"]
[null,"alpha",{"$f":"A02b!$C$27","v":1.9159999999999999},null,"U.S. EPA/ORD 1993"]
[null,"beta",{"$f":"A02b!$C$28","v":0.70399999999999996},null,"U.S. EPA/ORD 1993"]
["Caloric requirement per day","KR",{"$f":"C24*(C22*1000)^C25","v":459.26591923752829},"kcal/day","Eq"]
["Caloric content of commodity (dry weight)","KCD",{"$f":"'A03'!$E$36","v":3.87},"kcal/gdw [Note 1]","U.S. EPA/ORD 1993"]
["Food consumed per day (dry weight)","AmntDry"," = KR ÷ KCD"]
[null,null,{"$f":"C26/C27","v":118.67336414406415},"gdry/day","Eq"]
["Water content of vegetation as a proportion","PropWater",{"$f":"'A03'!$E$37","v":0.7},"gwater/gfood","Ali et al. 2005"]
["Dry weight content of vegetation as a proportion","PropDry"," = 1-PropWater"]
[null,null,{"$f":"1-C30","v":0.30000000000000004},"gdry/gfood","Eq"]
["Amount of fish consumed per day,  wet weight","AmntFish"," = (AmntDry ÷ PropDry) ÷ (1000g/kg)"]
[null,"Central ",{"$f":"(C29/C32)/1000","v":0.39557788048021375},"kgfood/day","Eq"]
[null,"Lower ",{"$f":"C34*0.3","v":0.11867336414406413},"Note 1","Eq"]
[null,"Upper ",{"$f":"C34*1.7","v":0.67248239681636335},"Note 1","Eq"]
["Proportion of diet that is contaminated","Prop"]
[null,"Central ",0.3,"Unitless","Scenario parameter"]
[null,"Lower ",0.1,null,"Scenario parameter"]
[null,"Upper ",1,null,"Scenario parameter"]
["Dose"]
["Toxic Equivalency Factor for formulation:  (See risk assessment if this has a value other than 1.)","TEF"]
[null,"Central ",{"$f":"'A01'!C$45","v":1},"Unitless","Worksheet A01"]
[null,"Lower ",{"$f":"'A01'!C$46","v":1},"Note 2","Worksheet A01"]
[null,"Upper ",{"$f":"'A01'!C$47","v":1},"Note 2","Worksheet A01"]
["Dose","Dose","= ConcFish × AmntFish × Prop ÷ BW"]
[null,"Central ",{"$f":"C18*C34*C38/C$22","v":0.44304722613783931},"mg/kg","Eq"]
[null,"Lower ",{"$f":"C19*C35*C39/C$22","v":4.4304722613783938E-2},"mg/kg","Eq"]
[null,"Upper ",2.5106009481144227,"mg/kg","Eq"]
[null,null,null,null,"FishKcalV6"]

{"sheet":"F16a","index":55,"n_rows":20,"n_cols":5,"rows_kept":20,"cut":false,"hidden":false,"merged":[[16,0,19,0],[0,0,0,4],[1,1,1,3],[2,1,2,3],[5,0,8,0],[11,0,13,0],[14,0,15,0]]}
["Consumption of contaminated water by Mammal, small, Longer-term Concentrations "]
["Short Title","Longer-term Concentrations",null,null,"WatAlloV6"]
["Receptor","Mammal, small"]
["Duration","Chronic",null,null,"Scenario parameter"]
["Parameter/Assumption","Code / Range","Equation/   Value","Units","Reference/Designation"]
["Concentration in water","ConcWat"]
[null,"Central ",{"$f":"B04a!Chronic_C","v":6.1554988411262443E-4},"mg/L","='B04a'!Chronic_C"]
[null,"Lower ",{"$f":"B04a!Chronic_L","v":8.3355713473584565E-5},null,"='B04a'!Chronic_L"]
[null,"Upper ",{"$f":"B04a!Chronic_U","v":2.6930297888825137E-2},null,"='B04a'!Chronic_U"]
["Receptor"]
["Body weight","BW",{"$f":"A02b!$C$71","v":0.02},"kg","Default"]
["Allometric coefficients forwater consumption per day in liters and BW in kilograms"]
[null,"alpha",{"$f":"A02b!$C$79","v":9.9000000000000005E-2},null,"U.S. EPA/ORD 1993"]
[null,"beta",{"$f":"A02b!$C$80","v":0.9},null,"U.S. EPA/ORD 1993"]
["Amount of water consumed per day",null,"Amnt = alpha BW beta"]
[null,"Amnt",{"$f":"C13*(C11^C14)","v":2.9279401205240612E-3},"liters","Eq"]
["Absorbed Dose","Dose","ConcWat  × Amnt ÷ BW"]
[null,"Central ",{"$f":"C7*C$16/C$11","v":9.0114660093864468E-5},"mg/kg","Eq"]
[null,"Lower ",{"$f":"C8*C$16/C$11","v":1.2203026887710816E-5},"mg/kg","Eq"]
[null,"Upper ",{"$f":"C9*C$16/C$11","v":3.9425149823177769E-3},"mg/kg","Eq"]

{"sheet":"F16b","index":56,"n_rows":20,"n_cols":5,"rows_kept":20,"cut":false,"hidden":false,"merged":[[16,0,19,0],[0,0,0,4],[1,1,1,3],[2,1,2,3],[5,0,8,0],[11,0,13,0],[14,0,15,0]]}
["Consumption of contaminated water by Mammal, 400 g, Longer-term Concentrations "]
["Short Title","Longer-term Concentrations",null,null,"WatAlloV6"]
["Receptor","Mammal, 400 g"]
["Duration","Chronic",null,null,"Scenario parameter"]
["Parameter/Assumption","Code / Range","Equation/   Value","Units","Reference/Designation"]
["Concentration in water","ConcWat"]
[null,"Central ",{"$f":"B04a!Chronic_C","v":6.1554988411262443E-4},"mg/L","='B04a'!Chronic_C"]
[null,"Lower ",{"$f":"B04a!Chronic_L","v":8.3355713473584565E-5},null,"='B04a'!Chronic_L"]
[null,"Upper ",{"$f":"B04a!Chronic_U","v":2.6930297888825137E-2},null,"='B04a'!Chronic_U"]
["Receptor"]
["Body weight","BW",{"$f":"A02b!$C$40","v":0.4},"kg","Default"]
["Allometric coefficients forwater consumption per day in liters and BW in kilograms"]
[null,"alpha",{"$f":"A02b!$C$45","v":9.9000000000000005E-2},null,"U.S. EPA/ORD 1993"]
[null,"beta",{"$f":"A02b!$C$46","v":0.9},null,"U.S. EPA/ORD 1993"]
["Amount of water consumed per day",null,"Amnt = alpha BW beta"]
[null,"Amnt",{"$f":"C13*(C11^C14)","v":4.3399945764854612E-2},"liters","Eq"]
["Absorbed Dose","Dose","ConcWat  × Amnt ÷ BW"]
[null,"Central ",{"$f":"C7*C$16/C$11","v":6.6787078965126101E-5},"mg/kg","Eq"]
[null,"Lower ",{"$f":"C8*C$16/C$11","v":9.0440836098608274E-6},"mg/kg","Eq"]
[null,"Upper ",{"$f":"C9*C$16/C$11","v":2.9219336695159742E-3},"mg/kg","Eq"]

{"sheet":"F16c","index":57,"n_rows":20,"n_cols":5,"rows_kept":20,"cut":false,"hidden":false,"merged":[[16,0,19,0],[0,0,0,4],[1,1,1,3],[2,1,2,3],[5,0,8,0],[11,0,13,0],[14,0,15,0]]}
["Consumption of contaminated water by Mammal, carnivorous, Longer-term Concentrations "]
["Short Title","Longer-term Concentrations",null,null,"WatAlloV6"]
["Receptor","Mammal, carnivorous"]
["Duration","Chronic",null,null,"Scenario parameter"]
["Parameter/Assumption","Code / Range","Equation/   Value","Units","Reference/Designation"]
["Concentration in water","ConcWat"]
[null,"Central ",{"$f":"B04a!Chronic_C","v":6.1554988411262443E-4},"mg/L","='B04a'!Chronic_C"]
[null,"Lower ",{"$f":"B04a!Chronic_L","v":8.3355713473584565E-5},null,"='B04a'!Chronic_L"]
[null,"Upper ",{"$f":"B04a!Chronic_U","v":2.6930297888825137E-2},null,"='B04a'!Chronic_U"]
["Receptor"]
["Body weight","BW",{"$f":"A02b!$C$47","v":5},"kg","U.S. EPA/ORD 1993"]
["Allometric coefficients forwater consumption per day in liters and BW in kilograms"]
[null,"alpha",{"$f":"A02b!$C$50","v":9.9000000000000005E-2},null,"U.S. EPA/ORD 1993"]
[null,"beta",{"$f":"A02b!$C$51","v":0.9},null,"U.S. EPA/ORD 1993"]
["Amount of water consumed per day",null,"Amnt = alpha BW beta"]
[null,"Amnt",{"$f":"C13*(C11^C14)","v":0.42141326164778842},"liters","Eq"]
["Absorbed Dose","Dose","ConcWat  × Amnt ÷ BW"]
[null,"Central ",{"$f":"C7*C$16/C$11","v":5.1880176874163846E-5},"mg/kg","Eq"]
[null,"Lower ",{"$f":"C8*C$16/C$11","v":7.0254406183763557E-6},"mg/kg","Eq"]
[null,"Upper ",{"$f":"C9*C$16/C$11","v":2.2697569340952703E-3},"mg/kg","Eq"]

{"sheet":"F16d","index":58,"n_rows":20,"n_cols":5,"rows_kept":20,"cut":false,"hidden":false,"merged":[[16,0,19,0],[0,0,0,4],[1,1,1,3],[2,1,2,3],[5,0,8,0],[11,0,13,0],[14,0,15,0]]}
["Consumption of contaminated water by Mammal, large, Longer-term Concentrations "]
["Short Title","Longer-term Concentrations",null,null,"WatAlloV6"]
["Receptor","Mammal, large"]
["Duration","Chronic",null,null,"Scenario parameter"]
["Parameter/Assumption","Code / Range","Equation/   Value","Units","Reference/Designation"]
["Concentration in water","ConcWat"]
[null,"Central ",{"$f":"B04a!Chronic_C","v":6.1554988411262443E-4},"mg/L","='B04a'!Chronic_C"]
[null,"Lower ",{"$f":"B04a!Chronic_L","v":8.3355713473584565E-5},null,"='B04a'!Chronic_L"]
[null,"Upper ",{"$f":"B04a!Chronic_U","v":2.6930297888825137E-2},null,"='B04a'!Chronic_U"]
["Receptor"]
["Body weight","BW",{"$f":"A02b!$C$61","v":70},"kg","Default"]
["Allometric coefficients forwater consumption per day in liters and BW in kilograms"]
[null,"alpha",{"$f":"A02b!$C$64","v":9.9000000000000005E-2},null,"U.S. EPA/ORD 1993"]
[null,"beta",{"$f":"A02b!$C$65","v":0.9},null,"U.S. EPA/ORD 1993"]
["Amount of water consumed per day",null,"Amnt = alpha BW beta"]
[null,"Amnt",{"$f":"C13*(C11^C14)","v":4.5313064115862725},"liters","Eq"]
["Absorbed Dose","Dose","ConcWat  × Amnt ÷ BW"]
[null,"Central ",{"$f":"C7*C$16/C$11","v":3.984635909329603E-5},"mg/kg","Eq"]
[null,"Lower ",{"$f":"C8*C$16/C$11","v":5.3958611272171704E-6},"mg/kg","Eq"]
[null,"Upper ",{"$f":"C9*C$16/C$11","v":1.743277592708023E-3},"mg/kg","Eq"]

{"sheet":"F16e","index":59,"n_rows":20,"n_cols":5,"rows_kept":20,"cut":false,"hidden":false,"merged":[[16,0,19,0],[0,0,0,4],[1,1,1,3],[2,1,2,3],[5,0,8,0],[11,0,13,0],[14,0,15,0]]}
["Consumption of contaminated water by Bird, small, Longer-term Concentrations "]
["Short Title","Longer-term Concentrations",null,null,"WatAlloV6"]
["Receptor","Bird, small"]
["Duration","Chronic",null,null,"Scenario parameter"]
["Parameter/Assumption","Code / Range","Equation/   Value","Units","Reference/Designation"]
["Concentration in water","ConcWat"]
[null,"Central ",{"$f":"B04a!Chronic_C","v":6.1554988411262443E-4},"mg/L","='B04a'!Chronic_C"]
[null,"Lower ",{"$f":"B04a!Chronic_L","v":8.3355713473584565E-5},null,"='B04a'!Chronic_L"]
[null,"Upper ",{"$f":"B04a!Chronic_U","v":2.6930297888825137E-2},null,"='B04a'!Chronic_U"]
["Receptor"]
["Body weight","BW",{"$f":"A02b!$C$31","v":0.01},"kg","Default"]
["Allometric coefficients forwater consumption per day in liters and BW in kilograms"]
[null,"alpha",{"$f":"A02b!$C$34","v":5.8999999999999997E-2},null,"U.S. EPA/ORD 1993"]
[null,"beta",{"$f":"A02b!$C$35","v":0.67},null,"U.S. EPA/ORD 1993"]
["Amount of water consumed per day",null,"Amnt = alpha BW beta"]
[null,"Amnt",{"$f":"C13*(C11^C14)","v":2.6968203187277624E-3},"liters","Eq"]
["Absorbed Dose","Dose","ConcWat  × Amnt ÷ BW"]
[null,"Central ",{"$f":"C7*C$16/C$11","v":1.6600274346654451E-4},"mg/kg","Eq"]
[null,"Lower ",{"$f":"C8*C$16/C$11","v":2.2479538177761236E-5},"mg/kg","Eq"]
[null,"Upper ",{"$f":"C9*C$16/C$11","v":7.2626174535974988E-3},"mg/kg","Eq"]

{"sheet":"F16f","index":60,"n_rows":20,"n_cols":5,"rows_kept":20,"cut":false,"hidden":false,"merged":[[16,0,19,0],[0,0,0,4],[1,1,1,3],[2,1,2,3],[5,0,8,0],[11,0,13,0],[14,0,15,0]]}
["Consumption of contaminated water by Bird, large, Longer-term Concentrations "]
["Short Title","Longer-term Concentrations",null,null,"WatAlloV6"]
["Receptor","Bird, large"]
["Duration","Chronic",null,null,"Scenario parameter"]
["Parameter/Assumption","Code / Range","Equation/   Value","Units","Reference/Designation"]
["Concentration in water","ConcWat"]
[null,"Central ",{"$f":"B04a!Chronic_C","v":6.1554988411262443E-4},"mg/L","='B04a'!Chronic_C"]
[null,"Lower ",{"$f":"B04a!Chronic_L","v":8.3355713473584565E-5},null,"='B04a'!Chronic_L"]
[null,"Upper ",{"$f":"B04a!Chronic_U","v":2.6930297888825137E-2},null,"='B04a'!Chronic_U"]
["Receptor"]
["Body weight","BW",{"$f":"A02b!$C$15","v":4},"kg","Default"]
["Allometric coefficients forwater consumption per day in liters and BW in kilograms"]
[null,"alpha",{"$f":"A02b!$C$18","v":5.8999999999999997E-2},null,"U.S. EPA/ORD 1993"]
[null,"beta",{"$f":"A02b!$C$19","v":0.67},null,"U.S. EPA/ORD 1993"]
["Amount of water consumed per day",null,"Amnt = alpha BW beta"]
[null,"Amnt",{"$f":"C13*(C11^C14)","v":0.14935927808849303},"liters","Eq"]
["Absorbed Dose","Dose","ConcWat  × Amnt ÷ BW"]
[null,"Central ",{"$f":"C7*C$16/C$11","v":2.2984521579629281E-5},"mg/kg","Eq"]
[null,"Lower ",{"$f":"C8*C$16/C$11","v":3.1124872972414656E-6},"mg/kg","Eq"]
[null,"Upper ",{"$f":"C9*C$16/C$11","v":1.0055724628457476E-3},"mg/kg","Eq"]

{"sheet":"F17a","index":61,"n_rows":50,"n_cols":5,"rows_kept":50,"cut":false,"hidden":false,"merged":[[7,0,10,0],[0,0,0,4],[1,1,1,3],[2,1,2,3],[3,1,3,3],[4,1,4,3],[36,0,39,0],[41,0,44,0],[45,0,48,0],[12,0,15,0],[16,0,19,0],[22,0,24,0],[27,0,28,0],[30,0,31,0],[32,0,33,0]]}
["Chronic scenario for the consumption of Contaminated Fish (Longer-term) by Mammal, large carnivorous "]
["Short Title","Fish consumption, accidental spill",null,null,"FishKcalV6"]
["Predator","Mammal, large carnivorous"]
["Food Item (Prey)","Fish"]
["Duration","Chronic",null,null,"Scenario parameter"]
["Parameter/Assumption","Code / Range","Equation/   Value","Units","Reference/Designation"]
["Water"]
["Concentration in water","ConcWat"]
[null,"Central ",{"$f":"B04a!Chronic_C","v":6.1554988411262443E-4},"mg/L","='B04a'!Chronic_C"]
[null,"Lower ",{"$f":"B04a!Chronic_L","v":8.3355713473584565E-5},null,"='B04a'!Chronic_L"]
[null,"Upper ",{"$f":"B04a!Chronic_U","v":2.6930297888825137E-2},null,"='B04a'!Chronic_U"]
["Fish"]
["Bioconcentration factor","BCF"]
[null,"Central ",{"$f":"'B01'!$C$6","v":22.4},"L/kg","EPA 2012"]
[null,"Lower ",{"$f":"'B01'!$C$6","v":22.4},null,"EPA 2012"]
[null,"Upper ",{"$f":"'B01'!$C$6","v":22.4},null,"EPA 2012"]
["Concentration in fish","ConcFish","ConcWat × BCF"]
[null,"Central ",{"$f":"C9*C14","v":1.3788317404122787E-2},"mg/kg","Eq"]
[null,"Lower ",{"$f":"C10*C15","v":1.867167981808294E-3},null,"Eq"]
[null,"Upper ",{"$f":"C11*C16","v":0.60323867270968301},null,"Eq"]
["Receptor"]
["Body weight","BW",{"$f":"A02b!$C$52","v":70},"kg","Reid 2006"]
["Allometric coefficients for caloric requirement per day in kilocalories and BW in grams"]
[null,"alpha",{"$f":"A02b!$C$53","v":0.61670000000000003},null,"U.S. EPA/ORD 1993"]
[null,"beta",{"$f":"A02b!$C$54","v":0.86199999999999999},null,"U.S. EPA/ORD 1993"]
["Caloric requirement per day","KR",{"$f":"C24*(C22*1000)^C25","v":9258.6668828796119},"kcal/day","Eq"]
["Caloric content of commodity (dry weight)","KCD",{"$f":"'A03'!$E$59","v":4.47},"kcal/gdw [Note 1]","U.S. EPA/ORD 1993"]
["Food consumed per day (dry weight)","AmntDry"," = KR ÷ KCD"]
[null,null,{"$f":"C26/C27","v":2071.2901303981234},"gdry/day","Eq"]
["Water content of vegetation as a proportion","PropWater",{"$f":"'A03'!$E$60","v":0.7},"gwater/gfood","Ali et al. 2005"]
["Dry weight content of vegetation as a proportion","PropDry"," = 1-PropWater"]
[null,null,{"$f":"1-C30","v":0.30000000000000004},"gdry/gfood","Eq"]
["Amount of fish consumed per day,  wet weight","AmntFish"," = (AmntDry ÷ PropDry) ÷ (1000g/kg)"]
[null,"Central ",{"$f":"(C29/C32)/1000","v":6.90430043466041},"kgfood/day","Eq"]
[null,"Lower ",{"$f":"C34*0.3","v":2.0712901303981228},"Note 1","Eq"]
[null,"Upper ",{"$f":"C34*1.7","v":11.737310738922696},"Note 1","Eq"]
["Proportion of diet that is contaminated","Prop"]
[null,"Central ",0.3,"Unitless","Scenario parameter"]
[null,"Lower ",0.1,null,"Scenario parameter"]
[null,"Upper ",1,null,"Scenario parameter"]
["Dose"]
["Toxic Equivalency Factor for formulation:  (See risk assessment if this has a value other than 1.)","TEF"]
[null,"Central ",{"$f":"'A01'!C$45","v":1},"Unitless","Worksheet A01"]
[null,"Lower ",{"$f":"'A01'!C$46","v":1},"Note 2","Worksheet A01"]
[null,"Upper ",{"$f":"'A01'!C$47","v":1},"Note 2","Worksheet A01"]
["Dose","Dose","= ConcFish × AmntFish × Prop ÷ BW"]
[null,"Central ",{"$f":"C18*C34*C38/C$22","v":4.0799436791365994E-4},"mg/kg","Eq"]
[null,"Lower ",{"$f":"C19*C35*C39/C$22","v":5.5249237321641452E-6},"mg/kg","Eq"]
[null,"Upper ",0.10114856787612624,"mg/kg","Eq"]
[null,null,null,null,"FishKcalV6"]

{"sheet":"F17b","index":62,"n_rows":50,"n_cols":5,"rows_kept":50,"cut":false,"hidden":false,"merged":[[7,0,10,0],[0,0,0,4],[1,1,1,3],[2,1,2,3],[3,1,3,3],[4,1,4,3],[36,0,39,0],[41,0,44,0],[45,0,48,0],[12,0,15,0],[16,0,19,0],[22,0,24,0],[27,0,28,0],[30,0,31,0],[32,0,33,0]]}
["Chronic scenario for the consumption of Contaminated Fish (Longer-term) by Mammal, carnivorous "]
["Short Title","Fish consumption, accidental spill",null,null,"FishKcalV6"]
["Predator","Mammal, carnivorous"]
["Food Item (Prey)","Fish"]
["Duration","Chronic",null,null,"Scenario parameter"]
["Parameter/Assumption","Code / Range","Equation/   Value","Units","Reference/Designation"]
["Water"]
["Concentration in water","ConcWat"]
[null,"Central ",{"$f":"B04a!Chronic_C","v":6.1554988411262443E-4},"mg/L","='B04a'!Chronic_C"]
[null,"Lower ",{"$f":"B04a!Chronic_L","v":8.3355713473584565E-5},null,"='B04a'!Chronic_L"]
[null,"Upper ",{"$f":"B04a!Chronic_U","v":2.6930297888825137E-2},null,"='B04a'!Chronic_U"]
["Fish"]
["Bioconcentration factor","BCF"]
[null,"Central ",{"$f":"'B01'!$C$6","v":22.4},"L/kg","EPA 2012"]
[null,"Lower ",{"$f":"'B01'!$C$6","v":22.4},null,"EPA 2012"]
[null,"Upper ",{"$f":"'B01'!$C$6","v":22.4},null,"EPA 2012"]
["Concentration in fish","ConcFish","ConcWat × BCF"]
[null,"Central ",{"$f":"C9*C14","v":1.3788317404122787E-2},"mg/kg","Eq"]
[null,"Lower ",{"$f":"C10*C15","v":1.867167981808294E-3},null,"Eq"]
[null,"Upper ",{"$f":"C11*C16","v":0.60323867270968301},null,"Eq"]
["Receptor"]
["Body weight","BW",{"$f":"A02b!$C$47","v":5},"kg","U.S. EPA/ORD 1993"]
["Allometric coefficients for caloric requirement per day in kilocalories and BW in grams"]
[null,"alpha",{"$f":"A02b!$C$48","v":0.61670000000000003},null,"U.S. EPA/ORD 1993"]
[null,"beta",{"$f":"A02b!$C$49","v":0.86199999999999999},null,"U.S. EPA/ORD 1993"]
["Caloric requirement per day","KR",{"$f":"C24*(C22*1000)^C25","v":951.88852658889334},"kcal/day","Eq"]
["Caloric content of commodity (dry weight)","KCD",{"$f":"'A03'!$E$59","v":4.47},"kcal/gdw [Note 1]","U.S. EPA/ORD 1993"]
["Food consumed per day (dry weight)","AmntDry"," = KR ÷ KCD"]
[null,null,{"$f":"C26/C27","v":212.95045337559137},"gdry/day","Eq"]
["Water content of vegetation as a proportion","PropWater",{"$f":"'A03'!$E$60","v":0.7},"gwater/gfood","Ali et al. 2005"]
["Dry weight content of vegetation as a proportion","PropDry"," = 1-PropWater"]
[null,null,{"$f":"1-C30","v":0.30000000000000004},"gdry/gfood","Eq"]
["Amount of fish consumed per day,  wet weight","AmntFish"," = (AmntDry ÷ PropDry) ÷ (1000g/kg)"]
[null,"Central ",{"$f":"(C29/C32)/1000","v":0.70983484458530455},"kgfood/day","Eq"]
[null,"Lower ",{"$f":"C34*0.3","v":0.21295045337559135},"Note 1","Eq"]
[null,"Upper ",{"$f":"C34*1.7","v":1.2067192357950176},"Note 1","Eq"]
["Proportion of diet that is contaminated","Prop"]
[null,"Central ",0.3,"Unitless","Scenario parameter"]
[null,"Lower ",0.1,null,"Scenario parameter"]
[null,"Upper ",1,null,"Scenario parameter"]
["Dose"]
["Toxic Equivalency Factor for formulation:  (See risk assessment if this has a value other than 1.)","TEF"]
[null,"Central ",{"$f":"'A01'!C$45","v":1},"Unitless","Worksheet A01"]
[null,"Lower ",{"$f":"'A01'!C$46","v":1},"Note 2","Worksheet A01"]
[null,"Upper ",{"$f":"'A01'!C$47","v":1},"Note 2","Worksheet A01"]
["Dose","Dose","= ConcFish × AmntFish × Prop ÷ BW"]
[null,"Central ",{"$f":"C18*C34*C38/C$22","v":5.8724568849890092E-4},"mg/kg","Eq"]
[null,"Lower ",{"$f":"C19*C35*C39/C$22","v":7.9522853650892834E-6},"mg/kg","Eq"]
[null,"Upper ",0.14558794202684588,"mg/kg","Eq"]
[null,null,null,null,"FishKcalV6"]

{"sheet":"F17c","index":63,"n_rows":50,"n_cols":5,"rows_kept":50,"cut":false,"hidden":false,"merged":[[7,0,10,0],[0,0,0,4],[1,1,1,3],[2,1,2,3],[3,1,3,3],[4,1,4,3],[36,0,39,0],[41,0,44,0],[45,0,48,0],[12,0,15,0],[16,0,19,0],[22,0,24,0],[27,0,28,0],[30,0,31,0],[32,0,33,0]]}
["Chronic scenario for the consumption of Contaminated Fish (Longer-term) by Bird, piscivorous "]
["Short Title","Fish consumption, accidental spill",null,null,"FishKcalV6"]
["Predator","Bird, piscivorous"]
["Food Item (Prey)","Fish"]
["Duration","Chronic",null,null,"Scenario parameter"]
["Parameter/Assumption","Code / Range","Equation/   Value","Units","Reference/Designation"]
["Water"]
["Concentration in water","ConcWat"]
[null,"Central ",{"$f":"B04a!Chronic_C","v":6.1554988411262443E-4},"mg/L","='B04a'!Chronic_C"]
[null,"Lower ",{"$f":"B04a!Chronic_L","v":8.3355713473584565E-5},null,"='B04a'!Chronic_L"]
[null,"Upper ",{"$f":"B04a!Chronic_U","v":2.6930297888825137E-2},null,"='B04a'!Chronic_U"]
["Fish"]
["Bioconcentration factor","BCF"]
[null,"Central ",{"$f":"'B01'!$C$6","v":22.4},"L/kg","EPA 2012"]
[null,"Lower ",{"$f":"'B01'!$C$6","v":22.4},null,"EPA 2012"]
[null,"Upper ",{"$f":"'B01'!$C$6","v":22.4},null,"EPA 2012"]
["Concentration in fish","ConcFish","ConcWat × BCF"]
[null,"Central ",{"$f":"C9*C14","v":1.3788317404122787E-2},"mg/kg","Eq"]
[null,"Lower ",{"$f":"C10*C15","v":1.867167981808294E-3},null,"Eq"]
[null,"Upper ",{"$f":"C11*C16","v":0.60323867270968301},null,"Eq"]
["Receptor"]
["Body weight","BW",{"$f":"A02b!$C$24","v":2.4},"kg","Sibley 2000"]
["Allometric coefficients for caloric requirement per day in kilocalories and BW in grams"]
[null,"alpha",{"$f":"A02b!$C$27","v":1.9159999999999999},null,"U.S. EPA/ORD 1993"]
[null,"beta",{"$f":"A02b!$C$28","v":0.70399999999999996},null,"U.S. EPA/ORD 1993"]
["Caloric requirement per day","KR",{"$f":"C24*(C22*1000)^C25","v":459.26591923752829},"kcal/day","Eq"]
["Caloric content of commodity (dry weight)","KCD",{"$f":"'A03'!$E$36","v":3.87},"kcal/gdw [Note 1]","U.S. EPA/ORD 1993"]
["Food consumed per day (dry weight)","AmntDry"," = KR ÷ KCD"]
[null,null,{"$f":"C26/C27","v":118.67336414406415},"gdry/day","Eq"]
["Water content of vegetation as a proportion","PropWater",{"$f":"'A03'!$E$37","v":0.7},"gwater/gfood","Ali et al. 2005"]
["Dry weight content of vegetation as a proportion","PropDry"," = 1-PropWater"]
[null,null,{"$f":"1-C30","v":0.30000000000000004},"gdry/gfood","Eq"]
["Amount of fish consumed per day,  wet weight","AmntFish"," = (AmntDry ÷ PropDry) ÷ (1000g/kg)"]
[null,"Central ",{"$f":"(C29/C32)/1000","v":0.39557788048021375},"kgfood/day","Eq"]
[null,"Lower ",{"$f":"C34*0.3","v":0.11867336414406413},"Note 1","Eq"]
[null,"Upper ",{"$f":"C34*1.7","v":0.67248239681636335},"Note 1","Eq"]
["Proportion of diet that is contaminated","Prop"]
[null,"Central ",0.3,"Unitless","Scenario parameter"]
[null,"Lower ",0.1,null,"Scenario parameter"]
[null,"Upper ",1,null,"Scenario parameter"]
["Dose"]
["Toxic Equivalency Factor for formulation:  (See risk assessment if this has a value other than 1.)","TEF"]
[null,"Central ",{"$f":"'A01'!C$45","v":1},"Unitless","Worksheet A01"]
[null,"Lower ",{"$f":"'A01'!C$46","v":1},"Note 2","Worksheet A01"]
[null,"Upper ",{"$f":"'A01'!C$47","v":1},"Note 2","Worksheet A01"]
["Dose","Dose","= ConcFish × AmntFish × Prop ÷ BW"]
[null,"Central ",{"$f":"C18*C34*C38/C$22","v":6.8179417176391689E-4},"mg/kg","Eq"]
[null,"Lower ",{"$f":"C19*C35*C39/C$22","v":9.2326294093030419E-6},"mg/kg","Eq"]
[null,"Upper ",0.16902807853172058,"mg/kg","Eq"]
[null,null,null,null,"FishKcalV6"]

{"sheet":"G01a","index":64,"n_rows":71,"n_cols":14,"rows_kept":71,"cut":false,"hidden":false,"merged":[[2,5,3,5],[0,0,0,4],[1,2,1,4],[2,0,3,0],[2,1,3,1],[2,2,2,4]]}
["Summary of Exposure Assessments for the Mammals",null,null,null,null,"G01V6Mam"]
["Application Rate:",{"$f":"'A01'!ApRt_C","v":0.4},"ppm",null,null,"G01V6Mam"]
["Scenario","Receptor","mg/kg/day or mg/kg/event",null,null,"Detail Worksheet"]
[null,null,"Central","Lower","Upper",null,null,null,null,null,"Lower","Central","Upper"]
["Accidental Acute Exposures"]
["   Direct Spray",null,null,null,null,null,null,null,null,"SPRAY------------"]
["first-order absorption","Small mammal (20g)","No Exposure Assessment",null,null,null,null,null,null,"1st-Order Abs",{"$f":"IF(D7>0,  D7, \"\")","v":""},{"$f":"IF(ISERROR(C7-K7), \"\", C7-K7)","v":""},{"$f":"IF(ISERROR(E7-C7), \"\", E7-C7)","v":""},{"$f":"E7-SUM(K7:M7)","v":0}]
["100% absorption","Small mammal (20g)","No Exposure Assessment",null,null,null,null,null,null,"100% Abs.","","","",{"$f":"E8-SUM(K8:M8)","v":0}]
["   Contaminated Water",null,null,null,null,null,null,null,null,"SPILL--------------"]
["Spill","Small mammal (20g)",{"$f":"F02a!Dose_C","v":7.2034646815193213},{"$f":"F02a!Dose_L","v":1.4406929363038641},{"$f":"F02a!Dose_U","v":14.406929363038643},"F02a",null,null,null,"Sm Mam",{"$f":"IF(D10>0,  D10, \"\")","v":1.4406929363038641},{"$f":"IF(ISERROR(C10-K10), \"\", C10-K10)","v":5.7627717452154572},{"$f":"IF(ISERROR(E10-C10), \"\", E10-C10)","v":7.2034646815193213},{"$f":"E10-SUM(K10:M10)","v":0}]
["Spill","Larger Mammal (400g)",{"$f":"F02b!Dose_C","v":5.3387358283991775},{"$f":"F02b!Dose_L","v":1.0677471656798354},{"$f":"F02b!Dose_U","v":10.677471656798355},"F02b",null,null,null,"400 g Mam",1.0677471656798354,4.2709886627193416,5.3387358283991775,0]
["Spill","Canid (5 kg)",{"$f":"F02c!Dose_C","v":4.1471279078758858},{"$f":"F02c!Dose_L","v":0.82942558157517721},{"$f":"F02c!Dose_U","v":8.2942558157517716},"F02c",null,null,null,"Canid",0.82942558157517721,3.3177023263007088,4.1471279078758858,0]
["Spill","Large Mammal (70 kg)",{"$f":"F02d!Dose_C","v":3.1851847426014648},{"$f":"F02d!Dose_L","v":0.63703694852029291},{"$f":"F02d!Dose_U","v":6.3703694852029296},"F02d",null,null,null,"Lrg Mam",0.63703694852029291,2.5481477940811716,3.1851847426014648,0]
["   Consumption of contaminated Fish",null,null,null,null,null,null,null,null,"FISH--------------"]
["Spill","Large Mammalian Carnivore (70 kg)",{"$f":"F03a!Dose_C","v":32.613705877196672},{"$f":"F03a!Dose_L","v":0.65227411754393361},{"$f":"F03a!Dose_U","v":369.62199994156231},"F03a",null,null,null,"Lrg Mam",{"$f":"IF(D15>0,  D15, \"\")","v":0.65227411754393361},{"$f":"IF(ISERROR(C15-K15), \"\", C15-K15)","v":31.96143175965274},{"$f":"IF(ISERROR(E15-C15), \"\", E15-C15)","v":337.00829406436566},{"$f":"E15-SUM(K15:M15)","v":0}]
["Spill","Canid (5 kg)",{"$f":"F03b!Dose_C","v":46.942457221389944},{"$f":"F03b!Dose_L","v":0.9388491444277991},{"$f":"F03b!Dose_U","v":532.01451517575265},"F03b",null,null,null,"Canid",0.9388491444277991,46.003608076962145,485.07205795436272,0]
["Non-Accidental Acute Exposures"]
["   Contaminated Fruit [Lowest Residue Rates]",null,null,null,null,null,null,null,null,"FRUIT-------------"]
[null,"Small mammal (20g)","No Exposure Assessment",null,null,null,null,null,null,"Sm Mam",{"$f":"IF(D19>0,  D19, \"\")","v":""},{"$f":"IF(ISERROR(C19-K19), \"\", C19-K19)","v":""},{"$f":"IF(ISERROR(E19-C19), \"\", E19-C19)","v":""},{"$f":"E19-SUM(K19:M19)","v":0}]
[null,"Larger Mammal (400g)","No Exposure Assessment",null,null,null,null,null,null,"400g Mam","","","",0]
[null,"Large Mammal (70 kg)","No Exposure Assessment",null,null,null,null,null,null,"Lrg Mam","","","",0]
["   Contaminated Broadleaf Foliage",null,null,null,null,null,null,null,null,"BROADLEAF-----"]
[null,"Small mammal (20g)","No Exposure Assessment",null,null,null,null,null,null,"Sm Mam",{"$f":"IF(D23>0,  D23, \"\")","v":""},{"$f":"IF(ISERROR(C23-K23), \"\", C23-K23)","v":""},{"$f":"IF(ISERROR(E23-C23), \"\", E23-C23)","v":""},{"$f":"E23-SUM(K23:M23)","v":0}]
[null,"Larger Mammal (400g)","No Exposure Assessment",null,null,null,null,null,null,"400g Mam","","","",0]
[null,"Large Mammal (70 kg)","No Exposure Assessment",null,null,null,null,null,null,"Lrg Mam","","","",0]
["  Contaminated Tall Grass",null,null,null,null,null,null,null,null,"TALL GRASS -----"]
[null,"Small mammal (20g)","No Exposure Assessment",null,null,null,null,null,null,"Sm Mam",{"$f":"IF(D27>0,  D27, \"\")","v":""},{"$f":"IF(ISERROR(C27-K27), \"\", C27-K27)","v":""},{"$f":"IF(ISERROR(E27-C27), \"\", E27-C27)","v":""},{"$f":"E27-SUM(K27:M27)","v":0}]
[null,"Larger Mammal (400g)","No Exposure Assessment",null,null,null,null,null,null,"400g Mam","","","",0]
[null,"Large Mammal (70 kg)","No Exposure Assessment",null,null,null,null,null,null,"Lrg Mam","","","",0]
["   Contaminated Short Grass [Highest Residue Rate]",null,null,null,null,null,null,null,null,"SHORT GRASS---"]
[null,"Small mammal (20g)","No Exposure Assessment",null,null,null,null,null,null,"Sm Mam",{"$f":"IF(D31>0,  D31, \"\")","v":""},{"$f":"IF(ISERROR(C31-K31), \"\", C31-K31)","v":""},{"$f":"IF(ISERROR(E31-C31), \"\", E31-C31)","v":""},{"$f":"E31-SUM(K31:M31)","v":0}]
[null,"Larger Mammal (400g)","No Exposure Assessment",null,null,null,null,null,null,"400g Mam","","","",0]
[null,"Large Mammal (70 kg)","No Exposure Assessment",null,null,null,null,null,null,"Lrg Mam","","","",0]
["   Contaminated Water",null,null,null,null,null,null,null,null,"WATER------------"]
[null,"Small mammal (20g)",{"$f":"F08a!Dose_C","v":5.8558802410481225E-2},{"$f":"F08a!Dose_L","v":5.8558802410481225E-2},{"$f":"F08a!Dose_U","v":5.8558802410481225E-2},"F08a",null,null,null,"Sm Mam",{"$f":"IF(D35>0,  D35, \"\")","v":5.8558802410481225E-2},{"$f":"IF(ISERROR(C35-K35), \"\", C35-K35)","v":0},{"$f":"IF(ISERROR(E35-C35), \"\", E35-C35)","v":0},{"$f":"E35-SUM(K35:M35)","v":0}]
[null,"Larger Mammal (400g)",{"$f":"F08b!Dose_C","v":4.3399945764854612E-2},{"$f":"F08b!Dose_L","v":4.3399945764854612E-2},{"$f":"F08b!Dose_U","v":4.3399945764854612E-2},"F08b",null,null,null,"400g Mam",4.3399945764854612E-2,0,0,0]
[null,"Canid (5 kg)",{"$f":"F08c!Dose_C","v":3.3713060931823073E-2},{"$f":"F08c!Dose_L","v":3.3713060931823073E-2},{"$f":"F08c!Dose_U","v":3.3713060931823073E-2},"F08c",null,null,null,"Canid",3.3713060931823073E-2,0,0,0]
[null,"Large Mammal (70 kg)",{"$f":"F08d!Dose_C","v":2.5893179494778703E-2},{"$f":"F08d!Dose_L","v":2.5893179494778703E-2},{"$f":"F08d!Dose_U","v":2.5893179494778703E-2},"F08d",null,null,null,"Lrg Mam",2.5893179494778703E-2,0,0,0]
["   Contaminated Insects",null,null,null,null,null,null,null,null,"INSECTS------------"]
[null,"Small mammal (20g)","No Exposure Assessment",null,null,null,null,null,null,"Sm Mam",{"$f":"IF(D40>0,  D40, \"\")","v":""},{"$f":"IF(ISERROR(C40-K40), \"\", C40-K40)","v":""},{"$f":"IF(ISERROR(E40-C40), \"\", E40-C40)","v":""},{"$f":"E40-SUM(K40:M40)","v":0}]
[null,"Larger Mammal (400g)","No Exposure Assessment",null,null,null,null,null,null,"Lrg Mam","","","",0]
["   Consumption of small mammal (after direct spray) by predator",null,null,null,null,null,null,null,null,"SMALL MAMMAL-"]
[null,"Canid (5 kg)","No Exposure Assessment",null,null,null,null,null,null,"Canid",{"$f":"IF(D43>0,  D43, \"\")","v":""},{"$f":"IF(ISERROR(C43-K43), \"\", C43-K43)","v":""},{"$f":"IF(ISERROR(E43-C43), \"\", E43-C43)","v":""},{"$f":"E43-SUM(K43:M43)","v":0}]
["   Consumption of contaminated Fish",null,null,null,null,null,null,null,null,"FISH----------------"]
[null,"Large Mammalian Carnivore (70 kg)",{"$f":"F11a!Dose_C","v":0.26512513669095972},{"$f":"F11a!Dose_L","v":2.6512513669095971E-2},{"$f":"F11a!Dose_U","v":1.5023757745821049},"F11a",null,null,null,"Lrg Mam",{"$f":"IF(D45>0,  D45, \"\")","v":2.6512513669095971E-2},{"$f":"IF(ISERROR(C45-K45), \"\", C45-K45)","v":0.23861262302186376},{"$f":"IF(ISERROR(E45-C45), \"\", E45-C45)","v":1.2372506378911452},{"$f":"E45-SUM(K45:M45)","v":0}]
[null,"Canid (5 kg)",{"$f":"F11b!Dose_C","v":0.38160721244905965},{"$f":"F11b!Dose_L","v":3.8160721244905972E-2},{"$f":"F11b!Dose_U","v":2.1624408705446712},"F11b",null,null,null,"Canid",3.8160721244905972E-2,0.34344649120415366,1.7808336580956114,0]
["Chronic/Longer Term Exposures"]
["   Contaminated Fruit [Lowest Residue Rates]",null,null,null,null,null,null,null,null,"FRUIT-------------"]
[null,"Small mammal (20g)","No Exposure Assessment",null,null,null,null,null,null,"Sm Mam",{"$f":"IF(D49>0,  D49, \"\")","v":""},{"$f":"IF(ISERROR(C49-K49), \"\", C49-K49)","v":""},{"$f":"IF(ISERROR(E49-C49), \"\", E49-C49)","v":""},{"$f":"E49-SUM(K49:M49)","v":0}]
[null,"Larger Mammal (400g)","No Exposure Assessment",null,null,null,null,null,null,"400g Mam","","","",0]
[null,"Large Mammal (70 kg)","No Exposure Assessment",null,null,null,null,null,null,"Lrg Mam","","","",0]
["   Contaminated Broadleaf Foliage",null,null,null,null,null,null,null,null,"BROADLEAF-----"]
[null,"Small mammal (20g)","No Exposure Assessment",null,null,null,null,null,null,"Sm Mam",{"$f":"IF(D53>0,  D53, \"\")","v":""},{"$f":"IF(ISERROR(C53-K53), \"\", C53-K53)","v":""},{"$f":"IF(ISERROR(E53-C53), \"\", E53-C53)","v":""},{"$f":"E53-SUM(K53:M53)","v":0}]
[null,"Larger Mammal (400g)","No Exposure Assessment",null,null,null,null,null,null,"400g Mam","","","",0]
[null,"Large Mammal (70 kg)","No Exposure Assessment",null,null,null,null,null,null,"Lrg Mam","","","",0]
["  Contaminated Tall Grass",null,null,null,null,null,null,null,null,"TALL GRASS -----"]
[null,"Small mammal (20g)","No Exposure Assessment",null,null,null,null,null,null,"Sm Mam",{"$f":"IF(D57>0,  D57, \"\")","v":""},{"$f":"IF(ISERROR(C57-K57), \"\", C57-K57)","v":""},{"$f":"IF(ISERROR(E57-C57), \"\", E57-C57)","v":""},{"$f":"E57-SUM(K57:M57)","v":0}]
[null,"Larger Mammal (400g)","No Exposure Assessment",null,null,null,null,null,null,"400g Mam","","","",0]
[null,"Large Mammal (70 kg)","No Exposure Assessment",null,null,null,null,null,null,"Lrg Mam","","","",0]
["   Contaminated Short Grass [Highest Residue Rate]",null,null,null,null,null,null,null,null,"SHORT GRASS---"]
[null,"Small mammal (20g)","No Exposure Assessment",null,null,null,null,null,null,"Sm Mam",{"$f":"IF(D61>0,  D61, \"\")","v":""},{"$f":"IF(ISERROR(C61-K61), \"\", C61-K61)","v":""},{"$f":"IF(ISERROR(E61-C61), \"\", E61-C61)","v":""},{"$f":"E61-SUM(K61:M61)","v":0}]
[null,"Larger Mammal (400g)","No Exposure Assessment",null,null,null,null,null,null,"400g Mam","","","",0]
[null,"Large Mammal (70 kg)","No Exposure Assessment",null,null,null,null,null,null,"Lrg Mam","","","",0]
["   Contaminated Water",null,null,null,null,null,null,null,null,"WATER------------"]
[null,"Small mammal (20g)",{"$f":"F16a!Dose_C","v":9.0114660093864468E-5},{"$f":"F16a!Dose_L","v":1.2203026887710816E-5},{"$f":"F16a!Dose_U","v":3.9425149823177769E-3},"F16a",null,null,null,"Sm Mam",{"$f":"IF(D65>0,  D65, \"\")","v":1.2203026887710816E-5},{"$f":"IF(ISERROR(C65-K65), \"\", C65-K65)","v":7.7911633206153655E-5},{"$f":"IF(ISERROR(E65-C65), \"\", E65-C65)","v":3.8524003222239122E-3},{"$f":"E65-SUM(K65:M65)","v":0}]
[null,"Larger Mammal (400g)",{"$f":"F16b!Dose_C","v":6.6787078965126101E-5},{"$f":"F16b!Dose_L","v":9.0440836098608274E-6},{"$f":"F16b!Dose_U","v":2.9219336695159742E-3},"F16b",null,null,null,"400g Mam",9.0440836098608274E-6,5.7742995355265275E-5,2.8551465905508481E-3,0]
[null,"Canid (5 kg)",{"$f":"F16c!Dose_C","v":5.1880176874163846E-5},{"$f":"F16c!Dose_L","v":7.0254406183763557E-6},{"$f":"F16c!Dose_U","v":2.2697569340952703E-3},"F16c",null,null,null,"Canid",7.0254406183763557E-6,4.4854736255787492E-5,2.2178767572211063E-3,0]
[null,"Large Mammal (70 kg)",{"$f":"F16d!Dose_C","v":3.984635909329603E-5},{"$f":"F16d!Dose_L","v":5.3958611272171704E-6},{"$f":"F16d!Dose_U","v":1.743277592708023E-3},"F16d",null,null,null,"Lrg Mam",5.3958611272171704E-6,3.4450497966078857E-5,1.703431233614727E-3,0]
["   Consumption of contaminated Fish",null,null,null,null,null,null,null,null,"FISH----------------"]
[null,"Large Mammalian Carnivore (70 kg)",{"$f":"F17a!Dose_C","v":4.0799436791365994E-4},{"$f":"F17a!Dose_L","v":5.5249237321641452E-6},{"$f":"F17a!Dose_U","v":0.10114856787612624},"F17a",null,null,null,"Lrg Mam",{"$f":"IF(D70>0,  D70, \"\")","v":5.5249237321641452E-6},{"$f":"IF(ISERROR(C70-K70), \"\", C70-K70)","v":4.0246944418149581E-4},{"$f":"IF(ISERROR(E70-C70), \"\", E70-C70)","v":0.10074057350821257},{"$f":"E70-SUM(K70:M70)","v":0}]
[null,"Canid (5 kg)",{"$f":"F17b!Dose_C","v":5.8724568849890092E-4},{"$f":"F17b!Dose_L","v":7.9522853650892834E-6},{"$f":"F17b!Dose_U","v":0.14558794202684588},"F17b",null,null,null,"Canid",{"$f":"IF(D71>0,  D71, \"\")","v":7.9522853650892834E-6},{"$f":"IF(ISERROR(C71-K71), \"\", C71-K71)","v":5.7929340313381164E-4},{"$f":"IF(ISERROR(E71-C71), \"\", E71-C71)","v":0.14500069633834697},0]

{"sheet":"G01b","index":65,"n_rows":50,"n_cols":14,"rows_kept":50,"cut":false,"hidden":false,"merged":[[2,5,3,5],[0,0,0,4],[1,2,1,4],[2,0,3,0],[2,1,3,1],[2,2,2,4]]}
["Summary of Exposure Assessments for the Birds",null,null,null,null,"G01V6Brd"]
["Application Rate:",{"$f":"'A01'!ApRt_C","v":0.4},"ppm",null,null,"G01V6Brd"]
["Scenario","Receptor","mg/kg/day or mg/kg/event",null,null,"Detail Worksheet"]
[null,null,"Central","Lower","Upper"]
["Accidental Acute Exposures",null,null,null,null,null,null,null,null,null,"Lower","Central","Upper","Check"]
["   Contaminated Water",null,null,null,null,null,null,null,null,"SPILL----"]
["Spill","Small bird (10g)",{"$f":"F02e!Dose_C","v":13.269704378299954},{"$f":"F02e!Dose_L","v":2.6539408756599907},{"$f":"F02e!Dose_U","v":26.539408756599908},"F02e",null,null,null,"Sm Brd",{"$f":"IF(D7>0,  D7, \"\")","v":2.6539408756599907},{"$f":"IF(ISERROR(C7-K7), \"\", C7-K7)","v":10.615763502639963},{"$f":"IF(ISERROR(E7-C7), \"\", E7-C7)","v":13.269704378299954},{"$f":"E7-SUM(K7:M7)","v":0}]
["Spill","Large Bird (4 kg)",{"$f":"F02f!Dose_C","v":1.8373058195860748},{"$f":"F02f!Dose_L","v":0.36746116391721495},{"$f":"F02f!Dose_U","v":3.6746116391721495},"F02f",null,null,null,"Lrg Brd",0.36746116391721495,1.4698446556688598,1.8373058195860748,{"$f":"E8-SUM(K8:M8)","v":0}]
["   Consumption of contaminated Fish",null,null,null,null,null,null,null,null,"FISH------"]
["Spill","Fish-eating bird (2.4 kg)",{"$f":"F03c!Dose_C","v":54.500346905280956},{"$f":"F03c!Dose_L","v":1.0900069381056194},{"$f":"F03c!Dose_U","v":617.67059825985086},"F03c",null,null,null,"Pisc Brd",{"$f":"IF(D10>0,  D10, \"\")","v":1.0900069381056194},{"$f":"IF(ISERROR(C10-K10), \"\", C10-K10)","v":53.410339967175339},{"$f":"IF(ISERROR(E10-C10), \"\", E10-C10)","v":563.17025135456993},{"$f":"E10-SUM(K10:M10)","v":0}]
["Non-Accidental Acute Exposures"]
["   Contaminated Fruit [Lowest Residue Rates]",null,null,null,null,null,null,null,null,"FRUIT-------------"]
[null,"Small bird (10g)","No Exposure Assessment",null,null,null,null,null,null,"Sm Brd",{"$f":"IF(D13>0,  D13, \"\")","v":""},{"$f":"IF(ISERROR(C13-K13), \"\", C13-K13)","v":""},{"$f":"IF(ISERROR(E13-C13), \"\", E13-C13)","v":""},{"$f":"E13-SUM(K13:M13)","v":0}]
[null,"Large Bird (4 kg)","No Exposure Assessment",null,null,null,null,null,null,"Lrg Brd","","","",0]
["   Contaminated Broadleaf Foliage",null,null,null,null,null,null,null,null,"BROADLEAF-----"]
[null,"Small bird (10g)","No Exposure Assessment",null,null,null,null,null,null,"Sm Brd",{"$f":"IF(D16>0,  D16, \"\")","v":""},{"$f":"IF(ISERROR(C16-K16), \"\", C16-K16)","v":""},{"$f":"IF(ISERROR(E16-C16), \"\", E16-C16)","v":""},{"$f":"E16-SUM(K16:M16)","v":0}]
[null,"Large Bird (4 kg)","No Exposure Assessment",null,null,null,null,null,null,"Lrg Brd","","","",0]
["  Contaminated Tall Grass",null,null,null,null,null,null,null,null,"TALL GRASS -----"]
[null,"Small bird (10g)","No Exposure Assessment",null,null,null,null,null,null,"Sm Brd",{"$f":"IF(D19>0,  D19, \"\")","v":""},{"$f":"IF(ISERROR(C19-K19), \"\", C19-K19)","v":""},{"$f":"IF(ISERROR(E19-C19), \"\", E19-C19)","v":""},{"$f":"E19-SUM(K19:M19)","v":0}]
[null,"Large Bird (4 kg)","No Exposure Assessment",null,null,null,null,null,null,"Lrg Brd","","","",0]
["   Contaminated Short Grass [Highest Residue Rate]",null,null,null,null,null,null,null,null,"SHORT GRASS---"]
[null,"Small bird (10g)","No Exposure Assessment",null,null,null,null,null,null,"Sm Brd",{"$f":"IF(D22>0,  D22, \"\")","v":""},{"$f":"IF(ISERROR(C22-K22), \"\", C22-K22)","v":""},{"$f":"IF(ISERROR(E22-C22), \"\", E22-C22)","v":""},{"$f":"E22-SUM(K22:M22)","v":0}]
[null,"Large Bird (4 kg)","No Exposure Assessment",null,null,null,null,null,null,"Lrg Brd","","","",0]
["   Contaminated Water",null,null,null,null,null,null,null,null,"WATER------------"]
[null,"Small bird (10g)",{"$f":"F08e!Dose_C","v":0.10787281274911051},{"$f":"F08e!Dose_L","v":0.10787281274911051},{"$f":"F08e!Dose_U","v":0.10787281274911051},"F08e",null,null,null,"Sm Brd",{"$f":"IF(D25>0,  D25, \"\")","v":0.10787281274911051},{"$f":"IF(ISERROR(C25-K25), \"\", C25-K25)","v":0},{"$f":"IF(ISERROR(E25-C25), \"\", E25-C25)","v":0},{"$f":"E25-SUM(K25:M25)","v":0}]
[null,"Large Bird (4 kg)",{"$f":"F08f!Dose_C","v":1.4935927808849303E-2},{"$f":"F08f!Dose_L","v":1.4935927808849303E-2},{"$f":"F08f!Dose_U","v":1.4935927808849303E-2},"F08f",null,null,null,"Lrg Brd",1.4935927808849303E-2,0,0,0]
["   Contaminated Insects",null,null,null,null,null,null,null,null,"INSECTS------------"]
[null,"Small bird (10g)","No Exposure Assessment",null,null,null,null,null,null,"Sm Brd",{"$f":"IF(D28>0,  D28, \"\")","v":""},{"$f":"IF(ISERROR(C28-K28), \"\", C28-K28)","v":""},{"$f":"IF(ISERROR(E28-C28), \"\", E28-C28)","v":""},{"$f":"E28-SUM(K28:M28)","v":0}]
["   Consumption of small mammal (after direct spray) by predator",null,null,null,null,null,null,null,null,"SMALL MAMMAL-"]
[null,"Carnivorous bird (640 g)","No Exposure Assessment",null,null,null,null,null,null,"Crn Brd",{"$f":"IF(D30>0,  D30, \"\")","v":""},{"$f":"IF(ISERROR(C30-K30), \"\", C30-K30)","v":""},{"$f":"IF(ISERROR(E30-C30), \"\", E30-C30)","v":""},{"$f":"E30-SUM(K30:M30)","v":0}]
["   Consumption of contaminated Fish",null,null,null,null,null,null,null,null,"FISH----------------"]
[null,"Fish-eating bird (2.4 kg)",{"$f":"F11c!Dose_C","v":0.44304722613783931},{"$f":"F11c!Dose_L","v":4.4304722613783938E-2},{"$f":"F11c!Dose_U","v":2.5106009481144227},"F11c",null,null,null,"Psc Brd",{"$f":"IF(D32>0,  D32, \"\")","v":4.4304722613783938E-2},{"$f":"IF(ISERROR(C32-K32), \"\", C32-K32)","v":0.39874250352405538},{"$f":"IF(ISERROR(E32-C32), \"\", E32-C32)","v":2.0675537219765836},{"$f":"E32-SUM(K32:M32)","v":0}]
["Chronic/Longer Term Exposures"]
["   Contaminated Fruit (Lowest Residue Rate)",null,null,null,null,null,null,null,null,"FRUIT-------------"]
[null,"Small bird (10g)","No Exposure Assessment",null,null,null,null,null,null,"Sm Brd",{"$f":"IF(D35>0,  D35, \"\")","v":""},{"$f":"IF(ISERROR(C35-K35), \"\", C35-K35)","v":""},{"$f":"IF(ISERROR(E35-C35), \"\", E35-C35)","v":""},{"$f":"E35-SUM(K35:M35)","v":0}]
[null,"Large Bird (4 kg)","No Exposure Assessment",null,null,null,null,null,null,"Lrg Brd","","","",0]
["   Contaminated Broadleaf Foliage",null,null,null,null,null,null,null,null,"BROADLEAF-----"]
[null,"Small bird (10g)","No Exposure Assessment",null,null,null,null,null,null,"Sm Brd",{"$f":"IF(D38>0,  D38, \"\")","v":""},{"$f":"IF(ISERROR(C38-K38), \"\", C38-K38)","v":""},{"$f":"IF(ISERROR(E38-C38), \"\", E38-C38)","v":""},{"$f":"E38-SUM(K38:M38)","v":0}]
[null,"Large Bird (4 kg)","No Exposure Assessment",null,null,null,null,null,null,"Lrg Brd",{"$f":"IF(D39>0,  D39, \"\")","v":""},{"$f":"IF(ISERROR(C39-K39), \"\", C39-K39)","v":""},{"$f":"IF(ISERROR(E39-C39), \"\", E39-C39)","v":""},0]
["  Contaminated Tall Grass",null,null,null,null,null,null,null,null,"TALL GRASS -----"]
[null,"Small bird (10g)","No Exposure Assessment",null,null,null,null,null,null,"Sm Brd",{"$f":"IF(D41>0,  D41, \"\")","v":""},{"$f":"IF(ISERROR(C41-K41), \"\", C41-K41)","v":""},{"$f":"IF(ISERROR(E41-C41), \"\", E41-C41)","v":""},{"$f":"E41-SUM(K41:M41)","v":0}]
[null,"Large Bird (4 kg)","No Exposure Assessment",null,null,null,null,null,null,"Lrg Brd","","","",0]
["   Contaminated Vegetation (Short Grass - Highest Residue Rate)",null,null,null,null,null,null,null,null,"SHORT GRASS---"]
[null,"Small bird (10g)","No Exposure Assessment",null,null,null,null,null,null,"Sm Brd",{"$f":"IF(D44>0,  D44, \"\")","v":""},{"$f":"IF(ISERROR(C44-K44), \"\", C44-K44)","v":""},{"$f":"IF(ISERROR(E44-C44), \"\", E44-C44)","v":""},{"$f":"E44-SUM(K44:M44)","v":0}]
[null,"Large Bird (4 kg)","No Exposure Assessment",null,null,null,null,null,null,"Lrg Brd","","","",0]
["   Contaminated Water",null,null,null,null,null,null,null,null,"WATER------------"]
[null,"Small bird (10g)",{"$f":"F16e!Dose_C","v":1.6600274346654451E-4},{"$f":"F16e!Dose_L","v":2.2479538177761236E-5},{"$f":"F16e!Dose_U","v":7.2626174535974988E-3},"F16e",null,null,null,"Sm Brd",{"$f":"IF(D47>0,  D47, \"\")","v":2.2479538177761236E-5},{"$f":"IF(ISERROR(C47-K47), \"\", C47-K47)","v":1.4352320528878329E-4},{"$f":"IF(ISERROR(E47-C47), \"\", E47-C47)","v":7.0966147101309543E-3},{"$f":"E47-SUM(K47:M47)","v":0}]
[null,"Large Bird (4 kg)",{"$f":"F16f!Dose_C","v":2.2984521579629281E-5},{"$f":"F16f!Dose_L","v":3.1124872972414656E-6},{"$f":"F16f!Dose_U","v":1.0055724628457476E-3},"F16f",null,null,null,"Lrg Brd",3.1124872972414656E-6,1.9872034282387817E-5,9.8258794126611826E-4,0]
["   Consumption of contaminated Fish",null,null,null,null,null,null,null,null,"FISH----------------"]
[null,"Fish-eating bird (2.4 kg)",{"$f":"F17c!Dose_C","v":6.8179417176391689E-4},{"$f":"F17c!Dose_L","v":9.2326294093030419E-6},{"$f":"F17c!Dose_U","v":0.16902807853172058},"F17c",null,null,null,"Psc Brd",{"$f":"IF(D50>0,  D50, \"\")","v":9.2326294093030419E-6},{"$f":"IF(ISERROR(C50-K50), \"\", C50-K50)","v":6.7256154235461382E-4},{"$f":"IF(ISERROR(E50-C50), \"\", E50-C50)","v":0.16834628435995666},{"$f":"E50-SUM(K50:M50)","v":0}]

{"sheet":"G02a","index":66,"n_rows":71,"n_cols":14,"rows_kept":71,"cut":false,"hidden":false,"merged":[[2,5,3,5],[0,0,0,4],[1,2,1,4],[2,0,3,0],[2,1,3,1],[2,2,2,4]]}
["Summary of Hazard Quotients (Toxicity) for the Mammals",null,null,null,null,"G01V6Mam"]
["Application Rate:",{"$f":"'A01'!ApRt_C","v":0.4},"ppm",null,null,"G01V6Mam"]
["Scenario","Receptor","Hazard Quotients",null,null,"Toxicity Value"]
[null,null,"Central","Lower","Upper",null,null,null,null,null,"Lower","Central","Upper"]
["Accidental Acute Exposures"]
["   Direct Spray",null,null,null,null,null,null,null,null,"SPRAY------------"]
["first-order absorption","Small mammal (20g)","No exposure assessment.",null,null,null,null,null,null,"1st-Order Abs",{"$f":"IF(D7>0,  D7, \"\")","v":""},{"$f":"IF(ISERROR(C7-K7), \"\", C7-K7)","v":""},{"$f":"IF(ISERROR(E7-C7), \"\", E7-C7)","v":""},{"$f":"E7-SUM(K7:M7)","v":0}]
["100% absorption","Small mammal (20g)","No exposure assessment.",null,null,null,null,null,null,"100% Abs.","","","",{"$f":"E8-SUM(K8:M8)","v":0}]
["   Contaminated Water",null,null,null,null,null,null,null,null,"SPILL--------------"]
["Spill","Small mammal (20g)",{"$f":"F02a!$C$18/$F$10","v":2.4011548938397738},{"$f":"F02a!$C$19/$F$10","v":0.48023097876795467},{"$f":"F02a!$C$20/$F$10","v":4.8023097876795475},{"$f":"'B02'!$E$7","v":3},"NOAEL",null,null,"Sm Mam",{"$f":"IF(D10>0,  D10, \"\")","v":0.48023097876795467},{"$f":"IF(ISERROR(C10-K10), \"\", C10-K10)","v":1.9209239150718191},{"$f":"IF(ISERROR(E10-C10), \"\", E10-C10)","v":2.4011548938397738},{"$f":"E10-SUM(K10:M10)","v":0}]
["Spill","Larger Mammal (400g)",{"$f":"F02b!$C$18/$F$11","v":1.7795786094663926},{"$f":"F02b!$C$19/$F$11","v":0.35591572189327847},{"$f":"F02b!$C$20/$F$11","v":3.5591572189327851},{"$f":"'B02'!$E$7","v":3},"NOAEL",null,null,"400 g Mam",0.35591572189327847,1.4236628875731141,1.7795786094663926,0]
["Spill","Canid (5 kg)",{"$f":"F02c!$C$18/$F$12","v":1.3823759692919619},{"$f":"F02c!$C$19/$F$12","v":0.27647519385839242},{"$f":"F02c!$C$20/$F$12","v":2.7647519385839239},{"$f":"'B02'!$E$7","v":3},"NOAEL",null,null,"Canid",0.27647519385839242,1.1059007754335695,1.3823759692919619,0]
["Spill","Large Mammal (70 kg)",{"$f":"F02d!$C$18/$F$13","v":1.0617282475338217},{"$f":"F02d!$C$19/$F$13","v":0.21234564950676429},{"$f":"F02d!$C$20/$F$13","v":2.1234564950676433},{"$f":"'B02'!$E$7","v":3},"NOAEL",null,null,"Lrg Mam",0.21234564950676429,0.8493825980270574,1.0617282475338217,0]
["   Consumption of contaminated Fish",null,null,null,null,null,null,null,null,"FISH--------------"]
["Spill","Large Mammalian Carnivore (70 kg)",{"$f":"F03a!$C$47/$F$15","v":10.871235292398891},{"$f":"F03a!$C$48/$F$15","v":0.21742470584797788},{"$f":"F03a!$C$49/$F$15","v":123.20733331385411},{"$f":"'B02'!$E$7","v":3},"NOAEL",null,null,"Lrg Mam",{"$f":"IF(D15>0,  D15, \"\")","v":0.21742470584797788},{"$f":"IF(ISERROR(C15-K15), \"\", C15-K15)","v":10.653810586550913},{"$f":"IF(ISERROR(E15-C15), \"\", E15-C15)","v":112.33609802145521},{"$f":"E15-SUM(K15:M15)","v":0}]
["Spill","Canid (5 kg)",{"$f":"F03b!$C$47/$F$16","v":15.647485740463315},{"$f":"F03b!$C$48/$F$16","v":0.31294971480926637},{"$f":"F03b!$C$49/$F$16","v":177.33817172525087},{"$f":"'B02'!$E$7","v":3},"NOAEL",null,null,"Canid",0.31294971480926637,15.334536025654049,161.69068598478756,0]
["Non-Accidental Acute Exposures"]
["   Contaminated Fruit [Lowest Residue Rates]",null,null,null,null,null,null,null,null,"FRUIT-------------"]
[null,"Small mammal (20g)","No exposure assessment.",null,null,null,null,null,null,"Sm Mam",{"$f":"IF(D19>0,  D19, \"\")","v":""},{"$f":"IF(ISERROR(C19-K19), \"\", C19-K19)","v":""},{"$f":"IF(ISERROR(E19-C19), \"\", E19-C19)","v":""},{"$f":"E19-SUM(K19:M19)","v":0}]
[null,"Larger Mammal (400g)","No exposure assessment.",null,null,null,null,null,null,"400g Mam","","","",0]
[null,"Large Mammal (70 kg)","No exposure assessment.",null,null,null,null,null,null,"Lrg Mam","","","",0]
["   Contaminated Broadleaf Foliage",null,null,null,null,null,null,null,null,"BROADLEAF-----"]
[null,"Small mammal (20g)","No exposure assessment.",null,null,null,null,null,null,"Sm Mam",{"$f":"IF(D23>0,  D23, \"\")","v":""},{"$f":"IF(ISERROR(C23-K23), \"\", C23-K23)","v":""},{"$f":"IF(ISERROR(E23-C23), \"\", E23-C23)","v":""},{"$f":"E23-SUM(K23:M23)","v":0}]
[null,"Larger Mammal (400g)","No exposure assessment.",null,null,null,null,null,null,"400g Mam","","","",0]
[null,"Large Mammal (70 kg)","No exposure assessment.",null,null,null,null,null,null,"Lrg Mam","","","",0]
["  Contaminated Tall Grass",null,null,null,null,null,null,null,null,"TALL GRASS -----"]
[null,"Small mammal (20g)","No exposure assessment.",null,null,null,null,null,null,"Sm Mam",{"$f":"IF(D27>0,  D27, \"\")","v":""},{"$f":"IF(ISERROR(C27-K27), \"\", C27-K27)","v":""},{"$f":"IF(ISERROR(E27-C27), \"\", E27-C27)","v":""},{"$f":"E27-SUM(K27:M27)","v":0}]
[null,"Larger Mammal (400g)","No exposure assessment.",null,null,null,null,null,null,"400g Mam","","","",0]
[null,"Large Mammal (70 kg)","No exposure assessment.",null,null,null,null,null,null,"Lrg Mam","","","",0]
["   Contaminated Short Grass [Highest Residue Rate]",null,null,null,null,null,null,null,null,"SHORT GRASS---"]
[null,"Small mammal (20g)","No exposure assessment.",null,null,null,null,null,null,"Sm Mam",{"$f":"IF(D31>0,  D31, \"\")","v":""},{"$f":"IF(ISERROR(C31-K31), \"\", C31-K31)","v":""},{"$f":"IF(ISERROR(E31-C31), \"\", E31-C31)","v":""},{"$f":"E31-SUM(K31:M31)","v":0}]
[null,"Larger Mammal (400g)","No exposure assessment.",null,null,null,null,null,null,"400g Mam","","","",0]
[null,"Large Mammal (70 kg)","No exposure assessment.",null,null,null,null,null,null,"Lrg Mam","","","",0]
["   Contaminated Water",null,null,null,null,null,null,null,null,"WATER------------"]
[null,"Small mammal (20g)",{"$f":"F08a!$C$18/$F$35","v":1.9519600803493742E-2},{"$f":"F08a!$C$19/$F$35","v":1.9519600803493742E-2},{"$f":"F08a!$C$20/$F$35","v":1.9519600803493742E-2},{"$f":"'B02'!$E$7","v":3},"NOAEL",null,null,"Sm Mam",{"$f":"IF(D35>0,  D35, \"\")","v":1.9519600803493742E-2},{"$f":"IF(ISERROR(C35-K35), \"\", C35-K35)","v":0},{"$f":"IF(ISERROR(E35-C35), \"\", E35-C35)","v":0},{"$f":"E35-SUM(K35:M35)","v":0}]
[null,"Larger Mammal (400g)",{"$f":"F08b!$C$18/$F$36","v":1.4466648588284871E-2},{"$f":"F08b!$C$19/$F$36","v":1.4466648588284871E-2},{"$f":"F08b!$C$20/$F$36","v":1.4466648588284871E-2},{"$f":"'B02'!$E$7","v":3},"NOAEL",null,null,"400g Mam",1.4466648588284871E-2,0,0,0]
[null,"Canid (5 kg)",{"$f":"F08c!$C$18/$F$37","v":1.1237686977274357E-2},{"$f":"F08c!$C$19/$F$37","v":1.1237686977274357E-2},{"$f":"F08c!$C$20/$F$37","v":1.1237686977274357E-2},{"$f":"'B02'!$E$7","v":3},"NOAEL",null,null,"Canid",1.1237686977274357E-2,0,0,0]
[null,"Large Mammal (70 kg)",{"$f":"F08d!$C$18/$F$38","v":8.6310598315929004E-3},{"$f":"F08d!$C$19/$F$38","v":8.6310598315929004E-3},{"$f":"F08d!$C$20/$F$38","v":8.6310598315929004E-3},{"$f":"'B02'!$E$7","v":3},"NOAEL",null,null,"Lrg Mam",8.6310598315929004E-3,0,0,0]
["   Contaminated Insects",null,null,null,null,null,null,null,null,"INSECTS------------"]
[null,"Small mammal (20g)","No exposure assessment.",null,null,null,null,null,null,"Sm Mam",{"$f":"IF(D40>0,  D40, \"\")","v":""},{"$f":"IF(ISERROR(C40-K40), \"\", C40-K40)","v":""},{"$f":"IF(ISERROR(E40-C40), \"\", E40-C40)","v":""},{"$f":"E40-SUM(K40:M40)","v":0}]
[null,"Larger Mammal (400g)","No exposure assessment.",null,null,null,null,null,null,"Lrg Mam","","","",0]
["   Consumption of small mammal (after direct spray) by predator",null,null,null,null,null,null,null,null,"SMALL MAMMAL-"]
[null,"Canid (5 kg)","No exposure assessment.",null,null,null,null,null,null,"Canid",{"$f":"IF(D43>0,  D43, \"\")","v":""},{"$f":"IF(ISERROR(C43-K43), \"\", C43-K43)","v":""},{"$f":"IF(ISERROR(E43-C43), \"\", E43-C43)","v":""},{"$f":"E43-SUM(K43:M43)","v":0}]
["   Consumption of contaminated Fish",null,null,null,null,null,null,null,null,"FISH----------------"]
[null,"Large Mammalian Carnivore (70 kg)",{"$f":"F11a!$C$47/$F$45","v":8.8375045563653234E-2},{"$f":"F11a!$C$48/$F$45","v":8.8375045563653231E-3},{"$f":"F11a!$C$49/$F$45","v":0.50079192486070168},{"$f":"'B02'!$E$7","v":3},"NOAEL",null,null,"Lrg Mam",{"$f":"IF(D45>0,  D45, \"\")","v":8.8375045563653231E-3},{"$f":"IF(ISERROR(C45-K45), \"\", C45-K45)","v":7.953754100728791E-2},{"$f":"IF(ISERROR(E45-C45), \"\", E45-C45)","v":0.41241687929704846},{"$f":"E45-SUM(K45:M45)","v":0}]
[null,"Canid (5 kg)",{"$f":"F11b!$C$47/$F$46","v":0.12720240414968656},{"$f":"F11b!$C$48/$F$46","v":1.2720240414968657E-2},{"$f":"F11b!$C$49/$F$46","v":0.72081362351489042},{"$f":"'B02'!$E$7","v":3},"NOAEL",null,null,"Canid",1.2720240414968657E-2,0.1144821637347179,0.59361121936520389,0]
["Chronic/Longer Term Exposures"]
["   Contaminated Fruit [Lowest Residue Rates]",null,null,null,null,null,null,null,null,"FRUIT-------------"]
[null,"Small mammal (20g)","No exposure assessment.",null,null,null,null,null,null,"Sm Mam",{"$f":"IF(D49>0,  D49, \"\")","v":""},{"$f":"IF(ISERROR(C49-K49), \"\", C49-K49)","v":""},{"$f":"IF(ISERROR(E49-C49), \"\", E49-C49)","v":""},{"$f":"E49-SUM(K49:M49)","v":0}]
[null,"Larger Mammal (400g)","No exposure assessment.",null,null,null,null,null,null,"400g Mam","","","",0]
[null,"Large Mammal (70 kg)","No exposure assessment.",null,null,null,null,null,null,"Lrg Mam","","","",0]
["   Contaminated Broadleaf Foliage",null,null,null,null,null,null,null,null,"BROADLEAF-----"]
[null,"Small mammal (20g)","No exposure assessment.",null,null,null,null,null,null,"Sm Mam",{"$f":"IF(D53>0,  D53, \"\")","v":""},{"$f":"IF(ISERROR(C53-K53), \"\", C53-K53)","v":""},{"$f":"IF(ISERROR(E53-C53), \"\", E53-C53)","v":""},{"$f":"E53-SUM(K53:M53)","v":0}]
[null,"Larger Mammal (400g)","No exposure assessment.",null,null,null,null,null,null,"400g Mam","","","",0]
[null,"Large Mammal (70 kg)","No exposure assessment.",null,null,null,null,null,null,"Lrg Mam","","","",0]
["  Contaminated Tall Grass",null,null,null,null,null,null,null,null,"TALL GRASS -----"]
[null,"Small mammal (20g)","No exposure assessment.",null,null,null,null,null,null,"Sm Mam",{"$f":"IF(D57>0,  D57, \"\")","v":""},{"$f":"IF(ISERROR(C57-K57), \"\", C57-K57)","v":""},{"$f":"IF(ISERROR(E57-C57), \"\", E57-C57)","v":""},{"$f":"E57-SUM(K57:M57)","v":0}]
[null,"Larger Mammal (400g)","No exposure assessment.",null,null,null,null,null,null,"400g Mam","","","",0]
[null,"Large Mammal (70 kg)","No exposure assessment.",null,null,null,null,null,null,"Lrg Mam","","","",0]
["   Contaminated Short Grass [Highest Residue Rate]",null,null,null,null,null,null,null,null,"SHORT GRASS---"]
[null,"Small mammal (20g)","No exposure assessment.",null,null,null,null,null,null,"Sm Mam",{"$f":"IF(D61>0,  D61, \"\")","v":""},{"$f":"IF(ISERROR(C61-K61), \"\", C61-K61)","v":""},{"$f":"IF(ISERROR(E61-C61), \"\", E61-C61)","v":""},{"$f":"E61-SUM(K61:M61)","v":0}]
[null,"Larger Mammal (400g)","No exposure assessment.",null,null,null,null,null,null,"400g Mam","","","",0]
[null,"Large Mammal (70 kg)","No exposure assessment.",null,null,null,null,null,null,"Lrg Mam","","","",0]
["   Contaminated Water",null,null,null,null,null,null,null,null,"WATER------------"]
[null,"Small mammal (20g)",{"$f":"F16a!$C$18/$F$65","v":5.0063700052146926E-5},{"$f":"F16a!$C$19/$F$65","v":6.7794593820615644E-6},{"$f":"F16a!$C$20/$F$65","v":2.1902861012876537E-3},{"$f":"'B02'!$E$8","v":1.8},"NOAEL",null,null,"Sm Mam",{"$f":"IF(D65>0,  D65, \"\")","v":6.7794593820615644E-6},{"$f":"IF(ISERROR(C65-K65), \"\", C65-K65)","v":4.3284240670085363E-5},{"$f":"IF(ISERROR(E65-C65), \"\", E65-C65)","v":2.1402224012355068E-3},{"$f":"E65-SUM(K65:M65)","v":0}]
[null,"Larger Mammal (400g)",{"$f":"F16b!$C$18/$F$66","v":3.7103932758403387E-5},{"$f":"F16b!$C$19/$F$66","v":5.0244908943671262E-6},{"$f":"F16b!$C$20/$F$66","v":1.62329648306443E-3},{"$f":"'B02'!$E$8","v":1.8},"NOAEL",null,null,"400g Mam",5.0244908943671262E-6,3.2079441864036262E-5,1.5861925503060266E-3,0]
[null,"Canid (5 kg)",{"$f":"F16c!$C$18/$F$67","v":2.8822320485646579E-5},{"$f":"F16c!$C$19/$F$67","v":3.9030225657646422E-6},{"$f":"F16c!$C$20/$F$67","v":1.2609760744973723E-3},{"$f":"'B02'!$E$8","v":1.8},"NOAEL",null,null,"Canid",3.9030225657646422E-6,2.4919297919881937E-5,1.2321537540117256E-3,0]
[null,"Large Mammal (70 kg)",{"$f":"F16d!$C$18/$F$68","v":2.2136866162942239E-5},{"$f":"F16d!$C$19/$F$68","v":2.9977006262317614E-6},{"$f":"F16d!$C$20/$F$68","v":9.684875515044572E-4},{"$f":"'B02'!$E$8","v":1.8},"NOAEL",null,null,"Lrg Mam",2.9977006262317614E-6,1.9139165536710479E-5,9.4635068534151497E-4,0]
["   Consumption of contaminated Fish",null,null,null,null,null,null,null,null,"FISH----------------"]
[null,"Large Mammalian Carnivore (70 kg)",{"$f":"F17a!$C$47/$F$70","v":2.2666353772981109E-4},{"$f":"F17a!$C$48/$F$70","v":3.0694020734245249E-6},{"$f":"F17a!$C$49/$F$70","v":5.6193648820070129E-2},{"$f":"'B02'!$E$8","v":1.8},"NOAEL",null,null,"Lrg Mam",{"$f":"IF(D70>0,  D70, \"\")","v":3.0694020734245249E-6},{"$f":"IF(ISERROR(C70-K70), \"\", C70-K70)","v":2.2359413565638657E-4},{"$f":"IF(ISERROR(E70-C70), \"\", E70-C70)","v":5.5966985282340315E-2},{"$f":"E70-SUM(K70:M70)","v":0}]
[null,"Canid (5 kg)",{"$f":"F17b!$C$47/$F$71","v":3.2624760472161159E-4},{"$f":"F17b!$C$48/$F$71","v":4.4179363139384909E-6},{"$f":"F17b!$C$49/$F$71","v":8.0882190014914382E-2},{"$f":"'B02'!$E$8","v":1.8},"NOAEL",null,null,"Canid",{"$f":"IF(D71>0,  D71, \"\")","v":4.4179363139384909E-6},{"$f":"IF(ISERROR(C71-K71), \"\", C71-K71)","v":3.2182966840767311E-4},{"$f":"IF(ISERROR(E71-C71), \"\", E71-C71)","v":8.0555942410192774E-2},0]

{"sheet":"G02b","index":67,"n_rows":50,"n_cols":14,"rows_kept":50,"cut":false,"hidden":false,"merged":[[2,5,3,5],[0,0,0,4],[1,2,1,4],[2,0,3,0],[2,1,3,1],[2,2,2,4]]}
["Summary of Hazard Quotients (Toxicity) for the Birds",null,null,null,null,"G01V6Brd"]
["Application Rate:",{"$f":"'A01'!ApRt_C","v":0.4},"ppm",null,null,"G01V6Brd"]
["Scenario","Receptor","Hazard Quotients",null,null,"Toxicity Value"]
[null,null,"Central","Lower","Upper"]
["Accidental Acute Exposures",null,null,null,null,null,null,null,null,null,"Lower","Central","Upper","Check"]
["   Contaminated Water",null,null,null,null,null,null,null,null,"SPILL----"]
["Spill","Small bird (10g)",{"$f":"F02e!$C$18/$F$7","v":7.6792270707754361E-3},{"$f":"F02e!$C$19/$F$7","v":1.5358454141550873E-3},{"$f":"F02e!$C$20/$F$7","v":1.5358454141550872E-2},{"$f":"'B02'!$E$9","v":1728},"NOAEL",null,null,"Sm Brd",{"$f":"IF(D7>0,  D7, \"\")","v":1.5358454141550873E-3},{"$f":"IF(ISERROR(C7-K7), \"\", C7-K7)","v":6.1433816566203491E-3},{"$f":"IF(ISERROR(E7-C7), \"\", E7-C7)","v":7.6792270707754361E-3},{"$f":"E7-SUM(K7:M7)","v":0}]
["Spill","Large Bird (4 kg)",{"$f":"F02f!$C$18/$F$8","v":1.0632556826308303E-3},{"$f":"F02f!$C$19/$F$8","v":2.1265113652616606E-4},{"$f":"F02f!$C$20/$F$8","v":2.1265113652616605E-3},{"$f":"'B02'!$E$9","v":1728},"NOAEL",null,null,"Lrg Brd",2.1265113652616606E-4,8.5060454610466423E-4,1.0632556826308303E-3,{"$f":"E8-SUM(K8:M8)","v":0}]
["   Consumption of contaminated Fish",null,null,null,null,null,null,null,null,"FISH------"]
["Spill","Fish-eating bird (2.4 kg)",{"$f":"F03c!$C$47/$F$10","v":3.1539552607222777E-2},{"$f":"F03c!$C$48/$F$10","v":6.3079105214445565E-4},{"$f":"F03c!$C$49/$F$10","v":0.35744826288185816},{"$f":"'B02'!$E$9","v":1728},"NOAEL",null,null,"Pisc Brd",{"$f":"IF(D10>0,  D10, \"\")","v":6.3079105214445565E-4},{"$f":"IF(ISERROR(C10-K10), \"\", C10-K10)","v":3.0908761555078323E-2},{"$f":"IF(ISERROR(E10-C10), \"\", E10-C10)","v":0.32590871027463536},{"$f":"E10-SUM(K10:M10)","v":0}]
["Non-Accidental Acute Exposures"]
["   Contaminated Fruit [Lowest Residue Rates]",null,null,null,null,null,null,null,null,"FRUIT-------------"]
[null,"Small bird (10g)","No exposure assessment.",null,null,null,null,null,null,"Sm Brd",{"$f":"IF(D13>0,  D13, \"\")","v":""},{"$f":"IF(ISERROR(C13-K13), \"\", C13-K13)","v":""},{"$f":"IF(ISERROR(E13-C13), \"\", E13-C13)","v":""},{"$f":"E13-SUM(K13:M13)","v":0}]
[null,"Large Bird (4 kg)","No exposure assessment.",null,null,null,null,null,null,"Lrg Brd","","","",0]
["   Contaminated Broadleaf Foliage",null,null,null,null,null,null,null,null,"BROADLEAF-----"]
[null,"Small bird (10g)","No exposure assessment.",null,null,null,null,null,null,"Sm Brd",{"$f":"IF(D16>0,  D16, \"\")","v":""},{"$f":"IF(ISERROR(C16-K16), \"\", C16-K16)","v":""},{"$f":"IF(ISERROR(E16-C16), \"\", E16-C16)","v":""},{"$f":"E16-SUM(K16:M16)","v":0}]
[null,"Large Bird (4 kg)","No exposure assessment.",null,null,null,null,null,null,"Lrg Brd","","","",0]
["  Contaminated Tall Grass",null,null,null,null,null,null,null,null,"TALL GRASS -----"]
[null,"Small bird (10g)","No exposure assessment.",null,null,null,null,null,null,"Sm Brd",{"$f":"IF(D19>0,  D19, \"\")","v":""},{"$f":"IF(ISERROR(C19-K19), \"\", C19-K19)","v":""},{"$f":"IF(ISERROR(E19-C19), \"\", E19-C19)","v":""},{"$f":"E19-SUM(K19:M19)","v":0}]
[null,"Large Bird (4 kg)","No exposure assessment.",null,null,null,null,null,null,"Lrg Brd","","","",0]
["   Contaminated Short Grass [Highest Residue Rate]",null,null,null,null,null,null,null,null,"SHORT GRASS---"]
[null,"Small bird (10g)","No exposure assessment.",null,null,null,null,null,null,"Sm Brd",{"$f":"IF(D22>0,  D22, \"\")","v":""},{"$f":"IF(ISERROR(C22-K22), \"\", C22-K22)","v":""},{"$f":"IF(ISERROR(E22-C22), \"\", E22-C22)","v":""},{"$f":"E22-SUM(K22:M22)","v":0}]
[null,"Large Bird (4 kg)","No exposure assessment.",null,null,null,null,null,null,"Lrg Brd","","","",0]
["   Contaminated Water",null,null,null,null,null,null,null,null,"WATER------------"]
[null,"Small bird (10g)",{"$f":"F08e!$C$18/$F$25","v":6.2426396266846364E-5},{"$f":"F08e!$C$19/$F$25","v":6.2426396266846364E-5},{"$f":"F08e!$C$20/$F$25","v":6.2426396266846364E-5},{"$f":"'B02'!$E$9","v":1728},"NOAEL",null,null,"Sm Brd",{"$f":"IF(D25>0,  D25, \"\")","v":6.2426396266846364E-5},{"$f":"IF(ISERROR(C25-K25), \"\", C25-K25)","v":0},{"$f":"IF(ISERROR(E25-C25), \"\", E25-C25)","v":0},{"$f":"E25-SUM(K25:M25)","v":0}]
[null,"Large Bird (4 kg)",{"$f":"F08f!$C$18/$F$26","v":8.6434767412322358E-6},{"$f":"F08f!$C$19/$F$26","v":8.6434767412322358E-6},{"$f":"F08f!$C$20/$F$26","v":8.6434767412322358E-6},{"$f":"'B02'!$E$9","v":1728},"NOAEL",null,null,"Lrg Brd",8.6434767412322358E-6,0,0,0]
["   Contaminated Insects",null,null,null,null,null,null,null,null,"INSECTS------------"]
[null,"Small bird (10g)","No exposure assessment.",null,null,null,null,null,null,"Sm Brd",{"$f":"IF(D28>0,  D28, \"\")","v":""},{"$f":"IF(ISERROR(C28-K28), \"\", C28-K28)","v":""},{"$f":"IF(ISERROR(E28-C28), \"\", E28-C28)","v":""},{"$f":"E28-SUM(K28:M28)","v":0}]
["   Consumption of small mammal (after direct spray) by predator",null,null,null,null,null,null,null,null,"SMALL MAMMAL-"]
[null,"Carnivorous bird (640 g)","No exposure assessment.",null,null,null,null,null,null,"Crn Brd",{"$f":"IF(D30>0,  D30, \"\")","v":""},{"$f":"IF(ISERROR(C30-K30), \"\", C30-K30)","v":""},{"$f":"IF(ISERROR(E30-C30), \"\", E30-C30)","v":""},{"$f":"E30-SUM(K30:M30)","v":0}]
["   Consumption of contaminated Fish",null,null,null,null,null,null,null,null,"FISH----------------"]
[null,"Fish-eating bird (2.4 kg)",{"$f":"F11c!$C$47/$F$32","v":2.5639307068161995E-4},{"$f":"F11c!$C$48/$F$32","v":2.5639307068162001E-5},{"$f":"F11c!$C$49/$F$32","v":1.4528940671958465E-3},{"$f":"'B02'!$E$9","v":1728},"NOAEL",null,null,"Psc Brd",{"$f":"IF(D32>0,  D32, \"\")","v":2.5639307068162001E-5},{"$f":"IF(ISERROR(C32-K32), \"\", C32-K32)","v":2.3075376361345794E-4},{"$f":"IF(ISERROR(E32-C32), \"\", E32-C32)","v":1.1965009965142265E-3},{"$f":"E32-SUM(K32:M32)","v":0}]
["Chronic/Longer Term Exposures"]
["   Contaminated Fruit (Lowest Residue Rate)",null,null,null,null,null,null,null,null,"FRUIT-------------"]
[null,"Small bird (10g)","No exposure assessment.",null,null,null,null,null,null,"Sm Brd",{"$f":"IF(D35>0,  D35, \"\")","v":""},{"$f":"IF(ISERROR(C35-K35), \"\", C35-K35)","v":""},{"$f":"IF(ISERROR(E35-C35), \"\", E35-C35)","v":""},{"$f":"E35-SUM(K35:M35)","v":0}]
[null,"Large Bird (4 kg)","No exposure assessment.",null,null,null,null,null,null,"Lrg Brd","","","",0]
["   Contaminated Broadleaf Foliage",null,null,null,null,null,null,null,null,"BROADLEAF-----"]
[null,"Small bird (10g)","No exposure assessment.",null,null,null,null,null,null,"Sm Brd",{"$f":"IF(D38>0,  D38, \"\")","v":""},{"$f":"IF(ISERROR(C38-K38), \"\", C38-K38)","v":""},{"$f":"IF(ISERROR(E38-C38), \"\", E38-C38)","v":""},{"$f":"E38-SUM(K38:M38)","v":0}]
[null,"Large Bird (4 kg)","No exposure assessment.",null,null,null,null,null,null,"Lrg Brd",{"$f":"IF(D39>0,  D39, \"\")","v":""},{"$f":"IF(ISERROR(C39-K39), \"\", C39-K39)","v":""},{"$f":"IF(ISERROR(E39-C39), \"\", E39-C39)","v":""},0]
["  Contaminated Tall Grass",null,null,null,null,null,null,null,null,"TALL GRASS -----"]
[null,"Small bird (10g)","No exposure assessment.",null,null,null,null,null,null,"Sm Brd",{"$f":"IF(D41>0,  D41, \"\")","v":""},{"$f":"IF(ISERROR(C41-K41), \"\", C41-K41)","v":""},{"$f":"IF(ISERROR(E41-C41), \"\", E41-C41)","v":""},{"$f":"E41-SUM(K41:M41)","v":0}]
[null,"Large Bird (4 kg)","No exposure assessment.",null,null,null,null,null,null,"Lrg Brd","","","",0]
["   Contaminated Vegetation (Short Grass - Highest Residue Rate)",null,null,null,null,null,null,null,null,"SHORT GRASS---"]
[null,"Small bird (10g)","No exposure assessment.",null,null,null,null,null,null,"Sm Brd",{"$f":"IF(D44>0,  D44, \"\")","v":""},{"$f":"IF(ISERROR(C44-K44), \"\", C44-K44)","v":""},{"$f":"IF(ISERROR(E44-C44), \"\", E44-C44)","v":""},{"$f":"E44-SUM(K44:M44)","v":0}]
[null,"Large Bird (4 kg)","No exposure assessment.",null,null,null,null,null,null,"Lrg Brd","","","",0]
["   Contaminated Water",null,null,null,null,null,null,null,null,"WATER------------"]
[null,"Small bird (10g)",{"$f":"F16e!$C$18/$F$47","v":5.0610592520287963E-6},{"$f":"F16e!$C$19/$F$47","v":6.8535177371223285E-7},{"$f":"F16e!$C$20/$F$47","v":2.2142126382919205E-4},{"$f":"'B02'!$E$10","v":32.799999999999997},"NOAEL",null,null,"Sm Brd",{"$f":"IF(D47>0,  D47, \"\")","v":6.8535177371223285E-7},{"$f":"IF(ISERROR(C47-K47), \"\", C47-K47)","v":4.375707478316563E-6},{"$f":"IF(ISERROR(E47-C47), \"\", E47-C47)","v":2.1636020457716326E-4},{"$f":"E47-SUM(K47:M47)","v":0}]
[null,"Large Bird (4 kg)",{"$f":"F16f!$C$18/$F$48","v":7.0074760913503911E-7},{"$f":"F16f!$C$19/$F$48","v":9.4892905403703222E-8},{"$f":"F16f!$C$20/$F$48","v":3.0657697037980112E-5},{"$f":"'B02'!$E$10","v":32.799999999999997},"NOAEL",null,null,"Lrg Brd",9.4892905403703222E-8,6.0585470373133587E-7,2.9956949428845072E-5,0]
["   Consumption of contaminated Fish",null,null,null,null,null,null,null,null,"FISH----------------"]
[null,"Fish-eating bird (2.4 kg)",{"$f":"F17c!$C$47/$F$50","v":2.0786407675729174E-5},{"$f":"F17c!$C$48/$F$50","v":2.8148260394216594E-7},{"$f":"F17c!$C$49/$F$50","v":5.1532950771866039E-3},{"$f":"'B02'!$E$10","v":32.799999999999997},"NOAEL",null,null,"Psc Brd",{"$f":"IF(D50>0,  D50, \"\")","v":2.8148260394216594E-7},{"$f":"IF(ISERROR(C50-K50), \"\", C50-K50)","v":2.0504925071787007E-5},{"$f":"IF(ISERROR(E50-C50), \"\", E50-C50)","v":5.1325086695108747E-3},{"$f":"E50-SUM(K50:M50)","v":0}]

{"sheet":"G03","index":68,"n_rows":42,"n_cols":14,"rows_kept":42,"cut":false,"hidden":false,"merged":[[7,6,8,6],[0,0,0,5],[2,2,2,4],[7,0,8,0],[7,1,8,1],[7,2,7,4],[7,5,8,5]]}
["Worksheet G03: Summary of Hazard Quotients for Aquatic Species"]
["Application Rate:",0.4,"ppm",null,null,"AqToxSumV6"]
["Exposures",null,"Concentrations (mg/L)"]
[null,"Scenario","Central","Lower","Upper","Worksheet"]
[null,"Accidental Spill",{"$f":"B04b!Acute_C","v":49.204999999999998},{"$f":"B04b!Acute_L","v":9.8409999999999993},{"$f":"B04b!Acute_U","v":98.41},"B04b"]
[null,"Peak EEC",{"$f":"B04a!Acute_C","v":0.4},{"$f":"B04a!Acute_L","v":0.4},{"$f":"B04a!Acute_U","v":0.4},"B04a"]
[null,"Chronic",{"$f":"B04a!Chronic_C","v":6.1554988411262443E-4},{"$f":"B04a!Chronic_L","v":8.3355713473584565E-5},{"$f":"B04a!Chronic_U","v":2.6930297888825137E-2},"B04a"]
["Receptor","Type","Hazard Quotients",null,null,"Toxicity Value","Toxicity Endpoint"]
[null,null,"Central","Lower","Upper"]
["Accidental Acute Exposures",null,null,null,null,null,null,null,null,null,"Lower","Central","Upper","Check"]
["Fish","Sensitive",{"$f":"C$5/$F11","v":53.483695652173907},{"$f":"D$5/$F11","v":10.696739130434782},{"$f":"E$5/$F11","v":106.96739130434781},{"$f":"'B02'!$E$20","v":0.92},"NOAEC",null,null,"Fish Sn",{"$f":"IF(D11>0,  D11, \"\")","v":10.696739130434782},{"$f":"IF(ISERROR(C11-K11), \"\", C11-K11)","v":42.786956521739128},{"$f":"IF(ISERROR(E11-C11), \"\", E11-C11)","v":53.483695652173907},{"$f":"E11-SUM(K11:M11)","v":0}]
[null,"Tolerant",{"$f":"C$5/$F12","v":10.469148936170212},2.0938297872340423,20.938297872340424,{"$f":"'B02'!$E$21","v":4.7},"NOAEC",null,null,"Fish Tl",2.0938297872340423,8.3753191489361694,10.469148936170212,{"$f":"E12-SUM(K12:M12)","v":0}]
["Amphibian","Sensitive","No toxicity data.",null,null,"N/A",null,null,null,"Amph Sn","","","",{"$f":"E13-SUM(K13:M13)","v":0}]
[null,"Tolerant","No toxicity data.",null,null,"N/A",null,null,null,"Amph To","","","",0]
["Invertebrate","Sensitive",4920.5,984.09999999999991,9841,{"$f":"'B02'!$E$16","v":0.01},"NOAEC",null,null,"Invt Sn",984.09999999999991,3936.4,4920.5,0]
[null,"Tolerant",182.24074074074073,36.448148148148142,364.48148148148147,{"$f":"'B02'!$E$17","v":0.27},"NOAEC",null,null,"Invt Tl",36.448148148148142,145.7925925925926,182.24074074074073,0]
["Macrophyte","Sensitive",223659.09090909088,44731.818181818177,447318.18181818177,{"$f":"'B02'!$E$26","v":2.2000000000000001E-4},"NOAEC",null,null,"Plant Sn",44731.818181818177,178927.27272727271,223659.09090909088,0]
[null,"Tolerant","No toxicity data.",null,null,"N/A",null,null,null,"Plant Tl","","","",0]
["Algae","Sensitive",2236590.9090909092,447318.18181818182,4473181.8181818184,{"$f":"'B02'!$E$24","v":2.1999999999999999E-5},"NOAEC",null,null,"Algae Sn",447318.18181818182,1789272.7272727273,2236590.9090909092,0]
[null,"Tolerant",25897.36842105263,5179.4736842105258,51794.73684210526,{"$f":"'B02'!$E$25","v":1.9E-3},"NOAEC",null,null,"Algae Tl",5179.4736842105258,20717.894736842103,25897.36842105263,0]
["Non-Accidental Acute Exposures"]
["Fish","Sensitive",{"$f":"C$6/$F22","v":0.43478260869565216},{"$f":"D$6/$F22","v":0.43478260869565216},0.43478260869565216,{"$f":"'B02'!$E$20","v":0.92},"NOAEC",null,null,"Fish Sn",{"$f":"IF(D22>0,  D22, \"\")","v":0.43478260869565216},{"$f":"IF(ISERROR(C22-K22), \"\", C22-K22)","v":0},{"$f":"IF(ISERROR(E22-C22), \"\", E22-C22)","v":0},0]
[null,"Tolerant",{"$f":"C$6/$F23","v":8.5106382978723402E-2},8.5106382978723402E-2,8.5106382978723402E-2,{"$f":"'B02'!$E$21","v":4.7},"NOAEC",null,null,"Fish Tl",8.5106382978723402E-2,0,0,0]
["Amphibian","Sensitive","No toxicity data.",null,null,"N/A",null,null,null,"Amph Sn","","","",0]
[null,"Tolerant","No toxicity data.",null,null,"N/A",null,null,null,"Amph To","","","",0]
["Invertebrate","Sensitive",40,40,40,{"$f":"'B02'!$E$16","v":0.01},"NOAEC",null,null,"Invt Sn",40,0,0,0]
[null,"Tolerant",1.4814814814814814,1.4814814814814814,1.4814814814814814,{"$f":"'B02'!$E$17","v":0.27},"NOAEC",null,null,"Invt Tl",1.4814814814814814,0,0,0]
["Macrophyte","Sensitive",1818.1818181818182,1818.1818181818182,1818.1818181818182,{"$f":"'B02'!$E$26","v":2.2000000000000001E-4},"NOAEC",null,null,"Plant Sn",1818.1818181818182,0,0,0]
[null,"Tolerant","No toxicity data.",null,null,"N/A",null,null,null,"Plant Tl","","","",0]
["Algae","Sensitive",18181.818181818184,18181.818181818184,18181.818181818184,{"$f":"'B02'!$E$24","v":2.1999999999999999E-5},"NOAEC",null,null,"Algae Sn",18181.818181818184,0,0,0]
[null,"Tolerant",210.5263157894737,210.5263157894737,210.5263157894737,{"$f":"'B02'!$E$25","v":1.9E-3},"NOAEC",null,null,"Algae Tl",210.5263157894737,0,0,0]
["Chronic/Longer Term Exposures"]
["Fish","Sensitive",{"$f":"C$7/$F33","v":1.2069605570835773},{"$f":"D$7/$F33","v":0.1634425754384011},52.804505664363013,{"$f":"'B02'!$E$22","v":5.1000000000000004E-4},"NOAEC",null,null,"Fish Sn",{"$f":"IF(D33>0,  D33, \"\")","v":0.1634425754384011},{"$f":"IF(ISERROR(C33-K33), \"\", C33-K33)","v":1.0435179816451763},{"$f":"IF(ISERROR(E33-C33), \"\", E33-C33)","v":51.597545107279437},0]
[null,"Tolerant",{"$f":"C$7/$F34","v":7.9941543391249925E-2},1.0825417334231761E-2,3.4974412842630049,{"$f":"'B02'!$E$23","v":7.7000000000000002E-3},"NOAEC",null,null,"Fish Tl",1.0825417334231761E-2,6.9116126057018168E-2,3.4174997408717549,0]
["Amphibian","Sensitive","No toxicity data.",null,null,"N/A",null,null,null,"Amph Sn","","","",0]
[null,"Tolerant","No toxicity data.",null,null,"N/A",null,null,null,"Amph To","","","",0]
["Invertebrate","Sensitive",4.103665894084163E-2,5.5570475649056377E-3,1.7953531925883426,{"$f":"'B02'!$E$18","v":1.4999999999999999E-2},"NOAEC",null,null,"Invt Sn",5.5570475649056377E-3,3.5479611375935992E-2,1.7543165336475011,0]
[null,"Tolerant",2.198392443259373E-2,2.9769897669137345E-3,0.96179635317232637,{"$f":"'B02'!$E$19","v":2.8000000000000001E-2},"NOAEC",null,null,"Invt Tl",2.9769897669137345E-3,1.9006934665679997E-2,0.93981242873973259,0]
["Macrophyte","Sensitive",2.7979540186937473,0.37888960669811167,122.41044494920517,{"$f":"'B02'!$E$26","v":2.2000000000000001E-4},"NOAEC",null,null,"Plant Sn",0.37888960669811167,2.4190644119956355,119.61249093051143,0]
[null,"Tolerant","No toxicity data.",null,null,"N/A",null,null,null,"Plant Tl","","","",0]
["Algae","Sensitive",27.979540186937474,3.7888960669811169,1224.1044494920518,{"$f":"'B02'!$E$24","v":2.1999999999999999E-5},"NOAEC",null,null,"Algae Sn",3.7888960669811169,24.190644119956357,1196.1249093051142,0]
[null,"Tolerant",0.32397362321717077,4.3871428143991878E-2,14.173840994118493,{"$f":"'B02'!$E$25","v":1.9E-3},"NOAEC",null,null,"Algae Tl",{"$f":"IF(D42>0,  D42, \"\")","v":4.3871428143991878E-2},{"$f":"IF(ISERROR(C42-K42), \"\", C42-K42)","v":0.28010219507317891},{"$f":"IF(ISERROR(E42-C42), \"\", E42-C42)","v":13.849867370901322},0]

{"sheet":"G06a","index":69,"n_rows":38,"n_cols":5,"rows_kept":38,"cut":false,"hidden":false,"merged":[[17,0,20,0],[21,0,24,0],[26,0,29,0],[0,0,0,4],[1,1,1,3],[2,1,2,3],[3,1,3,3],[8,0,11,0],[12,0,15,0]]}
["Potential exposure of non-target plants through the use of contaminated irrigation water based on estimates concentrations in ambient water."]
["Short Title","Irrigation Water",null,null,"PlntWatIrrgAq"]
["Receptor","Non-target plants"]
["Duration","acute"]
["Parameter/Assumption","Code / Range","Equation/   Value","Units","Reference/Designation"]
["Toxicity Values (Post-emergence in lb/ac)"]
["Sensitive species","NOAEL",{"$f":"'B02'!$E$12","v":5.0000000000000002E-5},"lb/acre","MRID 44295030"]
["Tolerant species","NOAEL",{"$f":"'B02'!$E$13","v":6.0000000000000001E-3},"lb/acre","MRID 44295030"]
["Concentration in irrigation water","ConcWat"]
[null,"Central ",{"$f":"B04a!Acute_C","v":0.4},"mg/L","Worksheet B04a"]
[null,"Lower ",{"$f":"B04a!Acute_L","v":0.4},null,"Worksheet B04a"]
[null,"Upper ",{"$f":"B04a!Acute_U","v":0.4},null,"Worksheet B04a"]
["Amount of irrigation water applied","IrrigAmnt"]
[null,"Central ",1,"inches","Scenario parameter"]
[null,"Lower ",0.25,null,"Scenario parameter"]
[null,"Upper ",2,null,"Scenario parameter"]
["Liters of water applied per acre per inch of irrigation water","LpApI",10279,"Liters/inch"]
["Liters of water applied per acre","LPA","IrrigAmnt × LpApl"]
[null,"Central ",{"$f":"C14*C$17","v":10279},"liters","Eq"]
[null,"Lower ",{"$f":"C15*C$17","v":2569.75},null,"Eq"]
[null,"Upper ",{"$f":"C16*C$17","v":20558},null,"Eq"]
["Application Rate (mg/acre)","ApRmg/a","ConcWat × LPA"]
[null,"Central ",{"$f":"C10*C19","v":4111.6000000000004},"mg/acre","Eq"]
[null,"Lower ",{"$f":"C11*C20","v":1027.9000000000001},null,"Eq"]
[null,"Upper ",{"$f":"C12*C21","v":8223.2000000000007},null,"Eq"]
["Conversion factor for mg to lb ","Conv",{"$f":"A02d!$C$9","v":2.204E-6},null,"Budavari  1989"]
["Functional application rate (lb/acre)","FncApR","ApRmg/a × Conv"]
[null,"Central ",{"$f":"C23*C$26","v":9.0619664000000013E-3},"lb/acre","Eq"]
[null,"Lower ",{"$f":"C24*C$26","v":2.2654916000000003E-3},null,"Eq"]
[null,"Upper ",{"$f":"C25*C$26","v":1.8123932800000003E-2},null,"Eq"]
["Hazard Quotients (Sensitive Species)","HISens","= FncApRt / ToxValSens"]
[null,"Central",{"$f":"IF(ISNUMBER($C$7), C28/$C$7, \"N/A\")","v":181.23932800000003}]
[null,"Lower",{"$f":"IF(ISNUMBER($C$7), C29/$C$7, \"N/A\")","v":45.309832000000007}]
[null,"Upper",362.47865600000006]
["Hazard Quotients (Tolerant Species)","HITol","= FncApRt / ToxValTol"]
[null,"Central",{"$f":" IF( ISNUMBER($C$8),  C28/$C$8, \"N/A\")","v":1.5103277333333336}]
[null,"Lower",{"$f":" IF( ISNUMBER($C$8),  C29/$C$8, \"N/A\")","v":0.3775819333333334}]
[null,"Upper",3.0206554666666672]

{"sheet":"References","index":70,"n_rows":46,"n_cols":2,"rows_kept":46,"cut":false,"hidden":false,"merged":[[0,0,0,1]]}
["References cited in workbook"]
["Citation","Full Reference"]
["Ali et al. 2005","Ali M; Iqbat F; Salam A; Iram S; Athar M.  2005.  Comparative study of body composition of different fish species from brackish water pond.  Int J Environ Sci Tech.  2(3): 229-232."]
["Boxenbaum and D’Souza 1990","Boxenbaum J; D'Souza R.  1990.  Interspecies pharmacokinetic scaling, biological design and neoteny.  Adv. Drug Res.  19: 139-195."]
["Budavari  1989","Budavari S. (Ed).  1989.  The Merck Index: An Encyclopedia of Chemicals, Drugs,and Biologicals, 11th ed.  Merck & Co., Inc., Rahway, New Jersey."]
["Burnmaster 1998","Burnmaster DE.  1998.  Lognormal distribution for total water intake and tap water intake by pregnant and lactating women in the United States.  Risk Analysis.  18(5): 215-219"]
["Chapman 1998","Chapman P.  1998.  The Insects: Structure and Function.  4th Edition.  Cambridge University Press, Cambridge, UK.  788 pp."]
["Default","These are plausible default values that are typically used in SERA risk assessments."]
["Dunning 1993","Dunning JB.  1993.  CRC Handbook of Avian Body Masses.  CRC Press, Boca Raton FL, 371 pp."]
["Durkin et al. 1995","Durkin PR; Rubin L; Withey J; Meylan W.  1995.  Methods of assessing dermal absorption with emphasis on uptake from contaminated vegetation.  Toxicol. Indust. Health.  11(1): 63-79."]
["Fletcher et al. 1994","Fletcher JS; Nellessen JE; Pfleeger TG. 1994. Literature review and evaluation of the EPA food-chain (Kenega) nomogram, an instrument for estimating pesticide residues on plants. Environ.  Toxicol. Chem. 13(9):1383-1391."]
["Harris and Solomon 1992","Harris SA; Solomon KR.  1992.  Human exposure to 2,4-D following controlled activities on recently sprayed turf.  J. Environ. Sci. Health.  B27(1): 9-22."]
["Hoerger and Kenaga 1972","Hoerger F; Kenaga EE.  1972.  Pesticide residues on plants: Correlation of representative data as a basis for estimation of their magnitude in the environment.  In: Environmental Quality and Safety, Volume I:  Global Aspects of Toxicology and Technology as Applied to the Environment.  F. Coulston and F. Kerte (eds.).  Academic Press, New York, NY.  pp. 9-28."]
["Humphery and Dykes 2008","Humphrey JAC; Dykes ES.  2008.  Thermal energy conduction in a honey bee comb due to cell-heating bees.  J Theoretical Biology.  250 (1): 194-208."]
["ICRP 1975","ICRP (International Commission on Radiologic Protection).  1975. Report of the Task Group on Reference Man.  Recommendations of the International Commission on Radiological Protection (ICRP) Publ. No. 23.   Pergamon Press, New York, NY."]
["Knisel et al. 1992","Knisel WG; Davis FM; Leonard RA.  1992.  GLEAMS Version 2.0 User Manual. U.S. Department of Agriculture, Agricultural Research Service, Southeast Watershed Research Laboratory, Tifton, GA.  202pp"]
["Manugistics 1995","Manugistics.  1995.  Statgraphics Plus for Windows. Version 3.  Available from Manugistics, Inc.  Rockville, Maryland."]
["Mason and Johnson 1987","Mason RW; Johnson BL.  1987.  Ergonomic factors in chemical hazard control.  In: Handbook of Human Factors.  Salveny, G; ed.  John Wiley and Sons, New York, NY.  pp. 772-741."]
["Mendenhall and Scheaffer 1973","Mendenhall W; Scheaffer RF.  1973.  Mathematical Statistics with Applications.  Duxbury Press, North Scituate, Massachusetts. 461 pp. plus appendices."]
["N/A","Not applicable"]
["Nagy 2005","Nagy KA.  2005.  Field metabolic rate and body size.  Journal of Experimental Biology.  208: 1621-1625."]
["Ratnapalan et al. 2003","Ratnapalan S; Potylitsina Y; Tan LH; Roifman M; Koren G.  2003.  Measuring a toddler's mouthful: toxicologic considerations.  J Pediatr.  142(6):729-30."]
["Reichle et al. 1973","Reichle DE, Goldstein RA; Van Hook RI; Dodson DJ.  1973.  Analysis of Insect Consumption in a Forest Canopy.  Ecology.  54: 1076-1084."]
["Reid 2006"," Reid FA. 2006.  A Field Guide to Mammals of North America North of Mexico.  Fourth Edition.  The Peterson Field Guide Series.  Houghton Mifflin Company, Boston MA.  570 pp."]
["Ruffle et al. 1994","Ruffle B; Burmaster DE; Anderson PD; Gordon HD.  1994.  Lognormal distributions for fish consumption by the general U.S. population.  Risk Analy.  14(4): 395-404."]
["SERA 1997","SERA (Syracuse Environmental Research Associates, Inc.).  1997. Reevaluation of Methods for Assessing Worker Exposure to Pesticides, SERA TR 96-21-08-01, draft dated December 31, 1997.  Prepared under USDA/FS Contract 53-3187-5-12.  Syracuse Environmental Research Associates, Inc., Fayetteville, NY."]
["SERA 2005","SERA (Syracuse Environmental Research Associates, Inc.).  2005. Hexazinone - Human Health and Ecological Risk Assessment– Final Report, SERA SERA TR 05-43-20-03d, Final Report dated October 25, 2005.  Available at: http://www.fs.fed.us/foresthealth/pesticide/risk.shtml."]
["SERA 2007","SERA (Syracuse Environmental Research Associates, Inc.).  2007. Preparation of Environmental Documentation and Risk Assessments, SERA MD 2007-01a, draft dated July 2001.  Syracuse Environmental Research Associates, Inc., Fayetteville, NY.  Available at www.sera-inc.com."]
["SERA 2010","SERA (Syracuse Environmental Research Associates, Inc.).  2010. Strychnine Human Health and Ecological Risk Assessment, SERA TR-052-17-02a, draft dated February 22, 2010.  Syracuse Environmental Research Associates, Inc., Manlius, NY.  Available at www.sera-inc.com."]
["SERA 2014","SERA (Syracuse Environmental Research Associates, Inc.).  2014. Preparation of Environmental\r\nDocumentation and Risk Assessments for the USDA/Forest Service, SERA MD 2014-02b. Report dated November 17, 2014.  Prepared under USDA/FS Contract 53-3187-5-12.Syracuse Environmental Research Associates, Inc., Fayetteville, NY.  Available at: https://www.fs.fed.us/foresthealth/pesticide/pdfs/PrepEnvirmentalDoc_11-2014.pdf."]
["Sibley 2000","Sibley DA.  2000.  The Sibley Guide to Birds.  National Audubon Society, Chanticleer Press Edition.  Alfred A. Knopf Inc., New York.  545 pp."]
["Teske et al. 2001","Teske ME; Bird SL; Esterly DM; Ray SL; Perry SG.  2001.  A User’s Guide for AgDRIFT 2.0: A Tiered Approach for the Assesment of Spray Drift.  Continuum Dynamics, Inc. Public Use Version.  C.D.I. Report No. 01-01.  Available, with executable model at: http://www.agdrift.com"]
["U.S. EPA/OPP 1999","U.S. EPA/OPP ((U.S. Environmental Protection Agency/Office of Pesticide Programs).  1999.  ECOFRAM:  Terrestrial ECOFRAM Terrestrial Draft Report.  Ecological Committee on FIFRA Risk Assessment Methods(ECOFRAM).  Report dated May 10, 1999.  Available at:  http://www.epa.gov/oppefed1/ ecorisk/terrreport.pdf."]
["U.S. EPA/OPP 2012","U.S. EPA/OPP (U.S. Environmental Protection Agency/Office of Pesticide Programs).  2012.  Standard Operating Procedure for Residential Exposure and Risk Assessment for Pesticide. Report dated October 2012.  Available at: https://www.epa.gov/sites/production/files/2015-08/documents/usepa-opp-hed_residential_sops_oct2012.pdf."]
["U.S. EPA/ORD 1985","U.S. EPA/ORD (U.S. Environmental Protection Agency/Office of Research and Development).  1985. Development of Statistical Distributions or Ranges of Standard Factors Used in Exposure Assessments,  Report prepared by GCA Corp., Chapel Hill.  Available from NTIS: PB85-242667."]
["U.S. EPA/ORD 1992","U.S. EPA/ORD (U.S. Environmental Protection Agency/Office of Research and Development).  1992.  Dermal Exposure Assessment: Principles and Applications.  EPA/600/8-91/011B.  Interim Report.  Exposure Assessment Group, Office of Health and Environmental Assessment, Washington, DC."]
["U.S. EPA/ORD 1993","U.S. EPA/ORD (U.S. Environmental Protection Agency/Office of Research and Development).  1993.  Wildlife Exposure Factors Handbook.  Volumes 1 and 2.  EPA/600/R-93/187a,b.  Pagination not continuous.  Available NTIS: PB94-174778 and PB94-174779."]
["U.S. EPA/ORD 1996","U.S. EPA (U.S. Environmental Protection Agency/Office of Research and Development).  1996.  Exposure Factors Handbook. National Center for Environmental Assessment, U.S. EPA, Washington, DC.  EPA/600/P-95/002Ba-c.  Avail. NTIS: PB97-117683, 97-117691, PB97-117709."]
["U.S. EPA/ORD 1997","U.S. EPA (U.S. Environmental Protection Agency/Office of Research and Development).  1997.  Exposure Factors Handbook. National Center for Environmental Assessment, U.S. EPA, Washington, DC.  EPA/600/P-95/002Fa.  Available at: http://rais.ornl.gov/homepage/EFH_Final_1997_EPA600P95002Fa.pdf"]
["U.S. EPA/ORD 2011","U.S. EPA (U.S. Environmental Protection Agency/Office of Research and Development).  2011.  Exposure Factors Handbook (Chapter 7). National Center for Environmental Assessment, U.S. EPA, Washington, DC.  EPA/600/R-090/052F. Available at: https://www.epa.gov/sites/production/files/2015-09/documents/efh-chapter07.pdf"]
["USDA 1989a","USDA (U.S. Department of Agriculture/Forest Service).  1989a.  Final Environmental Impact Statement: Vegetation Management in the Coastal Plain/Piedmont, Management Bulletin R8-MB-23, dated January, 1989.  1213 pp."]
["USDA 1989b","USDA (U.S. Department of Agriculture/Forest Service).  1989b.  Draft Environmental Impact Statement: Vegetation Management in the Ozark/Ouachita Mountains, Management Bulletin R8-MB-23, dated June, 1989.  499 pp."]
["USDA 1989c","USDA (U.S. Department of Agriculture/Forest Service).  1989c.  Final Environmental Impact Statement: Vegetation Management in the Appalachian Mountains, Management Bulletin R8-MB-38, dated July, 1989. 1104 pp."]
["Waldbauer 1968","Waldbauer GP.  1968.  The consumption and utilization of food by insects.  Advan Insect Physiol.  5: 229-288"]
["Winston 1987","Winston ML.  1987.  The Biology of the Honey Bee.  Harvard University Press, Cambridge, MA.  ISBN 0-674-07409-2  280 pp."]
["Wolfram Research 1997","Wolfram Research.  1997. Mathematica Version 3.0.1.  Available from Wolfram Research, Inc.  Champaign, IL."]

{"sheet":"PlntRunoV5","index":71,"n_rows":31,"n_cols":5,"rows_kept":31,"cut":false,"hidden":true,"merged":[[15,0,18,0],[19,0,22,0],[24,0,24,1],[0,0,0,4],[2,1,2,3],[3,1,3,3],[4,1,4,4],[8,1,8,3],[10,0,13,0]]}
["Summary of Exposure Assessment and Risk Characterization for Terrestrial Plants from Runoff"]
["Short Title","Runoff to terrestrial plants"]
["Receptor","Terrestrial vegetation"]
["Duration","Acute"]
["User-Specified Gleams-Driver File","None"]
["Parameter/Assumption","Code / Range","Value","Units","Reference"]
["Worksheet Application Rate","ApRtWB",0.2,"lb/acre","Prog!ApRt"]
["Offsite Application Rates Inputs"]
["Run ID:","See Risk Assessment"]
["Application Rate Used in Run:","ApRtRun",1,"lb/acre"]
["Functional Off-site Application Rate","ApRtOffsite"]
[null,"Central",2.7E-2,"lb/acre"]
[null,"Lower",9.4999999999999998E-3]
[null,"Upper",5.7000000000000002E-2]
["Calculated Values"]
["Normalized Off-site Functional Application Rate ","NormApRtOffsite","ApRtOffsite / ApRtRun"]
[null,"Central",{"$f":"C12/C$10","v":2.7E-2},"Unitless","Eq"]
[null,"Lower",{"$f":"C13/C$10","v":9.4999999999999998E-3},null,"Eq"]
[null,"Upper",{"$f":"C14/C$10","v":5.7000000000000002E-2},null,"Eq"]
["Off-site Application Rate at Workbook Application Rate","ApRtWB","ApRtWB x NormApRtOffsite"]
[null,"Central",{"$f":"C17*C$7","v":5.4000000000000003E-3},"lb/acre","Eq"]
[null,"Lower",{"$f":"C18*C$7","v":1.9E-3},null,"Eq"]
[null,"Upper",{"$f":"C19*C$7","v":1.14E-2},null,"Eq"]
["Toxicity Values  (seedling emergence) in units of lbs/acre"]
[null,null,"Sensitive","Tolerant"]
[null,"Endpoint"]
[null,null,3.7000000000000002E-3,0.37]
["Hazard Quotients"]
[null,"Central",{"$f":"IF(ISNUMBER(C$27), $C21/C$27, \"N/A\")","v":1.4594594594594594},1.4594594594594595E-2]
[null,"Lower",0.51351351351351349,5.1351351351351356E-3]
[null,"Upper",3.0810810810810811,3.0810810810810812E-2]